{"text_format":"3","workbook":"xlsx","n_sheets":4,"sheets":["4 кл ","5 кл","6кл","7 кл"],"not_rendered":{"defined_names":4},"read":"whole","date_system":"1900"}

{"sheet":"4 кл ","index":0,"n_rows":286,"n_cols":16,"rows_kept":286}
[null,"Итоговый протокол заключительного этапа республиканской олимпиады по математике 2024-2025 уч.год "]
["№","Район","Название ОУ","Фамилия","Имя","Отчество","Шифр",1,2,3,4,5,6,"Итоговый балл","Класс","Класс участия"]
[1,"Московский район","МБОУ \"Гимназия №122 имени Ж.А.Зайцевой\" Московского района г.Казани","Насретдинов","Динар","Алмазович","К4-106",7,7,0,7,7,2,{"$f":"H3+I3+J3+K3+L3+M3","v":30},3,4]
[2,"Зеленодольский район","МБОУ «Гимназия №3 Зеленодольского муниципального района Республики Татарстан»","Коновалов","Иван","Александрович","К4-175",7,7,7,0,6,0,27,4,4]
[3,"Приволжский район","МБОУ \"Гимназия №21\" Приволжского района г. Казани","Даутов","Самат","Маратович","К4-015",7,0,7,7,2,2,25,3,4]
[4,"Советский район","МБОУ \"Гимназия №20 имени Абдуллы Алиша\" Советского района г.Казани","Салимьянов","Тимур","Инисович","К4-016",7,7,0,3,7,0,24,4,4]
[5,"Вахитовский район","МАОУ для детей, проявивших выдающиеся способности \"Средняя общеобразовательная школа-интернат \"Специализированный олимпиадно-научный центр \"СОлНЦе\" Вахитовского района г.Казани","Сугоняко","Лев","Денисович","К4-007",7,7,3,6,0,0,23,4,4]
[6,"Ново-Савиновский район","МАОУ \"Основная общеобразовательная школа №30\" Ново-Савиновского района г. Казани","Хадиева","Лейла","Камилевна","К4-162",0,0,2,7,7,7,23,4,4]
[7,"Московский район","МБОУ \"Татарская гимназия №2 имени Шигабутдина Марджани при Казанском Федеральном Университете\" Московского района г.Казани","Хабибуллин","Азамат","Ильмирович","К4-001",7,7,1,0,7,0,22,4,4]
[8,"Московский район","МБОУ \"Гимназия №102 имени М.С.Устиновой\" Московского района города Казани","Бандеров","Павел","Олегович","К4-094",7,7,1,0,7,0,22,4,4]
[9,"Приволжский район","МБОУ \"Гимназия №6\" Приволжского района г.Казани","Буренков","Даниил","Константинович","К4-098",7,7,1,0,7,0,22,4,4]
[10,"Московский район","МБОУ \"Гимназия №102 имени М.С.Устиновой\" Московского района города Казани","Барабанова","Виктория","Алексеевна","К4-099",7,7,2,0,6,0,22,4,4]
[11,"Советский район","МБОУ \"Средняя общеобразовательная школа №15 с углубленным изучением отдельных предметов\" Советского района г.Казани","Семушев","Лев","Дмитриевич","К4-002",7,7,0,0,7,0,21,4,4]
[12,"Вахитовский район","МБОУ \"Средняя общеобразовательная школа №12\" Вахитовского района г. Казани","Груничева","Оливия","Александровна","К4-022",7,7,0,0,7,0,21,4,4]
[13,"Вахитовский район","МАОУ \"Средняя общеобразовательная школа №18 с углубленным изучением английского языка\" Вахитовского района города Казани","Зайнетдинов","Данияр","Ринатович","К4-030",7,7,0,0,7,0,21,4,4]
[14,"Ново-Савиновский район","МБОУ \"Гимназия № 179-центр образования\" Ново-Савиновского района г.Казани","Сайфиева","Наиля","Ахматовна","К4-043",7,7,0,0,7,0,21,4,4]
[15,"Приволжский район","МАОУ \"Гимназия №19\" Приволжского района г. Казани","Шамсутдинов","Егор","Маратович","К4-052",0,7,7,0,7,0,21,4,4]
[16,"Советский район","МБОУ \"Многопрофильная полилингвальная гимназия №180\" Советского района г. Казани","Давлетшин","Артур","Рустамович","К4-126",7,7,0,0,7,0,21,4,4]
[17,"Московский район","МБОУ \"Гимназия №122 имени Ж.А.Зайцевой\" Московского района г.Казани","Садыков","Ильдар","Жаудатович","К4-129",7,7,0,0,7,0,21,4,4]
[18,"Московский район","МБОУ \"Гимназия №102 имени М.С.Устиновой\" Московского района города Казани","Николаев","Николай","Михайлович","К4-155",7,7,0,0,7,0,21,4,4]
[19,"Елабужский район","МБОУ \"Инженерно-технологический лицей\" Елабужского муниципального района Республики Татарстан","Камалетдинова","Эльза","Эльнаровна","Н4-004",7,7,0,0,7,0,21,4,4]
[20,"Московский район","МБОУ \"Гимназия №122 имени Ж.А.Зайцевой\" Московского района г.Казани","Федоров","Илья","Игоревич","К4-005",7,7,0,0,6,0,20,4,4]
[21,"Московский район","МБОУ \"Гимназия №102 имени М.С.Устиновой\" Московского района города Казани","Чернышев","Александр","Николаевич","К4-034",7,7,0,0,6,0,20,4,4]
[22,"Камско-Устьинский район","МБОУ «Затонская средняя общеобразовательная школа имени Василия Петровича Муравьева» Камско-Устьинского муниципального района","Галиуллина","Камилла","Ринатовна","К4-054",7,7,0,0,6,0,20,4,4]
[23,"Ново-Савиновский район","МАОУ \"Основная общеобразовательная школа №30\" Ново-Савиновского района г. Казани","Хуснутдинов","Хаким","Радикович","К4-087",7,7,0,0,6,0,20,4,4]
[24,"Приволжский район","МАОУ \"Гимназия №19\" Приволжского района г. Казани","Салихов","Икрам","Рамилевич","К4-090",7,7,0,0,6,0,20,4,4]
[25,"Вахитовский район","МБОУ \"Гимназия №27 с татарским языком обучения имени Хади Такташа\" Вахитовского района г.Казани","Нотфуллина","Луиза","Артуровна","К4-108",7,7,0,0,6,0,20,4,4]
[26,"Советский район","МАОУ \"Многопрофильный лицей №11\" Советского района г.Казань","Карпеева","Вера","Андреевна","К4-046",0,7,1,4,7,0,19,4,4]
[27,"Балтасинский район","МБОУ \"Нурминская средняя общеобразовательная школа\" Балтасинского муниципального района Республики Татарстан","Зиятдинова","Аделя","Маратовна","К4-051",7,7,0,0,3,2,19,4,4]
[28,"Пестречинский район","МБОУ «Многопрофильный лицей имени Героя Советского Союза Г.К. Камалеева» жилого комплекса «Усадьба Царево» с. Новое Шигалеево Пестречинского муниципального района Республики Татарстан","Идрисов","Искандер","Алмазович","К4-119",7,7,0,0,3,2,19,4,4]
[29,"Советский район","МАОУ \"Многопрофильный лицей №11\" Советского района г.Казань","Демидова","Надежда","Денисовна","К4-139",7,0,0,7,5,0,19,4,4]
[30,"Зеленодольский район","МБОУ «Гимназия №3 Зеленодольского муниципального района Республики Татарстан»","Золотухина","Анастасия","Александровна","К4-057",7,0,7,0,4,0,18,4,4]
[31,"Пестречинский район","МБОУ «Многопрофильный лицей имени Героя Советского Союза Г.К. Камалеева» жилого комплекса «Усадьба Царево» с. Новое Шигалеево Пестречинского муниципального района Республики Татарстан","Мифтахов","Мухаммад","Рамилевич","К4-060",7,7,0,0,4,0,18,4,4]
[32,"Советский район","МБОУ \"Средняя общеобразовательная школа №15 с углубленным изучением отдельных предметов\" Советского района г.Казани","Трусова","Арина","Романовна","К4-085",7,7,0,0,4,0,18,4,4]
[33,"Авиастроительный район","МБОУ \"Средняя общеобразовательная школа №54 с углубленным изучением отдельных предметов\" Авиастроительного района г. Казани","Михеев","Роберт","Алексеевич","К4-138",7,7,0,3,1,0,18,4,4]
[34,"Московский район","МБОУ \"Гимназия №94 имени Л.Н.Мурысина\" Московского района г. Казани","Аглей","Артур","Рустемович","К4-141",7,7,0,0,4,0,18,4,4]
[35,"Набережные Челны","МБОУ\"Центр образования - Гимназия №57 \"Притяжение\"","Исмагилова","Сабина","Динаровна","Н4-061",7,7,0,1,3,0,18,4,4]
[36,"Ново-Савиновский район","ГАОУ \"Полилингвальный комплекс \"Адымнар - путь к знаниям и согласию\" г.Казани (ул. Бондаренко)","Сабитов","Саид","Линарович","К4-025",7,7,0,0,3,0,17,4,4]
[37,"Ново-Cавиновский район","МАОУ \"Основная общеобразовательная школа №30\"","Гиниятуллин","Карим","Айратович","К4-064",7,7,0,0,3,0,17,4,4]
[38,"Вахитовский район","МБОУ \"Средняя общеобразовательная школа №12\" Вахитовского района г. Казани","Галеев","Ранель","Наилевич","К4-084",7,7,0,1,2,0,17,4,4]
[39,"Авиастроительный район","МАОУ \"Гимназия №37\" Авиастроительного района г. Казани","Насретдинов","Аскар","Ильнурович","К4-134",0,7,0,7,3,0,17,4,4]
[40,"Зеленодольский район","МБОУ «Гимназия №3 Зеленодольского муниципального района Республики Татарстан»","Зарипов","Салим","Ильдарович","К4-157",7,7,0,1,2,0,17,4,4]
[41,"Московский район","Частное общеобразовательное учреждение средняя общеобразовательная школа \"Елена-Сервис\"","Тахтаганов","Ранель","Ильдарович","К4-166",7,7,0,3,0,0,17,4,4]
[42,"Бугульминский район","МБОУ лицей №2 Бугульминского муниципального района Республики Татарстан","Порунов","Роман","Григорьевич","А4-020",7,7,1,0,1,0,16,4,4]
[43,"Авиастроительный район","МАОУ \"Гимназия №37\" Авиастроительного района г. Казани","Чугунов","Игорь","Александрович","К4-019",7,7,0,0,2,0,16,4,4]
[44,"Кировский район","МБОУ \"Средняя общеобразовательная школа №135 с углубленным изучением отдельных предметов\" Кировского района г.Казани","Нарычев","Егор","Сергеевич","К4-122",7,7,0,0,2,0,16,4,4]
[45,"Ново-Савиновский район","МАОУ \"Основная общеобразовательная школа №30\" Ново-Савиновского района г. Казани","Моисеев","Ярослав","Олегович","К4-140",7,7,1,0,1,0,16,3,4]
[46,"Советский район","МАОУ \"Лицей - инженерный центр\" Советского района г.Казани","Сафина","Айлин","Айдаровна","К4-164",7,0,0,1,6,2,16,4,4]
[47,"Набережные Челны","МБОУ \"Гимназия №26\"","Полунин","Радомир","Андреевич","Н4-030",7,0,0,3,6,0,16,4,4]
[48,"Бугульминский район","МБОУ лицей №2 Бугульминского муниципального района Республики Татарстан","Важнова","Полина","Сергеевна","А4-037",0,7,0,1,7,0,15,4,4]
[49,"Московский район","МБОУ \"Гимназия №102 имени М.С.Устиновой\" Московского района города Казани","Халикова","Амалия","Альбертовна","К4-014",7,0,0,1,7,0,15,4,4]
[50,"Лаишевский район","МБОУ «Державинская основная общеобразовательная школа» Лаишевского муниципального района Республики Татарстан","Аюпов","Нариман","Ильдарович","К4-024",0,7,2,0,6,0,15,4,4]
[51,"Ново-Савиновский район","МБОУ \"Многопрофильный лицей №170\" Ново-Савиновского района г.Казани.","Бигинина","София","Александровна","К4-066",7,7,0,0,1,0,15,4,4]
[52,"Верхнеуслонский район","МБОУ \"Матюшинская СОШ\"","Хакимова","Ясмина","Маратовна","К4-078",7,7,0,0,1,0,15,4,4]
[53,"Вахитовский район","МБОУ \"Средняя общеобразовательная школа №12\" Вахитовского района г. Казани","Можанов","Фёдор","Евгеньевич","К4-081",0,7,1,0,7,0,15,4,4]
[54,"Кировский район г.Казань"," МБОУ «Лицей 188»","Хамидуллин","Мухаммад ","Шамилевич","К4-109",7,7,0,0,1,0,15,4,4]
[55,"Набережные Челны","МБОУ \"Пушкинский пролицей №78\"","Салахова","Динара","Айратовна","Н4-017",7,7,0,0,1,0,15,4,4]
[56,"Набережные Челны","МБОУ \"Гимназия №26\"","Нуриев","Шамиль","Ильдарович","Н4-018",7,7,1,0,0,0,15,4,4]
[57,"Набережные Челны","МАОУ города Набережные Челны «Средняя общеобразовательная школа №50 с углубленным изучением отдельных предметов»","Исламова","Эмилия","Ренатовна","Н4-028",7,7,0,0,1,0,15,4,4]
[58,"Нижнекамский район","МБОУ «Многопрофильный лицей №37» Нижнекамского муниципального района Республики Татарстан","Минеева","Ульяна","Сергеевна","Н4-037",7,7,0,1,0,0,15,4,4]
[59,"Набережные Челны","МБОУ \"Гимназия №26\"","Туктарова","Камила","Ильнуровна","Н4-049",7,7,0,1,0,0,15,4,4]
[60,"Зеленодольский район","МБОУ «Лицей №1 Зеленодольского муниципального района РТ»","Цишейко","Алексей","Семенович","К4-053",7,7,0,0,0,0,14,4,4]
[61,"Московский район","МБОУ \"Гимназия №102 имени М.С.Устиновой\" Московского района города Казани","Подмарев","Марсель","Денисович","К4-059",7,7,0,0,0,0,14,4,4]
[62,"Ново-Савиновский район","МБОУ \"Лицей №177\" Ново-Савиновского района г. Казань","Гараев","Вильдан","Тальгатович","К4-065",7,0,0,0,7,0,14,4,4]
[63,"Ново-Савиновский район","МАОУ \"Лицей №146\" Ново-Савиновского района г.Казани","Кильдеева","Ляйсан","Мансуровна","К4-091",7,0,0,1,6,0,14,4,4]
[64,"Советский район","МБОУ \"Многопрофильный лицей №187\" Советского района г.Казани","Бадертдинов","Расул","Газинурович","К4-095",7,7,0,0,0,0,14,4,4]
[65,"Приволжский район","МАОУ \"Гимназия №19\" Приволжского района г. Казани","Салихов","Ахмат","Рамилевич","К4-096",7,7,0,0,0,0,{"$f":"H67+I67+J67+K67+L67+M67","v":14},4,4]
[66,"Вахитовский район","МАОУ СОШИ «СОлНЦе»","Ямбулатов","Тимур","Марсович","К4-101",7,7,0,0,0,0,14,"4",4]
[67,"Советский район","МАОУ для детей дошкольного и младшего школьного возраста «Прогимназия №29\" Советского района г.Казани","Баязитов","Тимур","Тимурович","К4-151",0,7,0,0,7,0,14,4,4]
[68,"Приволжский район","МБОУ \"Лицей №83 - Центр образования\" Приволжского района г. Казани","Исламова","Язиля","Динаровна","К4-152",0,7,0,0,7,0,14,4,4]
[69,"Менделеевский район","МБОУ «Средняя общеобразовательная школа № 1 имени Героя Советского Союза М.С. Фомина г. Менделеевска»  Менделеевского муниципального района Республики Татарстан","Герега","Арина","Юрьевна","Н4-010",7,6,0,0,1,0,14,4,4]
[70,"Советский район","АНОО «Академия навыков» (ALTA SCHOOL)","Юнусова","Элина","Руслановна","К4-031",0,7,0,0,6,0,13,"4",4]
[71,"Московский район","МБОУ \"Гимназия №94 имени Л.Н.Мурысина\" Московского района г. Казани","Зиннурова","Риана","Аделевна","К4-045",0,7,0,0,6,0,13,4,4]
[72,"Советский район","МБОУ \"Многопрофильная школа №181\" Советского района г.Казани","Асанов","Илфат","Артурович","К4-063",0,7,0,0,6,0,13,4,4]
[73,"Вахитовский район","МАОУ СОШИ «СОлНЦе»","Ушаков","Артём","Андреевич","К4-075",7,0,0,0,6,0,13,"4",4]
[74,"Высокогорский район","МБОУ \"Высокогорская средняя общеобразовательная школа № 1 Высокогорского муниципального района Республики Татарстан\"","Сафина","Айзиля","Руслановна","К4-097",7,0,0,1,5,0,13,4,4]
[75,"Высокогорский район","МБОУ \"Высокогорская средняя общеобразовательная школа № 1 Высокогорского муниципального района Республики Татарстан\"","Хамдеев","Дамир","Булатович","К4-111",0,7,0,0,6,0,13,4,4]
[76,"Вахитовский район","МАОУ для детей, проявивших выдающиеся способности \"Средняя общеобразовательная школа-интернат \"Специализированный олимпиадно-научный центр \"СОлНЦе\" Вахитовского района г.Казани","Фатхуллин","Самат","Рустемович","К4-112",0,7,0,1,5,0,13,3,4]
[77,"Вахитовский район","МБОУ \"Лицей №116 имени Героя Советского Союза А.С.Умеркина\" Вахитовского района г.Казани","Богданов","Амир","Рафаэлевич","К4-174",7,0,0,0,6,0,13,4,4]
[78,"Набережные Челны","МБОУ\"Центр образования - Гимназия №57 \"Притяжение\"","Галиев","Тимур","Ринатович","Н4-033",7,0,0,1,5,0,13,4,4]
[79,"Зеленодольский район","МБОУ «Лицей №9 имени А. С. Пушкина Зеленодольского муниципального района Республики Татарстан»","Байрамова","Карина","Фаилевна","К4-021",0,7,0,3,2,0,12,4,4]
[80,"Зеленодольский район","МБОУ «Гимназия №3 Зеленодольского муниципального района Республики Татарстан»","Майоров","Тамерлан","Александрович","К4-056",0,7,0,0,5,0,12,4,4]
[81,"Советский район","МБОУ\"Гимназия №126\" Советского района г.Казани","Шишко","Нина","Алексеевна","К4-062",7,0,0,0,5,0,12,4,4]
[82,"Приволжский район","МАОУ \"Гимназия № 19\" Приволжского района г.Казани","Баринов","Тимур","Константинович","К4-093",7,0,0,1,4,0,12,4,4]
[83,"Московский район","МБОУ \"Гимназия №102 имени М.С.Устиновой\" Московского района города Казани","Хайретдинова","Камила","Ильшатовна","К4-100",7,0,0,0,5,0,12,4,4]
[84,"Вахитовский район","Муниципальное  бюджетное общеобразовательное учреждение \"Гимназия №96\" Вахитовского района города Казани","Львова","Ольга","Алексеевна","К4-102",7,0,0,0,5,0,12,4,4]
[85,"Нижнекамский район","МБОУ «Средняя общеобразовательная школа №28» Нижнекамского муниципального района Республики Татарстан","Волченков","Фёдор","Александрович","Н4-005",0,7,0,5,0,0,12,4,4]
[86,"Азнакаевский район","МБОУ \"Средняя общеобразовательная школа №6 г. Азнакаево» Азнакаевского муниципального района Республики Татарстан","Султанова","Алида","Радиковна","А4-008",7,0,0,1,3,0,11,4,4]
[87,"Сармановский район","МБОУ \"Джалильская СОШ №2","Шайхутдинов","Булат","Ильясович","А4-034",7,0,0,0,4,0,11,4,4]
[88,"Зеленодольский район","МБОУ «Гимназия №3 Зеленодольского муниципального района Республики Татарстан»","Русских","София","Михайловна","К4-009",7,0,0,0,4,0,11,4,4]
[89,"Ново-Савиновский район","МАОУ \"Лицей №146\" Ново-Савиновского района г.Казани","Гимадеев","Данияр","Маратович","К4-020",0,7,0,1,3,0,11,4,4]
[90,"Ново-Савиновский район","МБОУ \"Гимназия №107 \"Открытие\" Ново-Савиновского района г.Казани","Салахова","Сафина","Саматовна","К4-035",7,0,0,0,4,0,11,4,4]
[91,"Московский район","Муниципальное бюджетное общеобразовательное учреждение \"Гимназия №12 с татарским языком обучения имени Ф.Г.Аитовой\" Московского района г. Казани","Денисова","Самира","Айратовна","К4-080",7,0,0,1,3,0,11,4,4]
[92,"Вахитовский район","МАОУ «Школа №39»","Насыров ","Саид ","Искандерович ","К4-105",0,7,0,0,4,0,11,"4",4]
[93,"Советский район","МБОУ \"Многопрофильный лицей №185\" Советского района г.Казани","Гайнуллин","Азамат","Расулевич","К4-142",0,7,0,1,3,0,11,4,4]
[94,"Нижнекамский район","МБОУ «Средняя общеобразовательная школа №33 с углубленным изучением английского языка» Нижнекамского муниципального района Республики Татарстан","Осипова","Анастасия","Ивановна","Н4-016",7,0,0,0,4,0,11,4,4]
[95,"Мамадышский район","МБОУ \"Центр образования Лицей №2 имени академика Камиля Ахметовича Валиева города Мамадыш\" Мамадышского муниципального района Республики Татарстан","Шакиров","Рамазан","Ильназович","Н4-048",7,0,0,0,4,0,11,4,4]
[96,"Чистопольский район","МБОУ « Средняя общеобразовательная школа № 1» Чистопольского муниципального района Республики Татарстан","Шляхтин","Кирилл","Вадимович","А4-005",0,7,0,1,2,0,10,4,4]
[97,"Азнакаевский район","МБОУ \"Средняя общеобразовательная школа №7 города Азнакаево\"   Азнакаево» Азнакаевского муниципального района Республики Татарстан","Габделхаков","Радэль","Радикович","А4-031",7,0,0,0,3,0,10,4,4]
[98,"Советский район","МБОУ \"Многопрофильная школа №181\" Советского района г.Казани","Фаткулисламов","Тагир","Тимурович","К4-003",0,7,0,1,2,0,10,3,4]
[99,"Советский район","МБОУ \"Средняя общеобразовательная школа №22 с углубленным изучением отдельных предметов - Центр образования\" Советского района г.Казани","Сайфутдинова","Саида","Рамилевна","К4-010",7,0,0,0,3,0,10,4,4]
[100,"Ново-Савиновский район","Муниципальное бюджетное общеобразовательное учреждение «Гимназия №107 «Открытие» Ново-Савиновского района г.Казани","Черезов  ","Василий","Константинович","К4-026",0,7,0,3,0,0,10,4,4]
[101,"Арский район","МБОУ \"Арская средняя общеобразовательная школа №1 им. В.Ф.Ежкова с углубленным изучением отдельных предметов\" Арского муниципального района Республики Татарстан","Сагитзянов","Рамзан","Рамисович","К4-061",0,7,0,0,3,0,10,4,4]
[102,"Лаишевский район","МБОУ «Многопрофильный лицей «Здоровое поколение»","Мамин","Исмаил","Ахатович","К4-137",0,7,0,0,3,0,10,4,4]
[103,"Вахитовский район","МБОУ \"Средняя общеобразовательная школа №12\" Вахитовского района г. Казани","Коробицин","Петр","Артемович","К4-168",0,7,0,0,3,0,10,4,4]
[104,"Советский район","Муниципальное бюджетное общеобразовательное учреждение \"Эколого-технологический лицей №79\" Советского района г. Казани","Шакирова","Зарина","Аделевна","К4-169",7,0,0,1,2,0,10,4,4]
[105,"Советский район","МБОУ \"Лицей №159 имени С.Х.Загидуллиной\" Советского района г. Казани","Германов","Даниил","Антонович","К4-176",0,7,0,1,2,0,10,4,4]
[106,"Мензелинский район","МБОУ \"СОШ №3\"","Сахапов","Амир","Артурович","Н4-027",0,7,0,0,3,0,10,4,4]
[107,"Лениногорский район","МБОУ \"Средняя общеобразовательная школа №7 г. Лениногорска\" муниципального образования \"Лениногорский муниципальный район\" РТ","Шрам","Есения","Вадимовна","А4-003",7,0,0,0,2,0,9,4,4]
[108,"Бугульминский район","МБОУ гимназия №7 Бугульминского муниципального района Республики Татарстан","Гафуров","Эмиль","Равилевич","А4-010",7,0,0,1,1,0,9,4,4]
[109,"Лениногорский район","МБОУ \"Средняя общеобразовательная школа №5\" муниципального образования \"Лениногорский муниципальный район\" Республики Татарстан","Квашин","Кирилл","Владимирович","А4-033",7,0,0,0,2,0,9,4,4]
[110,"Лаишевский район","МБОУ \"Многопрофильный лицей \"Инноватика\" с.Усады Лаишевского муниципального района Республики Татарстан","Никифоров","Марк","Антонович","К4-013",0,7,1,0,1,0,9,3,4]
[111,"Московский район","МБОУ \"Гимназия №122 имени Ж.А.Зайцевой\" Московского района г.Казани","Герасимова","Анна","Владимировна","К4-028",7,0,0,0,2,0,9,4,4]
[112,"Приволжский район","МБОУ \"Лицей №83 - Центр образования\" Приволжского района г. Казани","Гиззатуллин","Амир","Айдарович","К4-033",7,0,0,1,1,0,9,4,4]
[113,"Зеленодольский район","МБОУ «Лицей №9 имени А. С. Пушкина Зеленодольского муниципального района Республики Татарстан»","Трофименко","Алексей","Артёмович","К4-039",0,7,0,1,1,0,9,4,4]
[114,"Ново-Савиновский район","МБОУ \"Гимназия № 179-центр образования\" Ново-Савиновского района г.Казани","Халиулин","Адель","Наилевич","К4-049",7,0,0,0,2,0,9,3,4]
[115,"Ново-Савиновский район","ГАОУ \"Полилингвальный комплекс \"Адымнар - путь к знаниям и согласию\" г.Казани (ул. Абдуллы Бичурина)","Деганов","Артем","Евгеньевич","К4-070",7,0,0,0,2,0,9,4,4]
[116,"Московский район","МБОУ \"Средняя общеобразовательная татарско-русская школа №34\" Московского района г.Казани","Петрухин","Глеб","Эдуардович","К4-086",7,0,0,1,1,0,9,4,4]
[117,"Приволжский район","МБОУ \"Гимназия №6\" Приволжского района г.Казани","Сафиуллин","Айдан","Альмирович","К4-115",0,7,0,0,2,0,9,4,4]
[118,"Ново-Савиновский район","МБОУ \"Гимназия №7 имени Героя России А.В.Козина\" Ново-Савиновского района г.Казани.","Галеева","Эрика","Радиковна","К4-121",0,7,0,0,2,0,9,4,4]
[119,"Ново-Савиновский район","ГАОУ \"Полилингвальный комплекс \"Адымнар - путь к знаниям и согласию\" г.Казани (ул. Бондаренко)","Гизатуллин","Роберт","Ренатович","К4-143",0,7,0,0,2,0,9,4,4]
[120,"Приволжский район","МБОУ \"Многопрофильный лицей №186 - \"Перспектива\" Приволжского района г.Казани","Ахмедова","Самира","Шавкатовна","К4-149",0,7,0,0,2,0,9,4,4]
[121,"Советский район","МБОУ \"Основная общеобразовательная школа №108\" Советского района г.Казани","Гайнутдинова","Даяна","Радмировна","К4-150",0,7,0,0,2,0,9,4,4]
[122,"Приволжский район","МБОУ \"Многопрофильный лицей №186 - \"Перспектива\" Приволжского района г.Казани","Закиров","Тимур","Ильдарович","К4-154",7,0,0,0,2,0,9,4,4]
[123,"Зеленодольский район","МБОУ «Гимназия №3 Зеленодольского муниципального района Республики Татарстан»","Лисовский","Никита","Алексеевич","К4-156",0,0,0,3,6,0,9,4,4]
[124,"Набережные Челны","МБОУ\"Центр образования - Гимназия №57 \"Притяжение\"","Закиева","Гузель","Ильдаровна","Н4-003",7,0,0,0,2,0,9,4,4]
[125,"Набережные Челны","МБОУ \"Средняя общеобразовательная школа №44 с углубленным изучением отдельных предметов\"","Зиннатуллина","Алина","Руслановна","Н4-020",7,0,0,0,2,0,9,4,4]
[126,"Нижнекамский район","МБОУ «Средняя общеобразовательная школа №15 с углубленным изучением отдельных предметов» Нижнекамского муниципального района Республики Татарстан","Мишурин","Арсений","Вячеславович","Н4-042",7,0,0,0,2,0,9,4,4]
[127,"Азнакаевский район","МБОУ \"Гимназия города Азнакаево\" Азнакаевского муниципального района Республики Татарстан","Газизуллин","Амирхан","Назятович","А4-013",7,0,0,0,1,0,8,4,4]
[128,"Нурлатский район","МБОУ \"Среднекамышлинская средняя общеобразовательная школа Нурлатского муниципального района Республики Татарстан\"","Кульметьева","Ульяна","Маратовна","А4-023",7,0,0,0,1,0,8,4,4]
[129,"Бугульминский район","МБОУ  средняя общеобразовательная школа №6 с углубленным изучением отдельных предметов Бугульминского муниципального района  Республики Татарстан","Мавлютова","Зарина","Радиковна","А4-028",7,0,0,0,1,0,{"$f":"H131+I131+J131+K131+L131+M131","v":8},4,4]
[130,"Чистопольский район","МБОУ « Гимназия № 1» Чистопольского муниципального района Республики Татарстан","Касаткин","Артём","Сергеевич","А4-032",7,0,0,0,1,0,8,4,4]
[131,"Зеленодольский район","МБОУ «Лицей №14» Зеленодольского муниципального района Республики Татарстан","Максимов","Матвей","Александрович","К4-004",0,7,0,0,1,0,8,4,4]
[132,"Сабинский район","МБОУ «Центр образования \"Оникс\" для одаренных детей»  Сабинского муниципального района Республики Татарстан","Попов","Даниил","Ренатович","К4-018",0,7,0,0,1,0,8,4,4]
[133,"Советский район","МБОУ \"Средняя общеобразовательная школа №15 с углубленным изучением отдельных предметов\" Советского района г.Казани","Цыганова","Дарья","Алексеевна","К4-036",7,0,0,1,0,0,8,4,4]
[134,"Ново-Савиновский район","МБОУ \"Гимназия № 179-центр образования\" Ново-Савиновского района г.Казани","Закирзянов","Руслан","Артурович","К4-047",0,7,0,1,0,0,8,3,4]
[135,"Ново-Савиновский район","МБОУ \"Многопрофильный лицей №170\" Ново-Савиновского района г.Казани.","Гиниятуллин","Марсель","Алмазович","К4-067",0,7,0,0,1,0,8,4,4]
[136,"Авиастроительный район","МБОУ \"Гимназия  N36\" Авиастроительного района г. Казани","Галиуллин","Булат","Динарович","К4-074",7,0,0,0,1,0,8,4,4]
[137,"Сабинский район","МБОУ «Центр образования \"Оникс\" для одаренных детей»  Сабинского муниципального района Республики Татарстан","Тахаутдинова","Камиля","Рафисовна","К4-116",0,7,0,0,1,0,8,4,4]
[138,"Ново-Савиновский район","МБОУ \"Гимназия №7 имени Героя России А.В.Козина\" Ново-Савиновского района г.Казани.","Васильев","Аскар","Георгиевич","К4-132",0,7,0,0,1,0,8,4,4]
[139,"Зеленодольский район","МБОУ «Лицей №9 имени А. С. Пушкина Зеленодольского муниципального района Республики Татарстан»","Хамидуллин","Адель","Радикович","К4-136",7,0,0,0,1,0,8,4,4]
[140,"Пестречинский район","МБОУ Технологический Лицей \"Алгоритм\"","Галиева","Зарина","Зульфатовна","К4-144",7,0,0,0,1,0,8,4,4]
[141,"Высокогорский район","МБОУ \" Мульминская средняя общеобразовательная школа Высокогорского муниципального района Республики Татарстан\"","Ахунзянова","Айзиля","Даниловна","К4-148",0,7,0,0,1,0,8,4,4]
[142,"Набережные Челны","МБОУ \"Гимназия №26\"","Кашапов","Карим","Наркизович","Н4-002",7,0,0,0,1,0,8,4,4]
[143,"Менделеевский район","МБОУ «Средняя общеобразовательная школа № 1 имени Героя Советского Союза М.С. Фомина г. Менделеевска»  Менделеевского муниципального района Республики Татарстан","Салаватуллин","Нияз","Рамилевич","Н4-034",7,0,0,1,0,0,8,4,4]
[144,"Набережные Челны","МБОУ \"Средняя общеобразовательная школа \"Центр образования №62\"","Сабирова","Разалина","Рамилевна","Н4-040",0,7,0,0,1,0,8,4,4]
[145,"Набережные Челны","МБОУ \"Пушкинский пролицей №78\"","Антонова","Яна","Николаевна","Н4-060",7,0,0,0,1,0,8,4,4]
[146,"Набережные Челны","МБОУ \"Гимназия №26\"","Мансуров","Султан","Маратович","Н4-062",7,0,0,0,1,0,8,4,4]
[147,"Чистопольский район","МБОУ « Гимназия № 3» Чистопольского муниципального района Республики Татарстан","Мунин","Илья","Денисович","А4-002",0,7,0,0,0,0,7,4,4]
[148,"Сармановский район","МБОУ \"Джалильская гимназия\" Сармановского муниципального района Республики Татарстан","Бахтегараев","Инзар","Ильнарович","А4-029",7,0,0,0,0,0,7,4,4]
[149,"Советский район","МБОУ \"Средняя общеобразовательная школа №167 с углубленным изучением отдельных предметов\" Советского района г. Казани","Филиппов","Артём","Вячеславович","К4-083",7,0,0,0,0,0,7,4,4]
[150,"Приволжский район","МБОУ \"Лицей №83 - Центр образования\" Приволжского района г. Казани","Аниськин","Олег","Игоревич","К4-088",0,7,0,0,0,0,7,4,4]
[151,"Рыбно-Слободский район","МБОУ «Биектауская средняя общеобразовательная школа» Рыбно-Слободского муниципального района Республики Татарстан","Шарафиева","Гулина","Ильнуровна","К4-117",7,0,0,0,0,0,7,4,4]
[152,"Аксубаевский район","МБОУ \"Аксубаевская средняя общеобразовательная школа №2\" Аксубаевского муниципального района Республики Татарстан","Маклаков","Тимофей","Алексеевич","К4-127",0,7,0,0,0,0,7,4,4]
[153,"Приволжский район","МБОУ \"Многопрофильный лицей №186 - \"Перспектива\" Приволжского района г.Казани","Гизатуллин","Эмиль","Динарович","К4-130",7,0,0,0,0,0,7,4,4]
[154,"Аксубаевский район","МБОУ \"Аксубаевская средняя общеобразовательная школа №2\" Аксубаевского муниципального района Республики Татарстан","Пименов","Олег","Игоревич","К4-135",0,7,0,0,0,0,7,4,4]
[155,"Ново-Савиновский район","Муниципальное бюджетное общеобразовательное учреждение «Гимназия №7 имени Героя России А.В.Козина» Ново-Савиновского района г.Казани.","Морозова","Софья","Александровна","К4-159",7,0,0,0,0,0,7,4,4]
[156,"Московский район","МБОУ \"Гимназия №102 имени М.С.Устиновой\" Московского района города Казани","Хлыбова","Мирослава","Ивановна","К4-163",0,7,0,0,0,0,7,4,4]
[157,"Набережные Челны","МБОУ \"Средняя общеобразовательная школа №45 с углубленным изучением отдельных предметов\"","Сабаев","Никита","Михайлович","Н4-031",0,7,0,0,0,0,7,4,4]
[158,"Муслюмовский район","МБОУ Муслюмовский лицей Муслюмовкого муниципального района РТ","Аюпов","Раниль","Радикович","Н4-051",7,0,0,0,0,0,7,4,4]
[159,"Тукаевский район","МБОУ \"Бетькинская средняя общеобразовательная школа с углубленным изучением отдельных предметов\" Тукаевского района Республики Татарстан","Мусифуллин","Нияз","Айдарович","Н4-063",7,0,0,0,0,0,7,4,4]
[160,"Сабинский район","МБОУ \"Сатышевская средняя общеобразовательная школа Сабинского муниципального района Республики Татарстан им. Ш.З.Зиннурова\"","Фархуллина","Диля","Ильгизовна","К4-076",0,0,0,0,6,0,6,4,4]
[161,"Советский район","МБОУ \"Гимназия №183\" Советского района г.Казани","Шакирова","Лаура","Морисовна","К4-114",0,0,0,0,6,0,6,4,4]
[162,"Ново-Савиновский район","МБОУ \"Гимназия №7 имени Героя России А.В.Козина\" Ново-Савиновского района г.Казани.","Борисов","Сергей","Павлович","К4-172",0,0,0,0,6,0,6,4,4]
[163,"Зеленодольский район","МБОУ «Гимназия №3 Зеленодольского муниципального района Республики Татарстан»","Миронов","Матвей","Романович","К4-104",0,0,0,0,5,0,5,4,4]
[164,"Ново-Савиновский район","МБОУ \"Гимназия №7 имени Героя России А.В.Козина\" Ново-Савиновского района г.Казани.","Забиров","Камал","Ринатович","К4-125",0,0,0,0,5,0,5,4,4]
[165,"Заинский район","МБОУ \"Заинская средняя общеобразовательная школа №4\" Заинского муниципального района Республики Татарстан","Савгильдин","Демид","Максимович","Н4-012",0,0,0,0,5,0,5,4,4]
[166,"Мамадышский район","МБОУ \"Центр образования Лицей №2 имени академика Камиля Ахметовича Валиева города Мамадыш\" Мамадышского муниципального района Республики Татарстан","Шаймухаметова","Алла","Валерьевна","Н4-029",0,0,0,0,5,0,5,4,4]
[167,"Чистопольский район","МБОУ « Гимназия № 1» Чистопольского муниципального района Республики Татарстан","Темников","Кирилл","Александрович","А4-011",0,0,0,1,3,0,4,4,4]
[168,"Ново-Савиновский район","МАОУ \"Основная общеобразовательная школа №30\" Ново-Савиновского района г. Казани","Иванов","Халим","Артурович","К4-011",0,0,0,3,1,0,4,4,4]
[169,"Приволжский район","МБОУ \"Лицей №83 - Центр образования\" Приволжского района г. Казани","Камалетдинов","Алмаз","Ирекович","К4-044",0,0,0,0,4,0,4,3,4]
[170,"Зеленодольский район","МБОУ «Лицей №1 Зеленодольского муниципального района РТ»","Семёнова","Елизавета","Сергеевна","К4-092",0,3,0,0,1,0,4,4,4]
[171,"Ново-Савиновский район","МАОУ \"Основная общеобразовательная школа №30\" Ново-Савиновского района г. Казани","Аскарова","Риана","Тимуровна","К4-110",0,0,0,1,3,0,4,4,4]
[172,"Заинский район","МБОУ «Татарская гимназия имени Р.Ш. Фардиева» Заинского муниципального района Республики Татарстан.","Меркурьев","Ярослав","Сергеевич","Н4-019",0,0,0,0,4,0,4,4,4]
[173,"Мамадышский район","МБОУ \"Олуязский лицей\"","Мурзина","Зиля","Зульфатовна","Н4-038",0,0,0,0,4,0,4,4,4]
[174,"Набережные Челны","МБОУ \"Гимназия №26\"","Кузнецов","Всеволод","Николаевич","Н4-041",0,0,0,0,4,0,4,3,4]
[175,"Нижнекамский район","МБОУ \"Гимназия №32\" Нижнекамского муниципального района Республики Татарстан","Салахутдинов","Эмиль","Ильнарович","Н4-054",0,0,0,1,3,0,4,4,4]
[176,"Заинский район","МБОУ «Заинская средняя общеобразовательная школа № 7  с углубленным изучением отдельных предметов» Заинского муниципального района Республики Татарстан","Шаяхметов","Амир","Мунипович","Н4-057",0,0,0,0,4,0,4,4,4]
[177,"Бугульминский район","АНООО \"Прогимназия №14 \"Журавушка\" города Бугульмы","Саттаров","Амир","Равилевич","А4-007",0,0,0,1,2,0,3,4,4]
[178,"Альметьевский район","МБОУ – СОШ №6","Идрисов","Айнур","Рустемович","А4-012",0,0,0,1,2,0,3,4,4]
[179,"Азнакаевский район","МБОУ «Лицей №4 города Азнакаево» Азнакаевского муниципального района Республики Татарстан«Лицей № 4 г.Азнакаево»","Мухаметшин","Эмиль","Нафисович","А4-018",0,0,0,0,3,0,3,4,4]
[180,"Вахитовский район","МБОУ \"Гимназия №3\" Вахитовского района г. Казани","Курносова","Полина","Олеговна","К4-008",0,0,0,0,3,0,3,4,4]
[181,"Вахитовский район ","МБОУ \"Лицей №116 имени Героя Советского Союза А.С.Умеркина\"","Гайнуллин","Гумар","Ниязович","К4-027",0,0,0,0,3,0,3,4,4]
[182,"Арский район","МБОУ \"Арская средняя общеобразовательная школа №1 им. В.Ф.Ежкова с углубленным изучением отдельных предметов\" Арского муниципального района Республики Татарстан","Хасанова","Зарина","Айратовна","К4-029",0,0,0,0,3,0,3,4,4]
[183,"Аксубаевский район","МБОУ \"Старотимошкинкая средняя общеобразовательная школа\" Аксубаевского муниципального района Республики Татарстан","Шуркина","Радмира","Андреевна","К4-041",0,0,0,0,3,0,3,4,4]
[184,"Советский район","МБОУ \"Многопрофильная школа №181\" Советского района г.Казани","Щетинников","Александр","Сергеевич","К4-042",0,0,0,0,3,0,3,4,4]
[185,"Алексеевский район","МБОУ Алексеевская средняя общеобразовательная школа №3 им. Г.С. Боровикова Алексеевского муниципального района Республики Татарстан","Кузьмина","Афина","Петровна","К4-069",0,0,0,0,3,0,3,4,4]
[186,"Арский район","МБОУ \"Арская средняя общеобразовательная школа №1 им. В.Ф.Ежкова с углубленным изучением отдельных предметов\" Арского муниципального района Республики Татарстан","Нигметзянова","Риана","Рузелевна","К4-079",0,0,0,0,3,0,3,4,4]
[187,"Арский район","МБОУ \"Арская средняя общеобразовательная школа №1 им. В.Ф.Ежкова с углубленным изучением отдельных предметов\" Арского муниципального района Республики Татарстан","Нуриев","Карим","Салаватович","К4-113",0,0,0,0,3,0,3,4,4]
[188,"Приволжский район","МБОУ \"Лицей №83 - Центр образования\" Приволжского района г. Казани","Рамазанов","Рузаль","Рустемович","К4-128",0,0,0,0,3,0,3,3,4]
[189,"Ново-Савиновский район","МБОУ \"Гимназия № 179-центр образования\" Ново-Савиновского района г.Казани","Шакирова","Лейсан","Айнуровна","К4-133",0,0,0,0,3,0,3,4,4]
[190,"Набережные Челны","МБОУ \"Гимназия №26\"","Хамзин","Данэль","Зинфирович","Н4-013",0,0,0,0,3,0,3,4,4]
[191,"Набережные Челны","МБОУ «Средняя общеобразовательная школа №52» города Набережные Челны Республики Татарстан","Кафтаев","Алексей","Евгеньевич","Н4-023",0,0,0,1,2,0,3,4,4]
[192,"Заинский район","МБОУ  \"Заинская средняя общеобразовательная школа №6\" Заинского муниципального района Республики Татарстан","Тимеркаева","Рамина","Рушановна","Н4-032",0,0,0,0,3,0,3,4,4]
[193,"Нижнекамский район","МБОУ \"Гимназия №2\" имени Баки Урманче","Марданшина","Амина","Линаровна","Н4-043",0,0,0,0,1,2,{"$f":"H195+I195+J195+K195+L195+M195","v":3},4,4]
[194,"Актанышский район","ГАОУ  \"Гуманитарная гимназия-интернат для одаренных детей\"","Бакирова","Айзиля","Рузилевна","Н4-044",0,0,0,1,2,0,3,4,4]
[195,"Заинский район","МБОУ \"Заинская средняя общеобразовательная школа №4\" Заинского муниципального района Республики Татарстан","Гайнутдинов","Амир","Ильдарович","Н4-045",0,0,0,0,3,0,3,4,4]
[196,"Набережные Челны","МАОУ города Набережные Челны \"Средняя общеобразовательная школа №35 с углубленным изучением отдельных предметов\"","Сироткин","Иван","Дмитриевич","Н4-067",0,0,0,1,2,0,3,4,4]
[197,"Черемшанский район","МБОУ \"Староильмовская СОШ\"","Ратников","Константин","Олегович","А4-015",0,0,0,0,2,0,2,4,4]
[198,"Лениногорский район","МБОУ «Средняя общеобразовательная школа №2» муниципального образования \"Лениногорский муниципальный район\" Республики Татарстан","Рощупкин","Данил","Ильич","А4-027",0,0,0,0,2,0,2,4,4]
[199,"Московский район","Муниципальное бюджетное общеобразовательное учреждение \"Татарская гимназия №2 имени Шигабутдина Марджани при Казанском Федеральном Университете\" Московского района г.Казани","Нуруллин","Амин","Алмазович","К4-038",0,0,0,1,1,0,2,4,4]
[200,"Приволжский район","МБОУ «Гимназия №40»","Шагиев","Данил","Русланович","К4-082",0,0,0,0,2,0,2,"4",4]
[201,"Советский район","МБОУ \"Многопрофильный лицей №185\" Советского района г.Казани","Шакиров","Карим","Айратович","К4-118",0,0,0,0,2,0,2,4,4]
[202,"Лаишевский район","МБОУ \"Габишевская средняя общеобразовательная школа имени Махмута Ахметовича Гареева\" Лаишевского муниципального района Республики Татарстан","Хаялеев","Искандер","Динарович","К4-131",0,0,0,0,2,0,2,4,4]
[203,"Московский район","МБОУ \"Гимназия №94 имени Л.Н.Мурысина\" Московского района г. Казани","Валиев","Радэль","Радикович","К4-146",0,0,0,0,2,0,2,4,4]
[204,"Кукморский район","МБОУ «Кукморская средняя школа №3» Кукморского муниципального района Республики Татарстан","Халиуллин","Ранель","Ришатович","К4-161",0,0,0,0,2,0,2,4,4]
[205,"Балтасинский район","МБОУ \"Соснинская основная общеобразовательная школа\" Балтасинского муниципального района Республики Татарстан","Нуриев","Раян","Рамилевич","К4-165",0,0,0,0,2,0,2,4,4]
[206,"Советский район","Муниципальное бюджетное общеобразовательное учреждение \"Эколого-технологический лицей №79\" Советского района г. Казани","Саляхова ","Аделина ","Азизовна","К4-170",0,0,0,1,1,0,2,4,4]
[207,"Советский район","МБОУ \"Многопрофильная полилингвальная гимназия №180\" Советского района г. Казани","Ганиев","Султан","Ильнарович","К4-173",0,0,0,1,1,0,2,4,4]
[208,"Сабинский район","МБОУ \"Шеморданский лицей \"Рост\" Сабинского муниципального района Республики Татарстан\"","Галимов","Самир","Ильнарович","К4-177",0,0,0,0,2,0,2,4,4]
[209,"Елабужский район","МБОУ \"Инженерно-технологический лицей\" Елабужского муниципального района Республики Татарстан","Ибрагимов","Арслан","Тимурович","Н4-001",0,0,0,0,2,0,2,4,4]
[210,"Менделеевский район","МБОУ «Средняя общеобразовательная школа № 4 “Школа мужества и воинской славы”» Менделеевского муниципального района Республики Татарстан","Булатов","Вениамин","Ринатович","Н4-007",0,0,0,0,2,0,2,4,4]
[211,"Набережные Челны","МБОУ \"Средняя общеобразовательная школа №6\"","Галиева","Лейсан","Равилевна","Н4-009",0,0,0,0,2,0,2,4,4]
[212,"Набережные Челны","МАОУ  \"Гимназия №77\"","Быков","Эдгар","Владимирович","Н4-011",0,0,0,1,1,0,2,4,4]
[213,"Актанышский район","МБОУ \"Актанышская средняя общеобразовательная школа №2 с углубленным изучением отдельных предметов\" Актанышского муниципального района Республики Татарстан","Карамов","Максим","Линарович","Н4-025",0,0,0,0,2,0,2,4,4]
[214,"Набережные Челны","МАОУ города Набережные Челны «Средняя общеобразовательная школа №56»","Хамидуллина","Риана","Рустемовна","Н4-035",0,0,0,0,2,0,2,4,4]
[215,"Нижнекамский район","МБОУ \"Гимназия №2\" имени Баки Урманче","Зайнуллин","Тагир","Ильдарович","Н4-036",0,0,0,1,1,0,2,4,4]
[216,"Менделеевский район","МБОУ «Средняя общеобразовательная школа № 1 имени Героя Советского Союза М.С. Фомина г. Менделеевска»  Менделеевского муниципального района Республики Татарстан","Юлдашев","Ихтиёр","Бахтиерович","Н4-046",0,0,0,0,2,0,2,4,4]
[217,"Набережные Челны","МБОУ \"Средняя общеобразовательная школа №25\"","Плаксимов","Роман","Валентинович","Н4-050",0,0,0,0,2,0,2,4,4]
[218,"Мамадышский район","МБОУ \"Средняя общеобразовательная школа №1 города Мамадыш\"","Тюрин","Артур","Евгеньевич","Н4-052",0,0,0,1,1,0,2,4,4]
[219,"Менделеевский район","МБОУ «Средняя общеобразовательная школа № 1 имени Героя Советского Союза М.С. Фомина г. Менделеевска»  Менделеевского муниципального района Республики Татарстан","Колесникова","Анастасия","Сергеевна","Н4-059",0,0,0,1,1,0,2,4,4]
[220,"Мамадышский район","МБОУ \"Центр образования Лицей №2 имени академика Камиля Ахметовича Валиева города Мамадыш\" Мамадышского муниципального района Республики Татарстан","Садыков","Булат","Айзатович","Н4-064",0,0,0,0,2,0,2,4,4]
[221,"Нижнекамский район","МБОУ «Средняя общеобразовательная школа №28» Нижнекамского муниципального района Республики Татарстан","Юмагулова","Амина","Радиковна","Н4-065",0,0,0,0,2,0,2,4,4]
[222,"Альметьевский район","МАОУ \"Лицей №10\"","Лисачкин","Данила","Евгеньевич","А4-004",0,0,0,0,1,0,1,4,4]
[223,"Ютазинский район","МБОУ «Каракашлинская  основная общеобразовательная школа» Ютазинского муниципального  района Республики Татарстан.","Галиуллин","Амир","Ильясович","А4-006",0,0,0,0,1,0,1,4,4]
[224,"Азнакаевский район","МБОУ \"Средняя общеобразовательная школа №7 города Азнакаево\"   Азнакаево» Азнакаевского муниципального района Республики Татарстан","Кадырова","Амина","Фаритовна","А4-009",0,0,0,0,1,0,1,4,4]
[225,"Черемшанский район","МБОУ \"Черемшанский лицей\" Черемшанского муниципального района Республики Татарстан","Султанова","Диана","Ильдаровна","А4-014",0,0,0,0,1,0,1,4,4]
[226,"Альметьевский район","МБОУ - \"СОШ №25 им.70-летия нефти Татарстана\"","Каримов","Амир","Алмазович","А4-016",0,0,0,0,1,0,1,4,4]
[227,"Нурлатский район","МАОУ \"Средняя общеобразовательная школа №2\" г.Нурлат Республики Татарстан","Мифтахутдинов","Рамазан","Ринатович","А4-019",0,0,0,0,1,0,1,4,4]
[228,"Чистопольский район","МБОУ « Гимназия № 1» Чистопольского муниципального района Республики Татарстан","Головин","Степан","Артемович","А4-021",0,0,0,0,1,0,1,4,4]
[229,"Альметьевский район","МАОУ \"Лицей №2\" г. Альметьевска РТ","Асреева","Элиана","Эмильевна","А4-022",0,0,0,1,0,0,1,4,4]
[230,"Бугульминский район","МБОУ средняя общеобразовательная школа №4 Бугульминского муниципального района Республики Татарстан","Фатхутдинов","Салават","Рустамович","А4-024",0,0,0,0,1,0,1,4,4]
[231,"Ютазинский район","МБОУ \"Уруссинская гимназия\"","Хабибулина","Розалина","Витальевна","А4-026",0,0,0,1,0,0,1,4,4]
[232,"Нурлатский район","МАОУ \"Нурлатская гимназия им. М.Е. Сергеева» г.Нурлат Республики Татарстан","Долгов","Ярослав","Викторович","А4-030",0,0,0,0,1,0,1,4,4]
[233,"Азнакаевский район","МБОУ \"Средняя общеобразовательная школа № 1 города Азнакаево\" Азнакаевского муниципального района Республики Татарсан","Асибаков","Данияр","Раилевич","А4-035",0,0,0,0,1,0,1,4,4]
[234,"Альметьевский район","МАОУ – СОШ №16","Назмеев","Вильдан","Ильмирович","А4-036",0,0,0,0,1,0,1,4,4]
[235,"Ютазинский район","МБОУ \"Уруссинская гимназия\"","Маткомилов","Мухаммад","Искандарович","А4-038",0,0,0,0,1,0,1,4,4]
[236,"Азнакаевский район","МБОУ «Средняя общеобразовательная школа №5 с углубленным изучением английского языка» города Азнакаево Азнакаевского муниципального района Республики Татарстан","Хайруллина","Алиса","Рустамовна","А4-039",0,0,0,0,1,0,1,4,4]
[237,"Альметьевский район","МАОУ \"Лицей №10\"","Тимиров","Алан","Рустамович","А4-040",0,0,0,0,1,0,1,4,4]
[238,"Советский район","МАОУ для детей дошкольного и младшего школьного возраста «Прогимназия №29\" Советского района г.Казани","Полухин","Кирилл","Андреевич","К4-006",0,0,0,0,1,0,1,4,4]
[239,"Советский район","МАОУ \"Гимназия №141\" Советского района г.Казани","Исхаков","Закир","Рамилевич","К4-012",0,0,0,0,1,0,1,4,4]
[240,"Московский район","МБОУ \"Гимназия №122 имени Ж.А.Зайцевой\" Московского района г.Казани","Шегабутдинова","Ясмина","Тимуровна","К4-017",0,0,0,0,1,0,1,4,4]
[241,"Ново-Савиновский район","МБОУ \"Многопрофильный лицей №170\"","Файзрахманова ","Амина ","Руслановна ","К4-023",0,0,0,0,1,0,1,4,4]
[242,"Московский район","МБОУ \"Гимназия №94 имени Л.Н.Мурысина\" Московского района г. Казани","Матвеев","Леонид","Ильич","К4-032",0,0,0,0,1,0,1,4,4]
[243,"Кировский район","МБОУ \"Политехнический лицей №182\" Кировского района г.Казани","Усманов","Султан","Мансурович","К4-040",0,0,0,0,1,0,1,4,4]
[244,"Ново-Савиновский район","МБОУ \"Гимназия №107 \"Открытие\" Ново-Савиновского района г.Казани","Ганеева","Ясмина","Рустемовна","К4-048",0,0,0,0,1,0,1,4,4]
[245,"Советский район","МБОУ \"Средняя общеобразовательная школа №72 с углубленным изучением немецкого языка\" Советского района г.Казани","Филиппов","Антон","Александрович","К4-050",0,0,0,0,1,0,1,4,4]
[246,"Пестречинский район","МБОУ Технологический Лицей \"Алгоритм\"","Галиева","Ясмина","Раилевна","К4-058",0,0,0,0,1,0,1,4,4]
[247,"Вахитовский район ","МБОУ \"Средняя общеобразовательная школа №12\"","Изосимов","Михаил","Григорьевич","К4-071",0,0,0,0,1,0,1,4,4]
[248,"Высокогорский район","МБОУ \"Учхозская средняя общеобразовательная школа Высокогорского муниципального района Республики Татарстан\"","Апросина","Вера","Денисовна","К4-072",0,0,0,0,1,0,1,4,4]
[249,"Буинский район","МБОУ \"Лицей-интернат (школа для одаренных детей) г.Буинска РТ\"","Шарафутдинов","Самат","Ирекович","К4-077",0,0,0,0,1,0,1,4,4]
[250,"Авиастроительный район","МБОУ \"Средняя общеобразовательная школа с углубленным изучением отдельных предметов №62\" Авиастроительного района г.Казани","Долгова","Дарья","Денисовна","К4-089",0,0,0,0,1,0,1,4,4]
[251,"Вахитовский район","МАОУ \"СОШ № 39\"","Баянов ","Захар","Игоревич","К4-107",0,0,0,0,1,0,1,4,4]
[252,"Вахитовский район","МАОУ для детей, проявивших выдающиеся способности \"Средняя общеобразовательная школа-интернат \"Специализированный олимпиадно-научный центр \"СОлНЦе\" Вахитовского района г.Казани","Шайхутдинов","Мирзамалик","Маратович","К4-123",0,0,0,0,1,0,1,4,4]
[253,"Тетюшский район","МБОУ «Тетюшская средняя общеобразовательная школа №1 имени Героя Советского Союза Ханжина Павла Семеновича» Тетюшского муниципального района Республики Татарстан","Зюкалина","Екатерина","Павловна","К4-124",0,0,0,0,1,0,1,4,4]
[254,"Приволжский район","МБОУ \"Многопрофильный лицей №186 - \"Перспектива\" Приволжского района г.Казани","Мифтахов","Мурат","Айратович","К4-147",0,0,0,0,1,0,1,4,4]
[255,"Советский район","МБОУ «Многопрофильный лицей №187»","Давлетшина","Карима","Анасовна","К4-153",0,0,0,0,1,0,1,"4",4]
[256,"Ново-Савиновский район","ГАОУ \"Полилингвальный комплекс \"Адымнар - путь к знаниям и согласию\" г.Казани (ул. Бондаренко)","Ганиев","Салават","Марселевич","К4-167",0,0,0,1,0,0,1,4,4]
[257,"Советский район","Муниципальное бюджетное общеобразовательное учреждение \"Эколого-технологический лицей №79\" Советского района г. Казани","Шеберова","Самира","Евгеньевна","К4-171",0,0,0,1,0,0,{"$f":"H259+I259+J259+K259+L259+M259","v":1},4,4]
[258,"Актанышский район","ГАОУ  \"Гуманитарная гимназия-интернат для одаренных детей\"","Гафуров","Зиннур","Ильгизович","Н4-008",0,0,0,0,1,0,1,4,4]
[259,"Менделеевский район","МБОУ «Средняя общеобразовательная школа № 1 имени Героя Советского Союза М.С. Фомина г. Менделеевска»  Менделеевского муниципального района Республики Татарстан","Салаватуллин","Алмаз","Рамилевич","Н4-015",0,0,0,0,1,0,1,4,4]
[260,"Мамадышский район","МБОУ \"Центр образования Лицей №2 имени академика Камиля Ахметовича Валиева города Мамадыш\" Мамадышского муниципального района Республики Татарстан","Хакимова","Азалия","Фазыловна","Н4-021",0,0,0,0,1,0,1,4,4]
[261,"Тукаевский район","МБОУ «Малошильнинская средняя общеобразовательная школа» Тукаевского муниципального района Республики Татарстан","Олексенко","Лев","Юрьевич","Н4-022",0,0,0,0,1,0,1,4,4]
[262,"Набережные Челны","МБОУ\"Центр образования - Гимназия №57 \"Притяжение\"","Моисеев","Захар","Александрович","Н4-026",0,0,0,0,1,0,1,4,4]
[263,"Мензелинский район","МБОУ \"СОШ №3\"","Фазлиддинзода","Озарахш",null,"Н4-039",0,0,0,0,1,0,1,4,4]
[264,"Набережные Челны","МБОУ\"Центр образования - Гимназия №57 \"Притяжение\"","Дусманова","Алиса","Вадимовна","Н4-047",0,0,0,0,1,0,1,4,4]
[265,"Набережные Челны","МБОУ \"Средняя общеобразовательная школа №53\"","Гуцу","Дмитрий","Александрович","Н4-053",0,0,0,0,1,0,1,4,4]
[266,"Актанышский район","МБОУ \"Актанышская средняя общеобразовательная школа №1\" Актанышского муниципального района Республики Татарстан","Исламова","Райля","Маратовна","Н4-055",0,0,0,0,1,0,1,4,4]
[267,"Менделеевский район","Химико-технологический лицей №3 «Потомки Менделеева»","Маннапов","Ильмир","Раилович","Н4-056",0,0,0,1,0,0,1,4,4]
[268,"Набережные Челны","МБОУ «Полилингвальная гимназия № 59 «Адымнар-Чаллы»","Гараева","Камалия","Ильнуровна","Н4-058",0,0,0,0,1,0,1,4,4]
[269,"Ютазинский район","МБОУ \"Уруссинская гимназия\"","Габдрафиков","Ильдан","Азатович","А4-001",0,0,0,0,0,0,0,3,4]
[270,"Азнакаевский район","«МБОУ \"Средняя общеобразовательная школа №7 города Азнакаево\"   Азнакаево» Азнакаевского муниципального района Республики Татарстан","Каримов","Радмир","Ильдарович","А4-017",0,0,0,0,0,0,0,3,4]
[271,"Лениногорский район","МБОУ «Старо-Иштерякская основная общеобразовательная школа» муниципального образования \"Лениногорский муниципальный район\" Республики Татарстан","Хаматшин","Айдар","Фанисович","А4-025",0,0,0,0,0,0,0,4,4]
[272,"Вахитовский район","МБОУ \"Средняя общеобразовательная школа №12\" Вахитовского района г. Казани","Ситдиков","Данис","Дамирович","К4-037",0,0,0,0,0,0,0,4,4]
[273,"Высокогорский район","МБОУ \"Высокогорская средняя общеобразовательная школа № 1 Высокогорского муниципального района Республики Татарстан\"","Туктаров","Анвар","Рамилевич","К4-055",0,0,0,0,0,0,0,4,4]
[274,"Московский район","МБОУ «Гимназия №122 им. Ж. А. Зайцевой»","Куринова","Екатерина","Дмитриевна","К4-068",0,0,0,0,0,0,0,"4",4]
[275,"Зеленодольский район","МБОУ «Гимназия №3 Зеленодольского муниципального района Республики Татарстан»","Ильин","Ярослав","Вадимович","К4-073",0,0,0,0,0,0,0,4,4]
[276,"Зеленодольский район","МБОУ «Лицей №1 Зеленодольского муниципального района РТ»","Мингазутдинов","Мансур","Радикович","К4-103",0,0,0,0,0,0,0,4,4]
[277,"Кукморский район","МБОУ \"Средняя общеобразовательная школа им. С.А. Ахтямова с. Манзарас» Кукморского муниципального района Республики Татарстан","Фасхетдинова","Ханифа","Ильнаровна","К4-120",0,0,0,0,0,0,0,4,4]
[278,"Сабинский район","МБОУ \"Изминская средняя общеобразовательная школа Сабинского муниципального района Республики Татарстан\"","Габдрахманов","Фидан","Фанилевич","К4-145",0,0,0,0,0,0,0,4,4]
[279,"Зеленодольский район","МБОУ «Лицей №1 Зеленодольского муниципального района РТ»","Решеткин","Тимофей","Алексеевич","К4-158",0,0,0,0,0,0,0,4,4]
[280,"Советский район","МБОУ \"Средняя общеобразовательная школа №169\" Советского района г.Казани","Белоусов","Никита","Андреевич","К4-160",0,0,0,0,0,0,0,4,4]
[281,"Мамадышский район","МБОУ \"Средняя общеобразовательная школа №3 города Мамадыш\" Мамадышского муниципального района Республики Татарстан","Телешева","Екатерина","Сергеевна","Н4-006",0,0,0,0,0,0,0,4,4]
[282,"Нижнекамский район","МБОУ \"Гимназия №25\" Нижнекамского муниципального района Республики Татарстан","Мамедов","Араз","Аризович","Н4-014",0,0,0,0,0,0,0,4,4]
[283,"Нижнекамский район","МБОУ \"Лицей №14\" Нижнекамского муниципального района Республики Татарстан","Нургалиев","Эрик","Тимурович","Н4-024",0,0,0,0,0,0,0,4,4]
[284,"Набережные Челны","МБОУ \"Средняя общеобразовательная школа №32 с углубленным изучением отдельных предметов\";","Нигматуллин","Егор","Айнурович","Н4-066",0,0,0,0,0,0,0,4,4]

{"sheet":"5 кл","index":1,"n_rows":292,"n_cols":16,"rows_kept":292,"merged":[[0,0,0,15]]}
["Итоговый протокол заключительного этапа республиканской олимпиады по математике 2024-2025 уч.год "]
["№","Район","Название ОУ","Фамилия","Имя","Отчество","Шифр","1","2","3","4","5","6","Итого","Класс","Класс участия"]
[1,"Московский район","МАОУ \"Лицей-интернат №2\" Московского района г.Казани","Миндубаев","Булат","Рифкатович","К5-105",7,7,7,7,0,6,{"$f":"SUM(H3:M3)","v":34},5,5]
[2,"Набережные Челны","МБОУ \"Гимназия №26\"","Мухаметзянов","Альберт","Ленарович","Н5-045",7,7,7,3,7,3,34,5,5]
[3,"Вахитовский район","МБОУ \"Гимназия №96\" Вахитовского района г.Казани.","Шмаков","Дмитрий","Ильич","К5-077",7,7,7,7,0,0,28,5,5]
[4,"Набережные Челны","МБОУ \"Гимназия №26\"","Моор","Максим","Станиславович","Н5-009",7,7,7,6,1,0,28,5,5]
[5,"Набережные Челны","МБОУ \"Гимназия №26\"","Кожуховский","Кирилл","Глебович","Н5-033",7,6,7,7,0,0,27,5,5]
[6,"Набережные Челны","МБОУ\"Центр образования - Гимназия №57 \"Притяжение\"","Хамидуллин","Эмиль","Дамирович","Н5-039",7,6,7,7,0,0,27,5,5]
[7,"Приволжский район","МБОУ \"Гимназия №52\" Приволжского района г.Казани","Фаттахов","Амирхан","Вильдарович","К5-076",7,7,5,1,6,0,26,5,5]
[8,"Зеленодольский район","МБОУ «Гимназия №3 Зеленодольского муниципального района Республики Татарстан»","Ерамасов","Арсений","Андреевич","К5-093",7,5,7,7,0,0,26,5,5]
[9,"Вахитовский район","СОШИ «Лицей им. Н. И. Лобачевского» КФУ","Талапина","Елизавета","Николаевна","К5-140",7,5,7,7,0,0,26,"5",5]
[10,"Московский район","МАОУ \"Лицей-интернат №2\" Московского района г.Казани","Нигметзянов","Радмир ","Маратович","К5-028",7,7,4,7,0,0,25,5,5]
[11,"Вахитовский район","СОШИ \"Лицей имени Н.И. Лобачевского\" федерального государственного автономного образовательного учреждения высшего образования \"Казанский (Приволжский) федеральный университет\"","Сулейманова","Альфия","Ильгамовна","К5-138",7,4,7,7,0,0,25,5,5]
[12,"Московский район","МАОУ \"Лицей-интернат №2\" Московского района г.Казани","Насыбуллин","Тимур","Русланович","К5-115",7,6,7,0,0,4,24,5,5]
[13,"Московский район","МАОУ \"Лицей-интернат №2\" Московского района г.Казани","Саубанов","Камиль","Ильдарович","К5-036",7,7,7,1,1,0,23,5,5]
[14,"Зеленодольский район","МБОУ «Гимназия №3 Зеленодольского муниципального района Республики Татарстан»","Митюнин","Кирилл","Максимович","К5-151",7,7,7,0,2,0,23,5,5]
[15,"Вахитовский район","СОШИ \"Лицей имени Н.И. Лобачевского\" федерального государственного автономного образовательного учреждения высшего образования \"Казанский (Приволжский) федеральный университет\"","Хадиев","Роберт","Рустемович","К5-162",7,7,5,1,0,3,23,5,5]
[16,"Советский район","МБОУ \"Средняя общеобразовательная школа №167 с углубленным изучением отдельных предметов\" Советского района г. Казани","Козибаева","Дания","Равшановна","К5-018",7,7,7,1,0,0,22,5,5]
[17,"Московский район","МАОУ \"Лицей-интернат №2\" Московского района г.Казани","Тимербаев","Табриз","Айдарович","К5-032",7,7,7,1,0,0,22,5,5]
[18,"Ново-Савиновский район","МБОУ \"Гимназия №7 имени Героя России А.В.Козина\" Ново-Савиновского района г.Казани.","Файзрахманов","Тимур","Эдуардович","К5-073",7,7,7,1,0,0,22,5,5]
[19,"Вахитовский район","МАОУ \"Средняя общеобразовательная школа №18 с углубленным изучением английского языка\" Вахитовского района города Казани","Душин","Михаил","Николаевич","К5-150",7,7,7,1,0,0,22,5,5]
[20,"Вахитовский район","МБОУ \"Гимназия №96\" Вахитовского района города Казани","Гайнанов","Ренат","Рунарович","К5-005",7,7,7,0,0,0,21,5,5]
[21,"Зеленодольский район","МБОУ «Гимназия №3 Зеленодольского муниципального района Республики Татарстан»","Низамиева","Камиля","Рафаелевна","К5-022",7,6,7,1,0,0,21,5,5]
[22,"Приволжский район","МАОУ \"Гимназия №19\" Приволжского района г. Казани","Рафикова","Арина","Ленаровна","К5-031",7,6,7,1,0,0,21,5,5]
[23,"Приволжский район","МБОУ \"Лицей №83 - Центр образования\" Приволжского района г. Казани","Гиниятуллин","Мурат","Маратович","К5-043",7,7,7,0,0,0,21,5,5]
[24,"Московский район","МАОУ \"Лицей-интернат №2\" Московского района г.Казани","Кудасов","Дмитрий","Николаевич","К5-081",7,6,7,1,0,0,21,5,5]
[25,"Вахитовский район","Лицей имени Н.И.Лобачевского КФУ","Ермаков","Кирилл","Артурович","К5-118",7,7,7,0,0,0,21,5,5]
[26,"Московский район","МАОУ \"Лицей-интернат №2\" Московского района г.Казани","Сараев","Михаил","Вадимович","К5-131",7,7,7,0,0,0,21,5,5]
[27,"Вахитовский район","СОШИ \"Лицей имени Н.И. Лобачевского\" федерального государственного автономного образовательного учреждения высшего образования \"Казанский (Приволжский) федеральный университет\"","Лазарев","Марк","Владимирович","К5-152",7,7,7,0,0,0,21,5,5]
[28,"Вахитовский район","СОШИ \"Лицей имени Н.И. Лобачевского\" федерального государственного автономного образовательного учреждения высшего образования \"Казанский (Приволжский) федеральный университет\"","Мазитов","Тимур","Артурович","К5-161",7,7,7,0,0,0,21,5,5]
[29,"Московский район","МАОУ \"Лицей-интернат №2\" Московского района г.Казани","Исламов","Тимур","Альбертович","К5-170",7,0,7,7,0,0,21,5,5]
[30,"Вахитовский район","СОШИ \"Лицей имени Н.И. Лобачевского\" федерального государственного автономного образовательного учреждения высшего образования \"Казанский (Приволжский) федеральный университет\"","Мингалимов","Самат","Ниязович","К5-177",7,7,7,0,0,0,21,5,5]
[31,"Приволжский район","МАОУ \"Гимназия №19\" Приволжского района г. Казани","Хайруллина","Диана","Даилевна","К5-197",7,0,7,7,0,0,21,5,5]
[32,"Набережные Челны","МАОУ города Набережные Челны «Лицей №78 им. А.С. Пушкина»","Шарипова","Амина","Ильнуровна","Н5-001",7,6,7,1,0,0,21,5,5]
[33,"Набережные Челны","МБОУ \"Гимназия №26\"","Баннов","Яков","Андреевич","Н5-010",7,7,7,0,0,0,21,5,5]
[34,"Нижнекамский район","МБОУ \"Гимназия №22\" Нижнекамского муниципального района Республики Татарстан","Латыпов","Султан","Радикович","Н5-023",7,0,7,7,0,0,21,5,5]
[35,"Нижнекамский район","МБОУ «Лицей-интернат №24» Нижнекамского муниципального района Республики Татарстан","Шайдуллин","Тимур","Ильшатович","Н5-041",7,0,7,7,0,0,21,5,5]
[36,"Приволжский район","МАОУ \"Гимназия №19\" Приволжского района г. Казани","Рамазанов","Тимирхан","Ильдарович","К5-026",7,7,5,1,0,0,20,5,5]
[37,"Вахитовский район","СОШИ \"Лицей имени Н.И. Лобачевского\" федерального государственного автономного образовательного учреждения высшего образования \"Казанский (Приволжский) федеральный университет\"","Зайнуллин","Раиль","Русланович","К5-062",7,6,7,0,0,0,20,5,5]
[38,"Приволжский район","МБОУ \"Лицей №83 - Центр образования\" Приволжского района г. Казани","Муртазина","Злата","Булатовна","К5-155",7,6,7,0,0,0,20,5,5]
[39,"Вахитовский район","МАОУ СОШИ \"СОлНЦе\"","Хасанова","Сылу","Ришатовна","К5-156",7,6,7,0,0,0,20,5,5]
[40,"Советский район","МАОУ \"Многопрофильный лицей №11\" Советского района г.Казань","Погодин","Роман","Максимович","К5-173",7,5,7,1,0,0,20,4,5]
[41,"Вахитовский район","СОШИ \"Лицей имени Н.И. Лобачевского\" федерального государственного автономного образовательного учреждения высшего образования \"Казанский (Приволжский) федеральный университет\"","Садыков","Сергей","Вадимович","К5-179",7,5,7,1,0,0,20,5,5]
[42,"Бугульминский район","МБОУ  средняя общеобразовательная школа № 9 Бугульминского муниципального района Республики Татарстан","Пермяков","Дмитрий","Андреевич","А5-018",7,4,7,1,0,0,19,5,5]
[43,"Вахитовский район","СОШИ \"Лицей имени Н.И. Лобачевского\" федерального государственного автономного образовательного учреждения высшего образования \"Казанский (Приволжский) федеральный университет\"","Пронин","Глеб","Сергеевич","К5-021",7,4,7,1,0,0,19,5,5]
[44,"Московский район","МАОУ \"Лицей-интернат №2\" Московского района г.Казани","Метеков","Мухаммад-Амин","Умарович","К5-071",7,7,4,1,0,0,19,5,5]
[45,"Вахитовский район","МАОУ для детей, проявивших выдающиеся способности \"Средняя общеобразовательная школа-интернат \"Специализированный олимпиадно-научный центр \"СОлНЦе\" Вахитовского района г.Казани","Арипов","Сулейман","Дамирович","К5-124",7,4,7,1,0,0,19,5,5]
[46,"Вахитовский район","МАОУ \"Средняя общеобразовательная школа №39 с углубленным изучением английского языка\" Вахитовского района г. Казани","Гатауллина","Ралина","Ринатовна","К5-164",7,7,4,1,0,0,19,5,5]
[47,"Вахитовский район","МАОУ для детей, проявивших выдающиеся способности \"Средняя общеобразовательная школа-интернат \"Специализированный олимпиадно-научный центр \"СОлНЦе\" Вахитовского района г.Казани","Попцова","Феодора","Валентиновна","К5-195",7,7,5,0,0,0,19,5,5]
[48,"Советский","МБОУ «Многопрофильная школа №181»","Кузнецова ","Мария ","Сергеевна","К5-008",7,4,7,0,0,0,18,"5",5]
[49,"Вахитовский район","СОШИ \"Лицей имени Н.И. Лобачевского\" федерального государственного автономного образовательного учреждения высшего образования \"Казанский (Приволжский) федеральный университет\"","Сараева","София","Вадимовна","К5-072",7,0,7,1,3,0,18,5,5]
[50,"Приволжский район","МБОУ \"Русско-татарская средняя общеобразовательная школа № 129\" Приволжского района г.Казани","Яруллин","Раиль","Динарович","К5-086",7,3,7,1,0,0,18,5,5]
[51,"Московский район","МАОУ \"Лицей-интернат №2\" Московского района г.Казани","Давыдов","Фёдор","Антонович","К5-111",7,4,7,0,0,0,18,5,5]
[52,"Ново-Савиновский район","МБОУ \"Лицей №177\" Ново-Савиновского района г. Казань","Костин","Максим","Владимирович","К5-158",7,4,7,0,0,0,18,5,5]
[53,"Высокогорский район","МБОУ «Высокогорская средняя общеобразовательная школа №5 имени братьев Максуди Высокогорского муниципального района Республики Татарстан»","Рамаев","Рифат","Рафаэлевич","К5-035",7,3,7,0,0,0,17,5,5]
[54,"Советский район","МАОУ \"Многопрофильный лицей №11\" Советского района г.Казань","Давлетшин","Дамир","Рустамович","К5-092",7,6,4,0,0,0,17,5,5]
[55,"Ново-Савиновский район","СУНЦ Инженерный лицей-интернат КНИТУ-КАИ","Петров","Никита","Сергеевич","К5-133",7,7,3,0,0,0,17,5,5]
[56,"Вахитовский район","СОШИ \"Лицей имени Н.И. Лобачевского\" федерального государственного автономного образовательного учреждения высшего образования \"Казанский (Приволжский) федеральный университет\"","Иманаев","Ибрагим","Ильгизович","К5-196",7,0,3,0,7,0,17,5,5]
[57,"Альметьевский район","МАОУ \"Инженерный лицей\"","Гарифуллина","Гульназ","Рамильевна","А5-013",7,4,3,1,1,0,16,5,5]
[58,"Московский район","МАОУ \"Лицей-интернат №2\" Московского района г.Казани","Махмутов","Карим","Эрикович","К5-015",7,1,7,1,0,0,16,5,5]
[59,"Приволжский район","МАОУ \"Гимназия №19\" Приволжского района г. Казани","Пигасов","Вячеслав","Сергеевич","К5-044",7,7,2,0,0,0,16,5,5]
[60,"Советский район","Муниципальное бюджетное общеобразовательное учреждение \"Многопрофильный лицей №185\" Советского района г.Казани","Хайруллов","Тимур","Робертович","К5-061",7,0,5,1,3,0,16,5,5]
[61,"Московский район","МАОУ \"Лицей-интернат № 2\" Московского района г.Казани","Хакимов","Амир","Рафаэлевич","К5-075",7,7,2,0,0,0,16,5,5]
[62,"Московский район","МАОУ \"Лицей-интернат №2\" Московского района г.Казани","Зиновьев","Руслан","Леонидович","К5-123",7,7,1,1,0,0,16,5,5]
[63,"Московский район","МАОУ \"Лицей-интернат №2\" Московского района г.Казани","Хайбуллов","Амин","Ильнарович","К5-169",7,2,7,0,0,0,16,5,5]
[64,"Вахитовский район","МАОУ для детей, проявивших выдающиеся способности \"Средняя общеобразовательная школа-интернат \"Специализированный олимпиадно-научный центр \"СОлНЦе\" Вахитовского района г.Казани","Шияпова","Зарина","Рамилевна","К5-194",7,0,7,1,0,1,16,5,5]
[65,"Бугульминский район","Муниципальное  бюджетное общеобразовательное учреждение  средняя общеобразовательная школа №6 с углубленным изучением отдельных предметов Бугульминского муниципального района  Республики Татарстан","Моисеев","Матвей","Алексеевич","А5-022",7,0,7,1,0,0,{"$f":"SUM(H67:M67)","v":15},5,5]
[66,"Лениногорский район","МБОУ  «Лицей № 12 г.Лениногорска» муниципального образования «Лениногорский муниципальный район» Республики Татарстан","Кашапова","Айгуль","Рафаиловна","А5-026",7,0,7,1,0,0,15,5,5]
[67,"Ново-Савиновский район","МБОУ \"Гимназия №7 имени Героя России А.В.Козина\" Ново-Савиновского района г.Казани.","Проскурякова","Вера","Андреевна","К5-020",7,5,3,0,0,0,15,5,5]
[68,"Ново-Савиновский район","МБОУ \"Средняя общеобразовательная школа №9 с углубленным изучением английского языка\" Ново-Савиновского района г. Казани","Хузина","Амиля","Айратовна","К5-074",7,0,7,1,0,0,15,5,5]
[69,"Московский район","МАОУ \"Лицей-интернат №2\" Московского района г.Казани","Ким","Раян","Робертович","К5-078",7,0,7,1,0,0,15,5,5]
[70,"Вахитовский район","СОШИ \"Лицей имени Н.И. Лобачевского\" федерального государственного автономного образовательного учреждения высшего образования \"Казанский (Приволжский) федеральный университет\"","Шаймарданов","Богдан","Ильнарович","К5-101",7,0,7,1,0,0,15,5,5]
[71,"Приволжский район","МБОУ\"Лицей №78 \"Фарватер\" Приволжского района г.Казани","Шигапов","Вильдан","Алмазович","К5-119",7,0,7,1,0,0,15,5,5]
[72,"Зеленодольский район","МБОУ «Лицей №1 Зеленодольского муниципального района РТ»","Чибинов","Карим","Русланович","К5-122",7,4,4,0,0,0,15,5,5]
[73,"Ново-Савиновский район","СУНЦ \"Инженерный лицей-интернат КНИТУ-КАИ\"","Косенков","Михаил","Юрьевич","К5-128",7,0,7,1,0,0,15,5,5]
[74,"Вахитовский район","СОШИ \"Лицей имени Н.И. Лобачевского\" федерального государственного автономного образовательного учреждения высшего образования \"Казанский (Приволжский) федеральный университет\"","Меховников","Марк","Арсеньевич","К5-141",0,7,7,1,0,0,15,5,5]
[75,"Вахитовский район","МАОУ для детей, проявивших выдающиеся способности \"Средняя общеобразовательная школа-интернат \"Специализированный олимпиадно-научный центр \"СОлНЦе\" Вахитовского района г.Казани","Ибатуллина","София","Айратовна","К5-149",0,7,7,1,0,0,15,5,5]
[76,"Атнинский район","МБОУ «Староузюмская основная общеобразовательная школа» Атнинского муниципального района","Ахметов","Алмаз","Айратович","К5-171",7,0,1,7,0,0,15,5,5]
[77,"Вахитовский район","МБОУ \"Лицей №116 имени Героя Советского Союза А.С.Умеркина\" Вахитовского района г.Казани","Хасанов","Айрат","Рифатович","К5-178",7,0,7,1,0,0,15,5,5]
[78,"Зеленодольский район","МБОУ «Гимназия №3 Зеленодольского муниципального района Республики Татарстан»","Егорушкин","Георгий","Павлович","К5-186",7,3,4,1,0,0,15,5,5]
[79,"Верхнеуслонский район","ГАОУ \"Школа Иннополис\"","Закиев","Камиль","Василевич","К5-192",7,5,3,0,0,0,15,5,5]
[80,"Набережные Челны","МБОУ \"Средняя общеобразовательная школа №19 с углубленным изучением отдельных предметов\"","Широв","Илья","Александрович","Н5-042",7,0,7,1,0,0,15,5,5]
[81,"Набережные Челны","МАОУ города Набережные Челны «Лицей №78 им. А.С. Пушкина»","Лебедева","София","Александровна","Н5-044",7,0,7,1,0,0,15,5,5]
[82,"Бугульминский район","МБОУ татарская гимназия №14 имени Хади Атласи Бугульминского муниципального района Республики Татарстан","Султанов","Марсель","Рафаэлевич","А5-011",0,7,7,0,0,0,14,5,5]
[83,"Азнакаевский район","МБОУ \"Гимназия города Азнакаево\" Азнакаевского муниципального района Республики Татарстан","Хазиахметова","Айсина","Ильнуровна","А5-021",7,0,7,0,0,0,14,5,5]
[84,"Сармановский район","МБОУ  \"Джалильская средняя общеобразовательная школа №2\" Сармановского муниципального района Республики Татарстан","Миназов","Муса","Ильдарович","А5-023",7,5,1,1,0,0,14,5,5]
[85,"Вахитовский район","МАОУ для детей, проявивших выдающиеся способности \"Средняя общеобразовательная школа-интернат \"Специализированный олимпиадно-научный центр \"СОлНЦе\" Вахитовского района г.Казани","Тухватова","Рузанна","Ильгизовна","К5-016",7,5,1,1,0,0,14,5,5]
[86,"Ново-Савиновский район","СУНЦ \"Инженерный лицей-интернат КНИТУ-КАИ\"","Туракалин","Максим","Александрович","К5-017",7,4,2,1,0,0,14,5,5]
[87,"Советский район","МБОУ \"Лицей №159 имени С.Х.Загидуллиной\" Советского района г. Казани","Гурьянов","Кирилл","Сергеевич","К5-037",0,0,7,7,0,0,14,5,5]
[88,"Сабинский район","МБОУ «Центр образования \"Оникс\" для одаренных детей»  Сабинского муниципального района Республики Татарстан","Никитина","Дарья","Антоновна","К5-042",7,3,1,0,3,0,14,5,5]
[89,"Вахитовский район","СОШИ \"Лицей имени Н.И. Лобачевского\" федерального государственного автономного образовательного учреждения высшего образования \"Казанский (Приволжский) федеральный университет\"","Попко","Николай","Денисович","К5-065",7,5,2,0,0,0,14,5,5]
[90,"Московский район","МБОУ \"СОШ татарско-русская школа № 34\" Московского района г.Казани","Салина","Виктория","Николаевна","К5-066",7,1,5,1,0,0,14,5,5]
[91,"Кировский район","МАОУ \"Гимназия-интернат №4\" Кировского района г.Казани","Замалетдинова","Амина","Ильнуровна","К5-094",7,0,7,0,0,0,14,5,5]
[92,"Сабинский район","МБОУ «Гимназия п.г.т. Богатые Сабы Сабинского муниципального района Республики Татарстан»","Шайдуллин","Адель","Рустемович","К5-100",7,2,5,0,0,0,14,5,5]
[93,"Лаишевский район","МБОУ \"Столбищенская средняя общеобразовательная школа имени Героя Советского Союза  Алексея Петровича Малышева\" Лаишевского района Республики Татарстан","Шакиров","Даниэль","Андреевич","К5-106",0,7,7,0,0,0,14,5,5]
[94,"Вахитовский район","МАОУ СОШИ «СОлНЦе»","Абульхаерова","Самира","Рузилевна","К5-109",7,3,4,0,0,0,14,5,5]
[95,"Вахитовский район","СОШИ \"Лицей имени Н.И. Лобачевского\" федерального государственного автономного образовательного учреждения высшего образования \"Казанский (Приволжский) федеральный университет\"","Костина","Юлия","Дмитриевна","К5-127",0,6,7,1,0,0,14,5,5]
[96,"Ново-Савиновский район","СУНЦ \"Инженерный лицей-интернат КНИТУ-КАИ\"","Чубаков","Александр","Юрьевич","К5-130",0,6,7,1,0,0,14,5,5]
[97,"Вахитовский район","МАОУ для детей, проявивших выдающиеся способности \"Средняя общеобразовательная школа-интернат \"Специализированный олимпиадно-научный центр \"СОлНЦе\" Вахитовского района г.Казани","Юсупова","Алиса","Андреевна","К5-136",7,0,7,0,0,0,14,5,5]
[98,"Балтасинский район","МБОУ \"Нурминская средняя общеобразовательная школа\" Балтасинского муниципального района Республики Татарстан","Марданов","Раян","Раушанович","К5-146",7,2,4,1,0,0,14,5,5]
[99,"Кукморский район","МБОУ «Кукморская средняя школа №3» Кукморского муниципального района Республики Татарстан","Галяветдинов","Амир","Айдарович","К5-148",7,0,7,0,0,0,14,5,5]
[100,"Московский район","Частное общеобразовательное учреждение средняя общеобразовательная школа \"Елена-Сервис\"","Шахмуратов","Максим","Тимурович","К5-172",7,0,7,0,0,0,14,5,5]
[101,"Ново-Савиновский район","МБОУ \"Средняя общеобразовательная школа №85 с углубленным изучением отдельных предметов\" Ново-Савиновского района г. Казани","Зеленихина","Александра","Ильинична","К5-181",7,0,7,0,0,0,14,5,5]
[102,"Московский район","МАОУ \"Лицей-интернат №2\" Московского района г.Казани","Никитин","Виктор","Анатольевич","К5-185",7,0,7,0,0,0,14,5,5]
[103,"Азнакаевский район","МБОУ «Лицей №4 города Азнакаево» Азнакаевского муниципального района Республики Татарстан«Лицей № 4 г.Азнакаево»","Давлетшин","Тимур","Рустемович","А5-028",7,0,5,1,0,0,13,5,5]
[104,"Советский район","МБОУ \"Гимназия №183\" Советского района г.Казани","Каримуллина","Дарья","Артёмовна","К5-027",7,0,5,1,0,0,13,5,5]
[105,"Вахитовский район","МАОУ \"Средняя общеобразовательная школа №39 с углубленным изучением английского языка\" Вахитовского района г. Казани","Майорова","Кира","Максимовна","К5-039",7,3,3,0,0,0,13,5,5]
[106,"Приволжский район","МБОУ \"Гимназия №6\" Приволжского района г.Казани","Закиров","Амирхан","Ленарович","К5-041",7,1,5,0,0,0,13,5,5]
[107,"Зеленодольский район","МБОУ «Лицей №1 Зеленодольского муниципального района РТ»","Печерская","Дарья","Андреевна","К5-052",7,4,2,0,0,0,13,5,5]
[108,"Зеленодольский район","МБОУ «Гимназия №3 Зеленодольского муниципального района Республики Татарстан»","Слепцова","Майя","Антоновна","К5-057",7,0,5,1,0,0,13,5,5]
[109,"Московский район","Муниципальное автономное общеобразовательное учреждение \"Лицей-интернат №2\" Московского района г.Казани","Гарипов","Ренар","Рамилевич","К5-059",0,6,7,0,0,0,13,5,5]
[110,"Вахитовский район","МБОУ \"Гимназия №96\" Вахитовского района города Казани","Шумник","Даниил","Александрович","К5-089",7,4,2,0,0,0,13,5,5]
[111,"Вахитовский район","Лицей имени Н.И.Лобачевского КФУ","Теперин","Яков","Александрович","К5-097",7,0,5,1,0,0,13,5,5]
[112,"Вахитовский район","ФГКОУ \"Казанское суворовское военное училище Министерства обороны Российской Федерации'","Мерзляков","Константин","Алексеевич","К5-112",7,4,2,0,0,0,13,5,5]
[113,"Вахитовский район","СОШИ \"Лицей имени Н.И. Лобачевского\" федерального государственного автономного образовательного учреждения высшего образования \"Казанский (Приволжский) федеральный университет\"","Зинатуллин","Максим","Альбертович","К5-126",7,0,3,3,0,0,13,5,5]
[114,"Ново-Савиновский район","Муниципальное автономное общеобразовательное учреждение  \"Лицей-интернат №7\" Ново-Савиновского района г. Казани","Исрафилов","Анас","Айратович","К5-139",7,0,5,1,0,0,13,5,5]
[115,"Советский район","МБОУ \"Средняя общеобразовательная школа №171 с углубленным изучением отдельных предметов\" Советского района г.Казани","Гизамов","Ахмад","Ильнурович","К5-147",7,4,2,0,0,0,13,5,5]
[116,"Набережные Челны","МАОУ города Набережные Челны «Гимназия №76»","Сабиров","Ранэль","Айратович","Н5-055",0,4,7,1,1,0,13,5,5]
[117,"Набережные Челны","МАОУ города Набережные Челны «Гимназия №76»","Мухаметшин","Тагир","Ильдарович","Н5-059",0,7,5,1,0,0,13,5,5]
[118,"Бугульминский район","МуОУ лицей №2 Бугульминского муниципального района Республики Татарстан","Хомяков","Семен","Артемович","А5-012",7,2,2,1,0,0,12,5,5]
[119,"Альметьевский район","МАОУ \"Лицей №2\" г. Альметьевска Республики Татарстан","Куприянова","Злата","Евгеньевна","А5-029",7,0,5,0,0,0,12,5,5]
[120,"Приволжский район","МАОУ \"Гимназия №139 - Центр образования\" Приволжского района г. Казани","Верхов","Адриан","Олегович","К5-012",7,0,3,1,1,0,12,5,5]
[121,"Вахитовский район","МАОУ \"Средняя общеобразовательная школа №39 с углубленным изучением английского языка\" Вахитовского района г. Казани","Николаев","Илья","Максимович","К5-014",7,0,5,0,0,0,12,5,5]
[122,"Советский район","МБОУ \"Средняя общеобразовательная школа №47\" Советского района г.Казани","Назмутдинова","Лана","Рафаэлевна","К5-033",7,3,2,0,0,0,12,5,5]
[123,"Советский район","МБОУ \"Многопрофильная школа №181\" Советского района г.Казани","Саляхов","Булат","Динарович","К5-096",7,1,4,0,0,0,12,5,5]
[124,"Ново-Савиновский район","МБОУ \"Многопрофильный лицей № 170\" Ново-Савиновского района г.Казани","Сибгатуллина","Алина","Альбертовна","К5-107",7,0,3,1,1,0,12,5,5]
[125,"Московский район","МБОУ \"Татарская гимназия №2 имени Шигабутдина Марджани при Казанском Федеральном Университете\" Московского района г.Казани","Вафина","Ралина","Ниязовна","К5-114",7,0,4,1,0,0,12,5,5]
[126,"Московский район","МАОУ \"Лицей-интернат№2\"","Ланцов","Матвей","Владимирович","К5-125",7,0,5,0,0,0,12,5,5]
[127,"Арский район","МБОУ \"Арская средняя общеобразовательная школа №1 им. В.Ф.Ежкова с углубленным изучением отдельных предметов\" Арского муниципального района Республики Татарстан","Каримуллин","Ильяс","Ильнарович","К5-159",7,4,0,1,0,0,12,5,5]
[128,"Приволжский район","Муниципальное бюджетное общеобразовательное учреждение «Гимназия №18 с татарским языком обучения - «Галэм» Приволжского района г. Казани","Маликова","Амелия","Рамилевна","К5-180",7,0,5,0,0,0,12,5,5]
[129,"Нижнекамский район","МБОУ «Лицей-интернат №24» Нижнекамского муниципального района Республики Татарстан","Кутуев","Роман","Александрович","Н5-025",7,0,4,1,0,0,{"$f":"SUM(H131:M131)","v":12},5,5]
[130,"Набережные Челны","МБОУ \"Гимназия №26\"","Ереметов","Владислав","Альбертович","Н5-047",7,0,4,1,0,0,12,5,5]
[131,"Альметьевский район","МАОУ \"Лицей №2\" г. Альметьевска Республики Татарстан","Фасхутдинов","Динар","Альбертович","А5-007",7,0,4,0,0,0,11,5,5]
[132,"Лениногорский район","МБОУ \"Средняя общеобразовательная школа №6 г.Лениногорска имени Героя России Исламова Дамира Назировича\" муниципального образования \"Лениногорский муниципальный район\" Республики Татарстан","Лапаскин","Илья","Артемович","А5-024",7,2,2,0,0,0,11,5,5]
[133,"Зеленодольский район","МБОУ «Гимназия №3 Зеленодольского муниципального района Республики Татарстан»","Мазанов","Семён","Владиславович","К5-030",7,0,3,1,0,0,11,5,5]
[134,"Московский район","МАОУ \"Лицей-интернат №2\" Московского района г.Казани","Самигуллин","Данияр","Эдуардович","К5-038",7,0,3,0,0,1,11,5,5]
[135,"Московский район","МАОУ \"Лицей-интернат №2\" Московского района г.Казани","Насыбуллин","Карим","Рузэлевич","К5-048",0,5,3,3,0,0,11,5,5]
[136,"Советский район","МБОУ \"Средняя общеобразовательная школа №167 с углубленным изучением отдельных предметов\" Советского района г. Казани","Миннуллин","Наиль ","Рамилевич","К5-060",7,0,4,0,0,0,11,5,5]
[137,"Кировский район","Муниципальное бюджетное общеобразовательное учреждение \"Политехнический лицей №182\" Кировского района г.Казани","Хасанова","Гузель","Рифатовна","К5-063",7,0,3,1,0,0,11,5,5]
[138,"Московский район","МБОУ \"Гимназия №122 имени Ж.А.Зайцевой\" Московского района г.Казани","Филипов","Данил","Денисович","К5-085",7,0,3,1,0,0,11,5,5]
[139,"Вахитовский район","СОШИ «Лицей им. Н. И. Лобачевского» КФУ","Бубнов","Дмитрий ","Андреевич","К5-088",0,0,7,1,3,0,11,"5",5]
[140,"Сабинский район","МБОУ «Центр образования \"Оникс\" для одаренных детей»  Сабинского муниципального района Республики Татарстан","Гаттарова","Амина","Азатовна","К5-091",0,4,7,0,0,0,11,5,5]
[141,"Ново-Савиновский район","МБОУ \"Гимназия №7 имени Героя России А.В.Козина\" Ново-Савиновского района г.Казани.","Азизов","Михаил","Дмитриевич","К5-102",7,0,4,0,0,0,11,5,5]
[142,"Зеленодольский район","МБОУ «Лицей №9 имени А. С. Пушкина Зеленодольского муниципального района Республики Татарстан»","Валиулин","Тамерлан","Русланович","К5-104",7,0,3,1,0,0,11,5,5]
[143,"Ново-Савиновский район","МАОУ  \"Лицей-интернат №7\" Ново-Савиновского района г. Казани","Хамидуллин","Ильяс","Ильнарович","К5-116",7,0,4,0,0,0,11,5,5]
[144,"Вахитовский район","СОШИ «Лицей им. Н. И. Лобачевского» КФУ","Хисамов","Азат","Маратович","К5-135",7,0,3,1,0,0,11,5,5]
[145,"Приволжский район","МАОУ \"Гимназия №139 - Центр образования\" Приволжского района г. Казани","Газизова","Ралина","Руслановна","К5-157",0,0,7,1,3,0,11,5,5]
[146,"Советский район","МБОУ \"Основная общеобразовательная школа №108\" Советского района г.Казани","Ахметов","Самат","Ришатович","К5-160",0,4,7,0,0,0,11,4,5]
[147,null,"Муниципальное бюджетное общаобразовательное учреждение \"Средняя общеобразовательная школа №72 с углубленным изучением немецкого языка\" Советского района г.Казани","Ханнанов","Марсель","Рафаэлевич","К5-165",0,4,7,0,0,0,11,5,5]
[148,"Набережные Челны","МБОУ\"Центр образования - Гимназия №57 \"Притяжение\"","Камальдинов","Ринэль","Ленарович","Н5-004",7,2,2,0,0,0,11,5,5]
[149,"Елабужский район","МБОУ \"Многопрофильный лицей №10\" Елабужского муниципального района Республики Татарстан","Шумилов","Дмитрий","Владимирович","Н5-021",7,0,4,0,0,0,11,5,5]
[150,"Чистопольский район","МБОУ \"Гимназия №1\"","Габбасова","Самира","Маратовна","А5-005",7,0,2,1,0,0,10,5,5]
[151,"Бугульминский район","МБОУ татарская гимназия №14 имени Хади Атласи Бугульминского муниципального района Республики Татарстан","Мингалиев","Наиль","Рафисович","А5-009",7,0,3,0,0,0,10,5,5]
[152,"Нурлатский район","МАОУ \"Нурлатская гимназия им. М.Е. Сергеева» г.Нурлат Республики Татарстан","Тимофеева","Милена","Витальевна","А5-019",7,0,3,0,0,0,10,5,5]
[153,"Ютазинский район","МБОУ \"Уруссинская гимназия\"","Закирова","Эсмина","Ильдусовна","А5-025",7,0,3,0,0,0,10,5,5]
[154,"Вахитовский район","МАОУ для детей, проявивших выдающиеся способности \"Средняя общеобразовательная школа-интернат \"Специализированный олимпиадно-научный центр \"СОлНЦе\" Вахитовского района г.Казани","Тимганов","Ибрагим","Рафаэлевич","К5-011",7,0,3,0,0,0,10,5,5]
[155,"Арский район","МБОУ - Арская гимназия №5 Арского муниципального района Республики Татарстан","Мингазов","Данияр","Русланович","К5-034",7,0,3,0,0,0,10,5,5]
[156,"Вахитовский район","МАОУ для детей, проявивших выдающиеся способности \"Средняя общеобразовательная школа-интернат \"Специализированный олимпиадно-научный центр \"СОлНЦе\" Вахитовского района г.Казани","Бабичев","Арсений","Игоревич","К5-046",7,0,2,1,0,0,10,5,5]
[157,"Московский район","МАОУ \"Лицей-интернат №2\" Московского района г.Казани","Ханнанов","Карим","Ранисович","К5-056",7,0,3,0,0,0,10,5,5]
[158,"Пестречинский район","МБОУ \"Тат.Ходяшевская средняя общеобразовательная школа\"","Рузиев","Ильдар","Фирзантович","К5-070",7,0,2,1,0,0,10,5,5]
[159,"Вахитовский район","МАОУ для детей, проявивших выдающиеся способности \"Средняя общеобразовательная школа-интернат \"Специализированный олимпиадно-научный центр \"СОлНЦе\" Вахитовского района г.Казани","Леонтьева","Арина","Александровна","К5-080",7,0,0,0,3,0,10,5,5]
[160,"Ново-Савиновский район","МБОУ \"Гимназия № 179-центр образования\" Ново-Савиновского района г.Казани","Рыжов","Александр","Васильевич","К5-108",7,0,2,1,0,0,10,5,5]
[161,"Вахитовский район","СОШИ \"Лицей имени Н.И. Лобачевского\" федерального государственного автономного образовательного учреждения высшего образования \"Казанский (Приволжский) федеральный университет\"","Михайлова","Алиса","Витальевна","К5-153",0,7,3,0,0,0,10,5,5]
[162,"Московский район","МАОУ \"Лицей-интернат №2\" Московского района г.Казани","Шагивалеев","Ярхам","Рамилевич","К5-188",7,0,3,0,0,0,10,5,5]
[163,"Вахитовский район","МБОУ «Гимназия №27» Вахитовского района","Шафиков","Эмиль","Ильнарович","К5-191",0,2,7,1,0,0,10,"5",5]
[164,"Мензелинский район","МБОУ \"СОШ №3\"","Сысоев","Арсений","Денисович","Н5-007",7,0,2,1,0,0,10,5,5]
[165,"Набережные Челны","МБОУ \"Средняя общеобразовательная школа № 41\"","Валиахметова","Гульназ","Расиховна","Н5-019",0,3,7,0,0,0,10,5,5]
[166,"Бугульминский район","МБОУ  средняя общеобразовательная школа № 9 Бугульминского муниципального района Республики Татарстан","Андреев","Виктор","Дмитриевич","А5-003",0,2,7,0,0,0,9,5,5]
[167,"Черемшанский район","МБОУ \"Черемшанский лицей\" Черемшанского муниципального района Республики Татарстан","Замалетдинова","Айзиля","Ильнуровна","А5-031",7,0,1,1,0,0,9,5,5]
[168,"Советский район","МБОУ \"Лицей №110\" Советского района г. Казани","Сибгатуллин","Ильдар","Маратович","К5-001",0,2,7,0,0,0,9,5,5]
[169,"Приволжский район","МБОУ \"Лицей №83 - Центр образования\" Приволжского района г. Казани","Кунгурцев","Герман","Алексеевич","К5-029",7,1,1,0,0,0,9,5,5]
[170,"Ново-Савиновский район","МБОУ \"Многопрофильный лицей №170\" Ново-Савиновского района г.Казани.","Поронько","Дмитрий","Станиславович","К5-045",7,0,2,0,0,0,9,5,5]
[171,"Кировский район","Муниципальное бюджетное общеобразовательное учреждение \"Политехнический лицей №182\" Кировского района г.Казани","Шаронов","Владимир","Михайлович","К5-079",7,0,1,1,0,0,9,5,5]
[172,"Московский район","МАОУ \"Лицей-интернат №2\" Московского района г.Казани","Шарюков","Эльдар","Дамирович","К5-113",0,6,3,0,0,0,9,5,5]
[173,"Вахитовский район","Муниципальное бюджетное общеобразовательное учреждение «Лицей №116 имени Героя Советского Союза А.С.Умеркина» Вахитовского района г. Казани","Галиуллина","Мария","Эдуардовна","К5-142",7,0,2,0,0,0,9,5,5]
[174,"Приволжский","МБОУ «Средняя общеобразовательная школа №42 им. Героя России Д. Р. Гилемханова» Приволжского района г.Казани","Трашкова ","Антонина","Максимовна","К5-183",7,0,2,0,0,0,9,"5",5]
[175,"Набережные Челны","МАОУ города Набережные Челны «Лицей №78 им. А.С. Пушкина»","Хабибуллин","Карим","Ильдарович","Н5-024",7,0,1,1,0,0,9,5,5]
[176,"Елабужский район","МБОУ \"Инженерно-технологический лицей\" Елабужского муниципального района Республики Татарстан","Молчанова","Мелания","Игоревна","Н5-051",0,3,5,1,0,0,9,5,5]
[177,"Азнакаевский район","МБОУ \"Средняя общеобразовательная школа №3 поселка городского типа Актюбинский\" Азнакаевского муниципального района Республики Татарстан","Курбонов","Анвар","Азаматович","А5-015",7,0,1,0,0,0,8,5,5]
[178,"Приволжский район","МАОУ \"Гимназия №19\" Приволжского района г. Казани","Шарифуллин","Тимерхан","Айратович","К5-025",7,0,1,0,0,0,8,5,5]
[179,"Московский район","МАОУ \"Лицей-интернат №2\" Московского района г.Казани","Зарипов","Салават","Ленарович","К5-047",0,4,4,0,0,0,8,5,5]
[180,"Приволжский район","МБОУ «Лицей №83 - Центр образования» Приволжского района г. Казани","Ахтямов","Роберт","Айдарович","К5-068",0,0,7,1,0,0,8,5,5]
[181,"Вахитовский район","СОШИ \"Лицей имени Н.И. Лобачевского\" федерального государственного автономного образовательного учреждения высшего образования \"Казанский (Приволжский) федеральный университет\"","Куркин","Тимофей","Андреевич","К5-069",0,4,3,1,0,0,8,5,5]
[182,"Московский район","МАОУ \"Лицей-интернат №2\" Московского района г.Казани","Фахертдинов","Булат","Рифатович","К5-082",0,7,1,0,0,0,8,5,5]
[183,"Советский район","МБОУ \"Многопрофильный лицей №185\" Советского района г.Казани","Салмин","Роман","Евгеньевич","К5-087",0,1,7,0,0,0,8,5,5]
[184,"Московский район","МАОУ \"Лицей-интернат №2\" Московского района г.Казани","Нуруллин","Адель","Алмазович","К5-095",0,0,7,1,0,0,8,5,5]
[185,"Советский район","МБОУ \"Гимназия №175\" Советского района г.Казани","Трофимов","Захар","Дмитриевич","К5-098",7,0,1,0,0,0,8,5,5]
[186,"Кировский район","Муниципальное бюджетное общеобразовательное учреждение \"Средняя общеобразовательная школа №32\" Кировского района г. Казани","Корчагин","Илья","Геннадьевич","К5-117",0,6,1,1,0,0,8,5,5]
[187,"Московский район","МБОУ «Гимназия №20 \"Гармония\"» Московского района г. Казани","Новицкий","Дмитрий","Витальевич","К5-137",7,0,0,1,0,0,8,5,5]
[188,"Верхнеуслонский район","ГАОУ \"Школа Иннополис\"","Зимин","Егор","Александрович","К5-144",7,0,0,1,0,0,8,5,5]
[189,"Набережные Челны","МБОУ \"Гимназия №14\"","Валиуллин","Артём","Александрович","Н5-014",0,6,1,1,0,0,8,5,5]
[190,"Набережные Челны","МАОУ города Набережные Челны «Лицей №78 им. А.С. Пушкина»","Ахметшина","Мелита","Руслановна","Н5-016",0,0,7,1,0,0,8,5,5]
[191,"Набережные Челны","МБОУ \"Гимназия №26\"","Иванов","Мирон","Сергеевич","Н5-018",0,1,7,0,0,0,8,5,5]
[192,"Набережные Челны","МБОУ \"Гимназия №26\"","Бадретдинов","Тамерлан","Ильшатович","Н5-028",0,0,7,1,0,0,8,5,5]
[193,"Актанышский район","МБОУ \"Актанышская средняя общеобразовательная школа №2 с углубленным изучением отдельных предметов\" Актанышского муниципального района Республики Татарстан","Тимиров","Вильдан","Фидарисович","Н5-037",0,0,7,1,0,0,{"$f":"SUM(H195:M195)","v":8},5,5]
[194,"Набережные Челны","МБОУ\"Центр образования - Гимназия №57 \"Притяжение\"","Колосовский","Артемий","Евгеньевич","Н5-052",0,0,1,7,0,0,8,5,5]
[195,"Ютазинский район","МБОУ \"Уруссинская средняя общеобразовательная школа№2\" Ютазинского муниципального района Республики Татарстан","Шарафеев","Амир","Ильдарович","А5-002",7,0,0,0,0,0,7,5,5]
[196,"Лениногорский район","МБОУ  «Лицей № 12 г.Лениногорска» муниципального образования «Лениногорский муниципальный район» Республики Татарстан","Терентьев","Павел","Сергеевич","А5-027",0,4,2,1,0,0,7,5,5]
[197,"Арский район","МБОУ «Арская средняя общеобразовательная школа №6» Арского муниципального района Республики Татарстан","Ибрагимов","Айзат","Айнурович","К5-004",0,0,7,0,0,0,7,5,5]
[198,"Советский район","МБОУ \"Многопрофильный лицей №187\" Советского района г.Казани","Салимуллин","Камиль","Маратович","К5-006",0,0,7,0,0,0,7,5,5]
[199,"Ново-Савиновский район","МБОУ \"Гимназия №7 имени Героя России А.В.Козина\" Ново-Савиновского района г.Казани.","Самигуллин","Данис","Ильнурович","К5-024",0,0,7,0,0,0,7,5,5]
[200,"Кировский район","Муниципальное бюджетное общеобразовательное учреждение \"Политехнический лицей №182\" Кировского района г.Казани","Ильин","Илья","Ильич","К5-067",7,0,0,0,0,0,7,5,5]
[201,"Приволжский район","МАОУ \"Гимназия №19\" Приволжского района г. Казани","Нигматзянов","Эмиль","Рафаэлевич","К5-163",0,0,7,0,0,0,7,5,5]
[202,"Московский район","МАОУ \"Лицей-интернат №2\" Московского района г.Казани","Смородинов","Карим","Дмитриевич","К5-182",0,0,7,0,0,0,7,5,5]
[203,"Набережные Челны","МБОУ \"Средняя общеобразовательная школа №9\"","Зайнаков","Радель","Радикович","Н5-027",7,0,0,0,0,0,7,5,5]
[204,"Тукаевский район","МБОУ «Нижнесуыксинская СОШ»","Марданов","Булат","Маратович","Н5-034",0,4,3,0,0,0,7,5,5]
[205,"Набережные Челны","МБОУ «Средняя общеобразовательная школа №60»","Фролова","Анна","Михайловна","Н5-038",0,0,7,0,0,0,7,5,5]
[206,"Нижнекамский район","МБОУ «Лицей-интернат №24» Нижнекамского муниципального района Республики Татарстан","Зарипов","Амир","Ренатович","Н5-043",0,3,4,0,0,0,7,5,5]
[207,"Мамадышский район","МБОУ \"Центр образования Лицей №2 имени академика Камиля Ахметовича Валиева города Мамадыш\" Мамадышского муниципального района Республики Татарстан","Фасхутдинов","Марс","Маратович","Н5-057",0,0,7,0,0,0,7,5,5]
[208,"Набережные Челны","МАОУ города Набережные Челны «Лицей №78 им. А.С. Пушкина»","Иванова","Арина","Дмитриевна","Н5-061",0,0,7,0,0,0,7,5,5]
[209,"Альметьевский район","МАОУ \"Лицей №2\" г. Альметьевска РТ","Насртдинов","Данияр","Радикович","А5-030",0,3,3,0,0,0,6,5,5]
[210,"Московский район","МБОУ \"Татарская гимназия №2 имени Шигабутдина Марджани при Казанском Федеральном Университете\" Московского района г.Казани","Багаветдинов","Самат","Ленарович","К5-103",0,0,5,1,0,0,6,5,5]
[211,"Набережные Челны","МБОУ \"Средняя общеобразовательная школа №25\"","Казанцев","Ярослав","Максимович","Н5-003",0,0,3,3,0,0,6,5,5]
[212,"Набережные Челны","МБОУ\"Центр образования - Гимназия №57 \"Притяжение\"","Макарова","Радмила","Павловна","Н5-015",0,0,5,1,0,0,6,5,5]
[213,"Набережные Челны","МАОУ города Набережные Челны \"Лицей инновационных технологий №36\"","Жукова","Мария","Игоревна","Н5-032",0,2,3,1,0,0,6,5,5]
[214,"Вахитовский район","СОШИ \"Лицей имени Н.И. Лобачевского\" федерального государственного автономного образовательного учреждения высшего образования \"Казанский (Приволжский) федеральный университет\"","Парфенов","Денис","Эдуардович","К5-023",0,2,3,0,0,0,5,5,5]
[215,"Приволжский район","МАОУ \"Гимназия №139 - Центр образования\" Приволжского района г. Казани","Хасанова","Сафия","Аликовна","К5-050",0,0,5,0,0,0,5,5,5]
[216,"Вахитовский район","СОШИ \"Лицей имени Н.И. Лобачевского\" федерального государственного автономного образовательного учреждения высшего образования \"Казанский (Приволжский) федеральный университет\"","Варгина","Таисия","Сергеевна","К5-054",0,0,5,0,0,0,5,5,5]
[217,"Сабинский район","МБОУ \"Сабабашская основная общеобразовательная школа Сабинского муниципального района Республики Татарстан\"","Гаптерахимов","Ильяс","Расимович","К5-090",0,0,5,0,0,0,5,5,5]
[218,"Приволжский район","МАОУ \"Гимназия №19\" Приволжского района г. Казани","Иванов","Эрик","Вадимович","К5-120",0,0,4,1,0,0,5,5,5]
[219,"Приволжский район","МБОУ \"Татарско-русская средняя общеобразовательная школа №68 с углубленным изучением отдельных предметов\" Приволжского района г.Казани.","Шарифуллина","Гульшат","Рифатовна","К5-129",0,0,4,1,0,0,5,5,5]
[220,"Приволжский район","МАОУ \"Гимназия №19\" Приволжского района г. Казани","Гайнутдинов","Алим","Саидович ","К5-145",0,4,1,0,0,0,5,5,5]
[221,"Зеленодольский район","МБОУ «Гимназия №3 Зеленодольского муниципального района Республики Татарстан»","Шамановский","Михаил","Сергеевич","К5-154",0,2,3,0,0,0,5,5,5]
[222,"Кукморский район","МБОУ «Кукморская средняя школа №3» Кукморского муниципального района Республики Татарстан","Хафизов","Рияз","Раушанович","К5-166",0,0,5,0,0,0,5,5,5]
[223,"Приволжский район","МБОУ \"Лицей №83 - Центр образования\" Приволжского района г. Казани","Ершов","Илья","Дмитриевич","К5-176",0,1,3,1,0,0,5,5,5]
[224,"Набережные Челны","МБОУ\"Центр образования - Гимназия №57 \"Притяжение\"","Харлямов","Данияр","Данирович","Н5-006",0,0,5,0,0,0,5,5,5]
[225,"Заинский район","МБОУ \"Заинская средняя общеобразовательная школа №4\" ЗМР РТ","Белова","Дарья","Валерьевна","Н5-058",0,2,3,0,0,0,5,5,5]
[226,"Азнакаевский район","МБОУ \"Средняя общеобразовательная школа № 1 города Азнакаево\" Азнакаевского муниципального района Республики Татарсан","Нуриев","Айгиз","Шамилевич","А5-010",0,0,3,1,0,0,4,5,5]
[227,"Приволжский район","МАОУ \"Гимназия №19\" Приволжского района г. Казани","Сунгатуллин","Амир","Азатович","К5-002",0,0,3,1,0,0,4,5,5]
[228,"Сабинский район","МБОУ «Центр образования \"Оникс\" для одаренных детей»  Сабинского муниципального района Республики Татарстан","Радаев","Артем","Вячеславович","К5-003",0,0,3,1,0,0,4,5,5]
[229,"Алексеевский район","МБОУ «Алексеевская средняя общеобразовательная школа № 2 имени Героя Советского Союза Ивана Егоровича Кочнева Алексеевского муниципального района Республики Татарстан»","Славницков","Алексей","Владимирович","К5-040",0,0,3,1,0,0,4,5,5]
[230,"Ново-Савиновский район","СОШИ \"Инженерный лицей-интернат КНИТУ-КАИ\"","Комолов","Матвей","Андреевич","К5-051",0,0,4,0,0,0,4,5,5]
[231,"Вахитовский район","СОШИ Лицей им.Н.И. Лобачевского","Галеев","Айрат","Алмазович","К5-055",0,0,4,0,0,0,4,5,5]
[232,"Арский район","МБОУ «Старочурилинская средняя общеобразовательная школа» Арского муниципального района Республики Татарстан","Ахметова","Залина","Маратовна","К5-110",0,0,4,0,0,0,4,5,5]
[233,"Буинский район","МБОУ \"СОШ имени академика Р.З.Сагдеева \" Буинского муниципального района РТ","Аскарова","Диля","Дамировна","К5-132",3,1,0,0,0,0,4,5,5]
[234,"Буинский район","МБОУ \"Лицей-интернат (школа для одаренных детей) г.Буинска РТ\"","Мингалиев","Ильназ","Ильнарович","К5-175",0,0,4,0,0,0,4,5,5]
[235,"Ново-Савиновский район","МАОУ  \"Лицей-интернат №7\" Ново-Савиновского района г. Казани","Уткин","Илья","Дмитриевич","К5-189",0,4,0,0,0,0,4,5,5]
[236,"Зеленодольский район","Лицей № 9 им.А.С.Пушкина г.Зеленодольска","Гизатуллин","Тимур","Ленарович","К5-193",0,0,3,1,0,0,4,5,5]
[237,"Набережные Челны","МАОУ  \"Гимназия №77\"","Касакин","Матвей","Витальевич","Н5-049",0,0,3,1,0,0,4,5,5]
[238,"Лениногорский район","МБОУ «Средняя общеобразовательная школа №3 г.Лениногорска» муниципального образования «Лениногорский муниципальный район» Республики Татарстан","Муртазин","Камиль","Равилевич","А5-001",0,0,3,0,0,0,3,5,5]
[239,"Бугульминский район","МБОУ средняя общеобразовательная школа №3 с углубленным изучением отдельных предметов Бугульминского муниципального района Республики татарстан","Грачева","Таина","Артемовна","А5-004",0,0,2,1,0,0,3,5,5]
[240,"Нурлатский район","МАОУ \"Средняя общеобразовательная школа №2\" г.Нурлат Нурлатского муниципального района Республики Татарстан","Шувалов","Денис","Вячеславович","А5-006",0,0,2,1,0,0,3,5,5]
[241,"Бугульминский район","МБОУ  средняя общеобразовательная школа №6 с углубленным изучением отдельных предметов Бугульминского муниципального района  Республики Татарстан","Коледин","Егор","Валерьевич","А5-008",0,0,3,0,0,0,3,5,5]
[242,"Азнакаевский район","«МБОУ \"Средняя общеобразовательная школа №7 города Азнакаево\"   Азнакаево» Азнакаевского муниципального района Республики Татарстан","Шайдуллина","Лилиана","Рамиловна","А5-020",0,0,3,0,0,0,3,5,5]
[243,"Вахитовский район","СОШИ «Лицей им. Н. И. Лобачевского» КФУ","Хайрисламов","Амир","Айдарович","К5-007",0,0,2,1,0,0,3,"5",5]
[244,"Сабинский район","МБОУ «Центр образования \"Оникс\" для одаренных детей»  Сабинского муниципального района Республики Татарстан","Галимуллин","Нариман","Алимович","К5-009",0,2,0,1,0,0,3,5,5]
[245,"Приволжский район","МБОУ \"Лицей №83 - Центр образования\" Приволжского района г. Казани","Евдокимов","Назар","Сергеевич","К5-010",0,0,2,1,0,0,3,5,5]
[246,"Ново-Савиновский район","МБОУ \"Гимназия №7 имени Героя России А.В.Козина\" Ново-Савиновского района г.Казани.","Ягофарова","Камилла","Дамировна","К5-064",0,0,3,0,0,0,3,5,5]
[247,"Пестречинский район","МБОУ \"Ленино-Кокушкинская СОШ\"","Фасхутдинова","Малика","Руслановна","К5-099",0,0,2,1,0,0,3,5,5]
[248,"Сабинский район","МБОУ «Центр образования \"Оникс\" для одаренных детей»  Сабинского муниципального района Республики Татарстан","Валиев","Рияз","Эльмирович","К5-167",0,0,2,1,0,0,3,5,5]
[249,"Зеленодольский район","МБОУ «Лицей №1 Зеленодольского муниципального района РТ»","Мухаметшин","Ильдар","Рамилевич","К5-184",0,0,3,0,0,0,3,5,5]
[250,"Набережные Челны","МАОУ города Набережные Челны «Лицей №78 им. А.С. Пушкина»","Гилаева","Адиля","Айратовна","Н5-002",0,0,3,0,0,0,3,5,5]
[251,"Менделеевский район","МБОУ «СОШ №2»","Григорян","Арменак","Саркисович","Н5-020",0,0,3,0,0,0,3,5,5]
[252,"Елабужский район","МБОУ \"Гимназия №4\" Елабужского муниципального района Республики Татарстан","Загирова","Сафия","Рузилевна","Н5-029",0,0,2,1,0,0,3,5,5]
[253,"Нижнекамский район","МБОУ \"Лицей №35\" НМР РТ","Гадиев","Айдар","Ринатович","Н5-030",0,0,3,0,0,0,3,5,5]
[254,"Менделеевский район","Муниципальное бюджетное общеобразовательное учреждение «Средняя общеобразовательная школа № 1 имени Героя Советского Союза М.С. Фомина г. Менделеевска»  Менделеевского муниципального района Республики Татарстан","Мартынов","Кирилл","Владимирович","Н5-035",0,0,3,0,0,0,3,5,5]
[255,"Набережные Челны","МБОУ \"Средняя общеобразовательная школа №37 с углубленным изучением отдельных предметов\"","Нерсесьян","Александр","Павлович","Н5-048",0,0,2,1,0,0,3,5,5]
[256,"Нижнекамский район","МБОУ \"Гимназия №22\" Нижнекамского муниципального района Республики Татарстан","Алексеев","Кирилл","Викторович","Н5-053",0,0,3,0,0,0,3,5,5]
[257,"Актанышский район","МБОУ \"Татарско-Ямалинская основная общеобразовательная школа\" Актанышского муниципального района Республики Татарстан","Харисов","Нурислам","Назилович","Н5-062",0,0,3,0,0,0,{"$f":"SUM(H259:M259)","v":3},5,5]
[258,"Агрызский район","МБОУ Красноборская средняя общеобразовательная школа Агрызского муниципального района Республики Татарстан","Закиров","Амирхан","Булатович","Н5-064",0,1,2,0,0,0,3,5,5]
[259,"Азнакаевский район","МБОУ \"Гимназия города Азнакаево\" Азнакаевского муниципального района Республики Татарстан","Ахмерова","Эльвина","Маратовна","А5-014",0,0,2,0,0,0,2,5,5]
[260,"Чистопольский район","Муниципальное бюджетное общеобразовательное учреждение « Лицей № 1» Чистопольского муниципального района Республики Татарстан","Залялова","Лейла","Ильнуровна","А5-016",0,0,2,0,0,0,2,5,5]
[261,"Чистопольский район","МБОУ « Гимназия № 1» Чистопольского муниципального района Республики Татарстан","Хайруллина","Сабрина","Айдаровна","А5-017",0,0,2,0,0,0,2,5,5]
[262,"Ново-Савиновский район","МБОУ \"Многопрофильный лицей №170\" Ново-Савиновского района г.Казани.","Шаповал","Михаил","Денисович","К5-168",0,0,1,1,0,0,2,5,5]
[263,"Зеленодольский район","ГоБОУ «Васильевская кадетская школа-интернат имени Героя Советского Союза Николая Волостнова»","Мухаметзянов","Азамат","Русланович","К5-174",0,1,1,0,0,0,2,5,5]
[264,"Советский район","МБОУ \"Средняя общеобразовательная школа №72 с углубленным изучением немецкого языка\" Советского района г.Казани","Бочкарева","Мирослава","Васильевна","К5-190",0,0,2,0,0,0,2,5,5]
[265,"Актанышский район","МБОУ \"Поисевская СОШ\"","Хоснетдинов","Рустам","Альбертович","Н5-008",0,0,2,0,0,0,2,5,5]
[266,"Заинский район","МБОУ \"Заинская средняя общеобразовательная школа №1\" Заинского муниципального района Республики Татарстан","Гилязиева","Миляуша","Ришатовна","Н5-031",0,0,1,0,1,0,2,5,5]
[267,"Мамадышский район","МБОУ \"Средняя общеобразовательная школа №3 города Мамадыш\" Мамадышского муниципального района Республики Татарстан","Салахов","Арслан","Фанисович","Н5-036",0,0,2,0,0,0,2,5,5]
[268,"Набережные Челны","МАОУ города Набережные Челны «Лицей №78 им. А.С. Пушкина»","Хусаинова","Ралина","Алмазовна","Н5-040",0,0,2,0,0,0,2,5,5]
[269,"Тукаевский район","МБОУ  «Мусабай-Заводская средняя общеобразовательная школа»","Ахмедова","Альдина","Мурадовна","Н5-050",0,0,1,1,0,0,2,5,5]
[270,"Заинский район","МБОУ «Заинская средняя общеобразовательная школа № 7  с углубленным изучением отдельных предметов» Заинского муниципального района Республики Татарстан","Ахметзянова","Амина","Ринатовна","Н5-054",0,0,2,0,0,0,2,5,5]
[271,"Агрызский район","МБОУ средняя общеобразовательная школа №3 имени Тази Гиззата города Агрыз Агрызского муниципального района Республики Татарстан","Мифтахова","Айгуль","Ильдаровна","Н5-056",0,0,2,0,0,0,2,5,5]
[272,"Ново-Савиновский район","ГАОУ \"Полилингвальный комплекс \"Адымнар - путь к знаниям и согласию\" г.Казани (ул. Бондаренко)","Уразбахтин","Мухаммад","Марленович","К5-019",0,0,0,1,0,0,1,5,5]
[273,"Ново-Савиновский район","СОШИ \"Инженерный лицей-интернат КНИТУ-КАИ\"","Девятков","Дамир","Тимурович","К5-049",0,0,1,0,0,0,1,5,5]
[274,"Приволжский район","Автономная некоммерческая образовательная организация \"Международная школа Казани\"","Гафиятуллин","Галиаскар","Ниязович","К5-053",0,0,1,0,0,0,1,5,5]
[275,"Приволжский район","МАОУ \"Гимназия №19\" Приволжского района г. Казани","Абруков","Родион","Николаевич","К5-058",0,0,0,1,0,0,1,5,5]
[276,"Дрожжановский район","МБОУ \"Стародрожжановская сош №1\"","Гайфуллин","Раян","Наилевич","К5-134",0,0,0,1,0,0,1,5,5]
[277,"Набережные Челны","МАОУ  \"Гимназия №77\"","Кучугулов","Тимур","Романович","Н5-017",0,0,1,0,0,0,1,5,5]
[278,"Актанышский район","ГАОУ  \"Гуманитарная гимназия-интернат для одаренных детей\"","Имамова","Румия","Тимуровна","Н5-022",0,0,1,0,0,0,1,5,5]
[279,"Московский район","МБОУ \"Татарская гимназия №2 имени Шигабутдина Марджани при Казанском Федеральном Университете\" Московского района г.Казани","Фатахов","Марсель","Маратович","К5-013",0,0,0,0,0,0,0,5,5]
[280,"Советский район","МБОУ \"Многопрофильный лицей №185\" Советского района г.Казани","Тимербулатов","Амир","Ильгизович","К5-084",0,0,0,0,0,0,0,5,5]
[281,"Кукморский район","МБОУ «Ошторма-Юмьинская средняя школа» Кукморского муниципального района Республики Татарстан","Трофимов","Егор","Петрович","К5-143",0,0,0,0,0,0,0,5,5]
[282,"Приволжский район","МБОУ \"Лицей №83 - Центр образования\" Приволжского района г. Казани","Богданов","Владислав","Дмитриевич","К5-187",0,0,0,0,0,0,0,5,5]
[283,"Мамадышский район","МБОУ \"Центр образования Лицей №2 имени академика Камиля Ахметовича Валиева города Мамадыш\" Мамадышского муниципального района Республики Татарстан","Пестерев","Тимофей","Павлович","Н5-005",0,0,0,0,0,0,0,5,5]
[284,"Нижнекамский район","МБОУ «Лицей-интернат №24» Нижнекамского муниципального района Республики Татарстан","Бурганов","Салават","Тимурович","Н5-011",0,0,0,0,0,0,0,5,5]
[285,"Набережные Челны","МАОУ города Набережные Челны \"Средняя общеобразовательная школа №21\"","Миргаязов","Аяз","Айзатович","Н5-012",0,0,0,0,0,0,0,5,5]
[286,"Тукаевский район","МБОУ «Новотроицкая средняя общеобразовательная школа» Тукаевского муниципального района Республики Татарстан","Архипов","Егор","Сергеевич","Н5-013",0,0,0,0,0,0,0,5,5]
[287,"Тукаевский район","МБОУ \"Бетькинская средняя общеобразовательная школа с углубленным изучением отдельных предметов\" Тукаевского района Республики Татарстан","Агапов","Дмитрий","Юрьевич","Н5-026",0,0,0,0,0,0,0,5,5]
[288,"Набережные Челны","МАОУ города Набережные Челны «Средняя общеобразовательная школа №1»","Сунцов","Илья","Сергеевич","Н5-046",0,0,0,0,0,0,0,5,5]
[289,"Мензелинский район","МБОУ «Гимназия» г.Мензелинска Республики Татарстан","Шарифуллин","Тагир","Айдарович","Н5-060",0,0,0,0,0,0,0,5,5]
[290,"Мамадышский район","МБОУ \"Центр образования Лицей №2 имени академика Камиля Ахметовича Валиева города Мамадыш\" Мамадышского муниципального района Республики Татарстан","Савинов","Матвей","Вячеславович","Н5-063",0,0,0,0,0,0,0,5,5]

{"sheet":"6кл","index":2,"n_rows":264,"n_cols":16,"rows_kept":264}
["Итоговый протокол заключительного этапа республиканской олимпиады по математике 2024-2025 уч.год "]
["№","Район","Название ОУ","Фамилия","Имя","Отчество","Шифр","1","2","3",4,5,6,"итого","Класс","Класс участия"]
[1,"Московский район","МАОУ \"Лицей-интернат №2\" Московского района г.Казани","Шайдуллин","Карим","Илдарович","К6-031",7,7,7,7,7,7,{"$f":"SUM(H3:M3)","v":42},6,6]
[2,"Вахитовский район","СОШИ \"Лицей имени Н.И. Лобачевского\" федерального государственного автономного образовательного учреждения высшего образования \"Казанский (Приволжский) федеральный университет\"","Гаптрахманов","Айдар","Ринатович","К6-073",7,7,7,7,7,7,42,6,6]
[3,"Вахитовский район","МАОУ для детей, проявивших выдающиеся способности \"Средняя общеобразовательная школа-интернат \"Специализированный олимпиадно-научный центр \"СОлНЦе\" Вахитовского района г.Казани","Торнтон","Филип","Теодор","К6-126",7,7,7,7,7,7,42,6,6]
[4,"Вахитовский район","СОШИ \"Лицей имени Н.И. Лобачевского\" федерального государственного автономного образовательного учреждения высшего образования \"Казанский (Приволжский) федеральный университет\"","Чертилин","Леонид","Константинович","К6-134",7,7,7,7,7,7,42,6,6]
[5,"Набережные Челны","МБОУ \"Гимназия №26\"","Кожуховский","Григорий","Глебович","Н6-026",7,7,7,7,7,7,42,6,6]
[6,"Вахитовский район","СОШИ \"Лицей имени Н.И. Лобачевского\" федерального государственного автономного образовательного учреждения высшего образования \"Казанский (Приволжский) федеральный университет\"","Исламов","Сагит","Динарович","К6-171",7,7,7,6,7,7,41,6,6]
[7,"Вахитовский район","СОШИ \"Лицей имени Н.И. Лобачевского\" федерального государственного автономного образовательного учреждения высшего образования \"Казанский (Приволжский) федеральный университет\"","Асылгараева","Сафия","Радиковна","К6-027",7,7,6,6,7,7,40,6,6]
[8,"Вахитовский район","СОШИ \"Лицей имени Н.И. Лобачевского\" федерального государственного автономного образовательного учреждения высшего образования \"Казанский (Приволжский) федеральный университет\"","Габидуллина","Алия","Алмазовна","К6-007",7,7,6,6,6,7,39,6,6]
[9,"Вахитовский район","СОШИ \"Лицей имени Н.И. Лобачевского\" федерального государственного автономного образовательного учреждения высшего образования \"Казанский (Приволжский) федеральный университет\"","Русакова","Дарья","Александровна","К6-018",7,7,7,7,7,0,35,6,6]
[10,"Вахитовский район","СОШИ \"Лицей имени Н.И. Лобачевского\" федерального государственного автономного образовательного учреждения высшего образования \"Казанский (Приволжский) федеральный университет\"","Максимов","Филипп","Романович","К6-118",7,7,7,6,1,7,35,6,6]
[11,"Вахитовский район","СОШИ \"Лицей имени Н.И. Лобачевского\" федерального государственного автономного образовательного учреждения высшего образования \"Казанский (Приволжский) федеральный университет\"","Рамазанова","Азалия","Рустемовна","К6-093",7,7,6,7,0,7,34,6,6]
[12,"Ново-Савиновский район","СУНЦ \"Инженерный лицей-интернат КНИТУ-КАИ\"","Степанов","Егор","Васильевич","К6-109",7,7,6,0,7,7,34,6,6]
[13,"Вахитовский район","МАОУ для детей, проявивших выдающиеся способности \"Средняя общеобразовательная школа-интернат \"Специализированный олимпиадно-научный центр \"СОлНЦе\" Вахитовского района г.Казани","Халиуллов","Самат","Алмазович","К6-116",7,7,7,6,0,7,34,6,6]
[14,"Ново-Савиновский район","СУНЦ \"Инженерный лицей-интернат КНИТУ-КАИ\"","Гараев","Дамир","Маратович","К6-132",7,7,7,6,0,7,34,6,6]
[15,"Нижнекамский район","МБОУ «Лицей-интернат №24» Нижнекамского муниципального района Республики Татарстан","Володин","Аким","Владиславович","Н6-033",7,7,7,6,0,7,34,6,6]
[16,"Ново-Савиновский район","МБОУ \"Гимназия №7 имени Героя России А.В.Козина\" Ново-Савиновского района г.Казани.","Таймуллина","Арина","Андреевна","К6-157",7,7,6,6,0,7,33,6,6]
[17,"Ново-Савиновский район","СУНЦ \"Инженерный лицей-интернат КНИТУ-КАИ\"","Абдуллина","Ясмин","Маратовна","К6-162",7,7,6,6,0,7,33,6,6]
[18,"Вахитовский район","МАОУ для детей, проявивших выдающиеся способности \"Средняя общеобразовательная школа-интернат \"Специализированный олимпиадно-научный центр \"СОлНЦе\" Вахитовского района г.Казани","Кошмина","Татьяна","Николаевна","К6-163",7,7,6,6,0,7,33,6,6]
[19,"Ново-Савиновский район","СУНЦ Инженерный лицей-интернат КНИТУ-КАИ","Букатый","Матвей","Вячеславович","К6-170",7,7,7,0,5,6,32,6,6]
[20,"Набережные Челны","МБОУ \"Гимназия №26\"","Шарипов","Эдуард","Олегович","Н6-037",7,7,1,3,7,7,32,6,6]
[21,"Альметьевский район","МАОУ \"Инженерный лицей\"","Мусифуллин","Амир","Русланович","А6-004",7,7,0,4,7,6,31,6,6]
[22,"Советский район","МАОУ \"Многопрофильный лицей №11\" Советского района г.Казань","Карпеев","Кирилл","Андреевич","К6-057",7,7,7,3,0,7,31,6,6]
[23,"Советский район","МБОУ \"Средняя общеобразовательная школа №171 с углубленным изучением отдельных предметов\" Советского района г.Казани","Юнусов","Азамат","Марсович","К6-068",7,7,5,4,0,7,30,6,6]
[24,"Вахитовский район","МАОУ для детей, проявивших выдающиеся способности \"Средняя общеобразовательная школа-интернат \"Специализированный олимпиадно-научный центр \"СОлНЦе\" Вахитовского района г.Казани","Митина","Вероника","Александровна","К6-119",7,7,7,3,0,5,29,6,6]
[25,"Вахитовский район","СОШИ \"Лицей имени Н.И. Лобачевского\" федерального государственного автономного образовательного учреждения высшего образования \"Казанский (Приволжский) федеральный университет\"","Чистякова","Арина","Романовна","К6-178",7,7,5,3,0,7,29,6,6]
[26,"Нижнекамский район","МБОУ «Лицей-интернат №24» Нижнекамского муниципального района Республики Татарстан","Гимранов","Самир","Рустемович","Н6-001",7,7,5,7,0,3,29,6,6]
[27,"Ново-Савиновский район","СУНЦ Инженерный лицей-интернат КНИТУ-КАИ","Галялтдинов","Искандер","Камилевич","К6-083",7,7,7,0,0,7,28,6,6]
[28,"Вахитовский район","МБОУ \"Гимназия №96\" Вахитовского района города Казани","Лиске","Артур","Дмитриевич","К6-085",0,7,0,7,7,7,28,6,6]
[29,"Вахитовский район","СОШИ \"Лицей имени Н.И. Лобачевского\" федерального государственного автономного образовательного учреждения высшего образования \"Казанский (Приволжский) федеральный университет\"","Старостина","Милана","Алексеевна","К6-086",7,7,7,6,1,0,28,6,6]
[30,"Ново-Савиновский район","СУНЦ \"Инженерный лицей-интернат КНИТУ-КАИ\"","Александров","Андрей","Владимирович","К6-104",7,7,6,0,1,7,28,6,6]
[31,"Ново-Савиновский район","СУНЦ \"Инженерный лицей-интернат КНИТУ-КАИ\"","Файзиев","Булат","Фанисович","К6-107",7,7,7,0,7,0,28,6,6]
[32,"Ново-Савиновский район","СУНЦ Инженерный лицей-интернат КНИТУ-КАИ","Белков","Иван","Витальевич","К6-169",7,7,7,0,0,7,28,6,6]
[33,"Пестречинский район","МБОУ Технологический Лицей \"Алгоритм\"","Шакиров","Камиль","Марселевич","К6-182",7,7,0,4,7,3,28,6,6]
[34,"Заинский район","МБОУ  \"Заинская средняя общеобразовательная школа №6\" Заинского муниципального района Республики Татарстан","Боробов","Александр","Александрович","Н6-022",7,7,0,6,1,7,28,6,6]
[35,"Московский район","МАОУ \"Лицей-интернат №2\" Московского района г.Казани","Шигапов","Амир","Айдарович","К6-044",7,7,6,0,0,7,27,6,6]
[36,"Нижнекамский район","МБОУ «Лицей-интернат №24» Нижнекамского муниципального района Республики Татарстан","Каримов","Дамир","Тимурович","Н6-003",7,7,6,0,0,7,27,6,6]
[37,"Ново-Савиновский район","СУНЦ \"Инженерный лицей-интернат КНИТУ-КАИ\"","Козлов","Александр","Максимович","К6-054",7,7,3,6,0,3,26,5,6]
[38,"Московский район","МАОУ \"Лицей-интернат №2\" Московского района г.Казани","Соловьев","Ярослав","Игоревич","К6-061",7,7,6,3,0,3,26,6,6]
[39,"Советский район","МБОУ \"Средняя общеобразовательная школа №72 с углубленным изучением немецкого языка\" Советского района г.Казани","Горинов","Михаил","Максимович","К6-062",7,7,0,3,7,1,25,6,6]
[40,"Советский район","МБОУ \"Лицей 95\" Советского района г.Казани","Зиннатуллин","Самат","Артурович","К6-147",7,7,0,3,1,7,25,6,6]
[41,"Бугульминский район","МБОУ \"Татарская гимназия №14 имени Хади Атласи\" Бугульминского муниципального района Республики Татарстан","Мухаметвалеев","Айдан","Рудальевич","А6-019",7,7,0,3,1,6,24,6,6]
[42,"Бугульминский район","МБОУ  \"Средняя общеобразовательная школа № 9\" Бугульминского муниципального района Республики Татарстан","Андреев","Иван","Дмитриевич","А6-022",7,7,0,3,7,0,24,6,6]
[43,"Азнакаевский район","МБОУ \"Гимназия города Азнакаево\" Азнакаевского муниципального района Республики Татарстан","Нигматов","Нариман","Булатович","А6-023",7,7,0,3,0,7,24,6,6]
[44,"Московский район","МАОУ \"Лицей-интернат №2\" Московского района г.Казани","Газизуллин","Радмир","Раилевич","К6-003",7,7,7,0,0,3,24,6,6]
[45,"Вахитовский район","СОШИ \"Лицей имени Н.И. Лобачевского\" федерального государственного автономного образовательного учреждения высшего образования \"Казанский (Приволжский) федеральный университет\"","Гаврилов","Егор","Павлович","К6-046",7,7,7,3,0,0,24,6,6]
[46,"Вахитовский район","СОШИ \"Лицей имени Н.И. Лобачевского\" федерального государственного автономного образовательного учреждения высшего образования \"Казанский (Приволжский) федеральный университет\"","Закиров","Каюм","Айдарович","К6-051",7,7,0,3,0,7,24,6,6]
[47,"Московский район","МАОУ \"Лицей-интернат №2\" Московского района г.Казани","Бикмухаметов","Амир","Робертович","К6-156",7,0,3,7,0,7,24,6,6]
[48,"Московский район","МАОУ \"Лицей-интернат №2\" Московского района г.Казани","Елисеев","Даниил","Дмитриевич","К6-174",7,7,0,3,0,7,24,6,6]
[49,"Кукморский район","МБОУ \"Сардекбашская средняя школа им.Г.Г.Гарифуллина\" Кукморского муниципального района РТ","Ганиева","Тансылу","Ильгамовна","К6-032",7,7,1,0,1,7,23,6,6]
[50,"Вахитовский район","СОШИ \"Лицей имени Н.И. Лобачевского\" федерального государственного автономного образовательного учреждения высшего образования \"Казанский (Приволжский) федеральный университет\"","Абдуллин","Дияр","Дамирович","К6-090",7,7,6,0,0,3,23,6,6]
[51,"Московский район","МАОУ \"Лицей-интернат №2\" Московского района г.Казани","Мингалиев","Ратмир","Маратович","К6-130",7,7,6,0,0,3,23,6,6]
[52,"Набережные Челны","МБОУ \"Лицей-интернат №79\"","Маузитов","Зиннат","Гамелевич","Н6-008",7,2,0,0,7,7,23,6,6]
[53,"Заинский район","МБОУ \"Заинская СОШ №6\" г.Заинск","Комендантов","Андрей","Михайлович","Н6-053",7,6,7,3,0,0,23,6,6]
[54,"Бугульминский район","МБОУ \"Лицей №2\" Бугульминского муниципального района Республики Татарстан","Голубцев","Иван","Сергеевич","А6-003",7,7,0,7,0,1,22,6,6]
[55,"Московский район","МАОУ \"Лицей-интернат №2\" Московского района г.Казани","Клементьев","Вильдан","Германович","К6-034",7,7,7,0,1,0,22,6,6]
[56,"Ново-Савиновский район","МАОУ  \"Лицей-интернат №7\" Ново-Савиновского района г. Казани","Китанов","Данил","Владимирович","К6-050",7,2,0,6,0,7,22,6,6]
[57,"Ново-Савиновский район","МБОУ \"Гимназия №7 имени Героя России А.В.Козина\" Ново-Савиновского района г.Казани.","Морозов","Вячеслав","Александрович","К6-076",7,7,5,3,0,0,22,6,6]
[58,"Московский район","МАОУ \"Лицей-интернат №2\" Московского района г.Казани","Марданшин","Самат","Ильнурович","К6-100",7,7,7,0,1,0,22,6,6]
[59,"Нижнекамский район","МБОУ «Лицей-интернат №24» Нижнекамского муниципального района Республики Татарстан","Хрущев","Фёдор","Максимович","Н6-023",7,4,4,0,0,7,22,6,6]
[60,"Московский район","МАОУ \"Лицей-интернат №2\" Московского района г.Казани","Низамиев","Наиль","Русланович","К6-010",7,7,0,0,0,7,21,6,6]
[61,"Вахитовский район","СОШИ \"Лицей имени Н.И. Лобачевского\" федерального государственного автономного образовательного учреждения высшего образования \"Казанский (Приволжский) федеральный университет\"","Борисюк","Артур","Романович","К6-029",7,7,0,7,0,0,21,6,6]
[62,"Ново-Савиновский район","МБОУ «Гимназия №7 имени Героя России А.В.Козина\" Ново-Савиновского района г.Казани","Грачева","Арина","Владимировна","К6-041",7,7,7,0,0,0,21,6,6]
[63,"Московский район","МАОУ \"Лицей-интернат №2\" Московского района г.Казани","Шигапов","Шамиль","Айдарович","К6-055",7,7,0,0,0,7,21,6,6]
[64,"Ново-Савиновский район","СУНЦ \"Инженерный лицей-интернат КНИТУ-КАИ\"","Абсалямова","Аделина","Ринатовна","К6-078",7,7,0,0,0,7,21,6,6]
[65,"Московский район","Муниципальное автономное общеобразовательное учреждение \"Лицей-интернат №2\" Московского района г.Казани","Саяхов","Хайдар","Ильдарович","К6-080",7,7,6,0,0,1,{"$f":"SUM(H67:M67)","v":21},6,6]
[66,"Вахитовский район","МБОУ \"Гимназия №96\" Вахитовского района города Казани","Соловьева","Ярослава","Николаевна","К6-098",7,7,0,6,1,0,21,6,6]
[67,"Вахитовский район","МБОУ \"Лицей №5\" Вахитовского района г. Казани","Меркулова","Даяна","Алексеевна","К6-101",7,7,0,0,0,7,21,6,6]
[68,"Московский район","МАОУ \"Лицей-интернат №2\" Московского района г.Казани","Мачихин","Павел","Антонович","К6-105",7,7,6,0,1,0,21,6,6]
[69,"Вахитовский район","Муниципальное автономное общеобразовательное учреждение для детей, проявивших выдающиеся способности \"Средняя общеобразовательная школа-интернат \"Специализированный олимпиадно-научный центр \"СОлНЦе\" Вахитовского района г.Казани","Филатова","Екатерина","Михайловна","К6-108",7,7,7,0,0,0,21,6,6]
[70,"Верхнеуслонский район","ГАОУ \"Школа Иннополис\"","Фаттахов","Аскар","Фаритович","К6-125",0,7,6,0,1,7,21,6,6]
[71,"Приволжский район","МАОУ \"Гимназия №19\" Приволжского района г. Казани","Шафиков","Арслан","Рамилевич","К6-129",7,4,3,6,1,0,21,6,6]
[72,"Ново-Савиновский район","МБОУ \"Лицей №177\" Ново-Савиновского района г. Казань","Сафин","Айдар","Линарович","К6-133",7,7,0,0,0,7,21,6,6]
[73,"Вахитовский район","СОШИ \"Лицей имени Н.И. Лобачевского\" федерального государственного автономного образовательного учреждения высшего образования \"Казанский (Приволжский) федеральный университет\"","Калимуллин","Ахат","Айдарович","К6-142",7,7,6,0,0,1,21,6,6]
[74,"Московский район","МАОУ \"Лицей-интернат №2\" Московского района г.Казани","Сафин","Артур","Тимурович","К6-183",7,7,0,0,0,7,21,6,6]
[75,"Набережные Челны","МБОУ \"Гимназия №26\"","Ганиев","Тимур","Маратович","Н6-013",7,7,0,0,0,7,21,6,6]
[76,"Набережные Челны","МБОУ \"Гимназия №26\"","Савчишкина","Татьяна","Александровна","Н6-025",7,7,0,0,0,7,21,6,6]
[77,"Набережные Челны","МБОУ \"Гимназия №26\"","Алхимов","Ярослав","Олегович","Н6-027",7,7,0,0,0,7,21,6,6]
[78,"Заинский район","МБОУ «Татарская гимназия имени Р.Ш. Фардиева» Заинского муниципального района Республики Татарстан.","Яхин","Раиль","Альбертович","Н6-036",7,7,0,0,7,0,21,6,6]
[79,"Набережные Челны","МБОУ \"Гимназия №26\"","Саттаров","Карим","Саматович","Н6-046",7,7,1,6,0,0,21,6,6]
[80,"Азнакаевский район","МБОУ «Средняя общеобразовательная №2 города Азнакаево» Азнакаевского муниципального района  Республики Татарстан","Камалутдинов","Амир","Дамиович","А6-020",7,6,0,0,0,7,20,6,6]
[81,"Московский район","МАОУ \"Лицей-интернат №2\" Московского района г.Казани","Гайнуллин","Фатих","Гусманович","К6-024",7,7,0,3,0,3,20,6,6]
[82,"Вахитовский район","СОШИ \"Лицей имени Н.И. Лобачевского\" федерального государственного автономного образовательного учреждения высшего образования \"Казанский (Приволжский) федеральный университет\"","Пьянкова","Арина","Владиславовна","К6-033",7,0,6,0,0,7,20,6,6]
[83,"Зеленодольский район","МБОУ «Лицей №1 Зеленодольского муниципального района РТ»","Добрыдень","Дмитрий","Семёнович","К6-072",0,7,0,3,3,7,20,6,6]
[84,"Московский район","МАОУ \"Лицей-интернат №2\" Московского района г.Казани","Мингазов","Тимур","Ильфарович","К6-096",7,7,6,0,0,0,20,6,6]
[85,"Вахитовский район","Лицей имени Н.И.Лобачевского КФУ","Гимадиева ","Руслана","Аскаровна","К6-135",7,7,0,6,0,0,20,6,6]
[86,"Ново-Савиновский район","МБОУ «Гимназия №107 «Открытие» Ново-Савиновского района г.Казани","Ишимов","Тимур","Витальевич","К6-164",7,7,0,6,0,0,20,6,6]
[87,"Ново-Савиновский район","СУНЦ \"Инженерный лицей-интернат КНИТУ-КАИ\"","Ведерников","Богдан","Артёмович","К6-037",7,7,5,0,0,0,19,6,6]
[88,"Московский район","МАОУ \"Лицей-интернат №2\" Московского района г.Казани","Ибатуллин","Камиль","Маратович","К6-056",7,7,5,0,0,0,19,6,6]
[89,"Советский район","МБОУ \"Многопрофильная школа №181\" Советского района г.Казани","Митрофанова","София","Эдуардовна","К6-077",7,7,5,0,0,0,19,6,6]
[90,"Советский район","МБОУ \"Гимназия №183\" Советского района г.Казани","Ахунова","Амалия","Рустемовна","К6-082",7,2,0,3,0,7,19,6,6]
[91,"Вахитовский район","СОШИ \"Лицей имени Н.И. Лобачевского\" федерального государственного автономного образовательного учреждения высшего образования \"Казанский (Приволжский) федеральный университет\"","Зайнуров","Ранэль","Дамирович","К6-152",7,7,5,0,0,0,19,6,6]
[92,"Набережные Челны","МБОУ \"Гимназия №26\"","Лелеков","Северьян","Алексеевич","Н6-051",7,7,0,4,0,1,19,6,6]
[93,"Лениногорский район","МБОУ \"Средняя общеобразовательная школа №6 г.Лениногорска имени Героя России Исламова Дамира Назировича\" муниципального образования \"Лениногорский муниципальный район\" Республики Татарстан","Гирфанов","Айдар","Маратович","А6-006",7,7,0,0,4,0,18,6,6]
[94,"Московский район","МАОУ \"Лицей-интернат №2\" Московского района г.Казани","Русяев","Михаил","Иванович","К6-011",7,7,0,3,0,1,18,6,6]
[95,"Вахитовский район","СОШИ \"Лицей имени Н.И. Лобачевского\" федерального государственного автономного образовательного учреждения высшего образования \"Казанский (Приволжский) федеральный университет\"","Топорков","Александр","Дмитриевич","К6-026",7,7,0,0,1,3,18,6,6]
[96,"Вахитовский район","СОШИ \"Лицей имени Н.И. Лобачевского\" федерального государственного автономного образовательного учреждения высшего образования \"Казанский (Приволжский) федеральный университет\"","Сибгатуллин","Ансар","Тимурович","К6-058",7,7,3,0,1,0,18,6,6]
[97,"Московский район","МАОУ \"Лицей-интернат №2\" Московского района г.Казани","Газизов","Искандер","Ленарович","К6-145",7,7,4,0,0,0,18,6,6]
[98,"Ново-Савиновский район","СУНЦ \"Инженерный лицей-интернат КНИТУ-КАИ\"","Качалов","Тимур","Александрович","К6-153",7,0,0,3,5,3,18,6,6]
[99,"Московский район","МАОУ \"Лицей-интернат №2\" Московского района г.Казани","Хасиятуллин ","Камиль ","Рустэмович","К6-175",7,7,0,0,1,3,18,6,6]
[100,"Московский район","МАОУ \"Лицей-интернат №2\" Московского района г.Казани","Валиев","Ильдан","Исламович","К6-023",7,7,0,0,3,0,17,6,6]
[101,"Московский район","МАОУ \"Лицей-интернат №2\" Московского района г.Казани","Багдалов","Умар","Рашидович","К6-035",7,7,0,0,0,3,17,6,6]
[102,"Вахитовский район","ОШИ «Лицей имени Н.И. Лобачевского» ФГАОУ ВО «Казанский (Приволжский) федеральный университет»","Филатов","Роман","Владимирович","К6-049",7,0,0,7,0,3,17,6,6]
[103,"Московский район","МБОУ «Гимназия №122 имени Ж.А. Зайцевой» Московского района г.Казани","Каюмов","Булат","Илшатович","К6-112",7,7,3,0,0,0,17,6,6]
[104,"Ново-савиновский район","СУНЦ Инженерный лицей-интернат КНИТУ-КАИ","Кайнов","Елисей","Андреевич","К6-148",7,7,0,0,0,3,17,6,6]
[105,"Вахитовский район","Лицей имени Н.И.Лобачевского КФУ","Калистратова","Мария","Сергеевна ","К6-172",0,7,7,0,0,3,17,6,6]
[106,"Набережные Челны","МАОУ  \"Гимназия №77\"","Полянцов","Дмитрий","Алексеевич","Н6-014",7,7,0,0,0,3,17,6,6]
[107,"Мензелинский район","МБОУ \"СОШ №1\"","Петраев","Максим","Леонидович","Н6-052",7,7,0,3,0,0,17,6,6]
[108,"Альметьевский район","МАОУ - Гимназия №5","Исаков","Рамазан","Радикович","А6-014",7,2,0,0,7,0,16,6,6]
[109,"Ново-Савиновский район","СУНЦ \"Инженерный лицей-интернат КНИТУ-КАИ\"","Богатеев","Эмиль","Дамирович","К6-022",7,7,2,0,0,0,16,6,6]
[110,"Вахитовский район","СОШИ \"Лицей имени Н.И. Лобачевского\" федерального государственного автономного образовательного учреждения высшего образования \"Казанский (Приволжский) федеральный университет\"","Зарипов","Тагир","Булатович","К6-087",7,7,2,0,0,0,16,6,6]
[111,"Московский район","МАОУ \"Лицей-интернат №2\"","Акберов","Ильяс","Фаридович","К6-089",7,7,0,0,1,1,16,6,6]
[112,"Ново-Савиновский район","МАОУ  \"Лицей-интернат №7\" Ново-Савиновского района г. Казани","Шутов","Андрей","Артёмович","К6-140",7,7,1,0,0,1,16,6,6]
[113,"Ново-Савиновский район","МАОУ «Лицей-интернат №7» Ново-Савиновского района г. Казани","Мухитдинов","Юсуф","Ильгизович","К6-177",7,2,0,6,0,1,16,6,6]
[114,"Набережные Челны","МАОУ города Набережные Челны «Лицей №78 им. А.С. Пушкина»","Хусаинов","Тимур","Ильдарович","Н6-034",7,2,0,0,7,0,16,6,6]
[115,"Набережные Челны","МБОУ \"Гимназия №26\"","Ахметгареев","Ильяс","Ильдарович","Н6-054",7,2,0,0,0,7,16,6,6]
[116,"Авиастроительный район","МАОУ \"Гимназия №37\" Авиастроительного района г. Казани","Гарипов","Амир","Айратович","К6-002",0,0,1,0,7,7,15,6,6]
[117,"Ново-Савиновский район","СУНЦ \"Инженерный лицей-интернат КНИТУ-КАИ\"","Уразова","Екатерина","Викторовна","К6-014",7,0,0,0,1,7,15,6,6]
[118,"Верхнеуслонский район","МБОУ \"Набережно - Морквашская СОШ Верхне-Услонского муниципального района Республики Татарстан\"","Рыбкин","Константин","Игоревич","К6-016",7,0,0,0,1,7,15,6,6]
[119,"Приволжский район","МАОУ \"Гимназия №19\" Приволжского района г. Казани","Бадгиева","Наргиза","Разиловна","К6-028",0,7,0,0,1,7,15,6,6]
[120,"Московский район","МАОУ \"Лицей-интернат №2\" Московского района г.Казани","Чепкунов","Рамиль","Аделевич","К6-039",7,0,0,0,1,7,15,6,6]
[121,"Ново-Савиновский район","МАОУ  \"Лицей-интернат №7\" Ново-Савиновского района г. Казани","Шайдуллин","Каюм","Булатович","К6-094",7,7,0,0,1,0,15,6,6]
[122,"Балтасинский район","МБОУ  \"Балтасинская средняя общеобразовательная школа\" Балтасинского муниципального района Республики Татарстан","Ярмухаметов","Камиль","Ринатович","К6-144",7,7,0,0,1,0,15,6,6]
[123,"Нижнекамский район","МБОУ \"Гимназия №32\" Нижнекамского муниципального района Республики Татарстан","Газетдинов","Раяз","Рамилевич","Н6-004",7,2,0,6,0,0,15,6,6]
[124,"Набережные Челны","МБОУ \"Гимназия №26\"","Шагиев","Арслан","Артурович","Н6-016",7,2,0,6,0,0,15,6,6]
[125,"Елабужский район","МБОУ \"Гимназия №4\" Елабужского муниципального района Республики Татарстан","Мусаев","Тимур","Маратович","Н6-031",7,7,0,0,1,0,15,6,6]
[126,"Заинский район","МБОУ  \"Заинская средняя общеобразовательная школа №6\" Заинского муниципального района Республики Татарстан","Бочкарёва","Арина","Андреевна","Н6-047",7,7,0,0,0,1,15,6,6]
[127,"Чистопольский район","МБОУ «Гимназия № 3» Чистопольского муниципального района Республики Татарстан","Бабаев","Святослав","Игоревич","А6-010",7,7,0,0,0,0,14,6,6]
[128,"Альметьевский район","МАОУ \"Лицей-интернат №1 г.Альметьевска\"","Хисамов","Амир","Гамирович","А6-021",7,7,0,0,0,0,14,6,6]
[129,"Ново-Савиновский район","СУНЦ \"Инженерный лицей-интернат КНИТУ-КАИ\"","Чирков","Тимофей","Алексеевич","К6-006",7,0,6,0,1,0,{"$f":"SUM(H131:M131)","v":14},6,6]
[130,"Ново-Савиновский район","Муниципальное автономное общеобразовательное учреждение  \"Лицей-интернат №7\" Ново-Савиновского района г. Казани","Заляев","Камиль","Зиннурович","К6-036",7,7,0,0,0,0,14,6,6]
[131,"Вахитовский район","Частное общеобразовательное учреждение религиозной организации \"Казанская Епархия Русской Православной Церкви (Московский Патриархат)\" \"Православная гимназия имени святителя Гурия Казанского г.Казани\"","Соколов","Святослав","Аркадьевич","К6-052",7,7,0,0,0,0,14,6,6]
[132,"Вахитовский район","Лицей имени Н.И.Лобачевского КФУ","Шамсутдинов","Карим","Фаизович","К6-060",7,0,0,0,0,7,14,6,6]
[133,"Приволжский район","МБОУ «Средняя общеобразовательная школа №24 с углубленным изучением отдельных предметов» Приволжского района г. Казани.","Сибгатуллин","Мансур","Маратович","К6-065",7,0,0,0,0,7,14,6,6]
[134,"Приволжский район","МБОУ \"Лицей №83 - Центр образования\" Приволжского района г. Казани","Напримеров","Лев","Дмитриевич","К6-069",7,7,0,0,0,0,14,6,6]
[135,"Вахитовский район","СОШИ \"Лицей имени Н.И. Лобачевского\" федерального государственного автономного образовательного учреждения высшего образования \"Казанский (Приволжский) федеральный университет\"","Бакусева","Динара","Руслановна","К6-075",7,0,0,0,0,7,14,6,6]
[136,"Ново-Савиновский район","МБОУ \"Гимназия №7 имени Героя России А.В.Козина\" Ново-Савиновского района г.Казани.","Искандерова","Алиса","Булатовна","К6-081",7,0,0,0,7,0,14,6,6]
[137,"Ново-Савиновский район","СУНЦ \"Инженерный лицей-интернат КНИТУ-КАИ\"","Анисимов","Вячеслав","Михайлович","К6-115",7,7,0,0,0,0,14,6,6]
[138,"Ново-Савиновский район","МБОУ \"Средняя общеобразовательная школа №85 с углубленным изучением отдельных предметов\" Ново-Савиновского района г.Казани","Лазарев","Филипп","Павлович","К6-127",7,7,0,0,0,0,14,6,6]
[139,"Ново-Савиновский район","СУНЦ \"Инженерный лицей-интернат КНИТУ-КАИ\"","Ялалтдинов","Камиль","Маратович","К6-137",7,0,0,0,0,7,14,6,6]
[140,"Вахитовский район","СОШИ \"Лицей имени Н.И. Лобачевского\" федерального государственного автономного образовательного учреждения высшего образования \"Казанский (Приволжский) федеральный университет\"","Зарипов","Тимур","Булатович","К6-146",7,7,0,0,0,0,14,6,6]
[141,"Советский район","МБОУ \"Средняя общеобразовательная школа №84 с углубленным изучением иностранных языков\" Советского района г.Казани","Настин","Артём","Дмитриевич","К6-151",7,7,0,0,0,0,14,6,6]
[142,"Вахитовский район","СОШИ \"Лицей имени Н.И. Лобачевского\" федерального государственного автономного образовательного учреждения высшего образования \"Казанский (Приволжский) федеральный университет\"","Пустовалов","Даниил","Александрович","К6-154",7,4,2,0,1,0,14,6,6]
[143,"Зеленодольский район","МБОУ «Лицей №1 Зеленодольского муниципального района РТ»","Куанищев","Арслан","Ильнарович","К6-155",0,7,0,0,7,0,14,6,6]
[144,"Советский район","МБОУ \"Многопрофильный лицей №185\" Советского района г.Казани","Хусаинов","Тимур","Анисович","К6-166",7,7,0,0,0,0,14,6,6]
[145,"Вахитовский район","СОШИ \"Лицей имени Н.И. Лобачевского\" федерального государственного автономного образовательного учреждения высшего образования \"Казанский (Приволжский) федеральный университет\"","Исмагилов","Радель","Дамирович","К6-173",0,7,0,0,0,7,14,6,6]
[146,"Набережные Челны","МБОУ \"Гимназия №26\"","Чернышов","Ислам","Ирекович","Н6-002",7,7,0,0,0,0,14,6,6]
[147,"Нижнекамский район","МБОУ «Лицей-интернат №24» Нижнекамского муниципального района Республики Татарстан","Зарипов","Айдар","Ренатович","Н6-032",7,0,0,0,0,7,14,6,6]
[148,"Альметьевский район","ГАОУ  \"Лицей №1 им. М.К. Тагирова\" г.Альметьевска Республики Татарстан","Дуненкова","Мария","Александровна","А6-018",7,6,0,0,0,0,13,6,6]
[149,"Зеленодольский район","МБОУ «Лицей №1 Зеленодольского муниципального района РТ»","Исхакова","Эвелина","Раильевна","К6-001",7,6,0,0,0,0,13,6,6]
[150,"Арский район","МБОУ \"Арская средняя общеобразовательная школа №1 им. В.Ф.Ежкова с углубленным изучением отдельных предметов\" Арского муниципального района Республики Татарстан","Сабирова","Самина","Зульфатовна","К6-097",7,0,0,0,6,0,13,6,6]
[151,"Вахитовский район","ОШИ «Лицей имени Н.И. Лобачевского» ФГАОУ ВО «Казанский (Приволжский) федеральный университет»","Гилязетдинов","Алан","Оскарович","К6-161",7,0,6,0,0,0,13,6,6]
[152,"Советский район","МБОУ \"Лицей №159 имени С.Х.Загидуллиной\" Советского района г. Казани","Валиахметов","Марат","Ильнурович","К6-167",7,2,0,4,0,0,13,6,6]
[153,"Арский район","МБОУ \"Арская средняя общеобразовательная школа №1 им. В.Ф.Ежкова с углубленным изучением отдельных предметов\" Арского муниципального района Республики Татарстан","Самиев","Эмиль","Радисович","К6-179",7,0,0,3,0,3,13,6,6]
[154,"Ново-Савиновский район","СУНЦ \"Инженерный лицей-интернат КНИТУ-КАИ\"","Халиуллин","Никита","Денисович","К6-180",7,2,1,0,0,3,13,6,6]
[155,"Набережные Челны","МБОУ \"Гимназия №26\"","Сироткин","Матвей","Вячеславович","Н6-035",7,0,0,6,0,0,13,6,6]
[156,"Набережные Челны","МБОУ «Полилингвальная гимназия № 59 «Адымнар-Чаллы»","Хайртинова","Айгуль","Альфисовна","Н6-039",7,2,0,0,1,3,13,6,6]
[157,"Набережные Челны","МБОУ \"Гимназия №26\"","Вазетдинов","Булат","Маратович","Н6-043",0,7,0,6,0,0,13,6,6]
[158,"Набережные Челны","МАОУ  \"Гимназия №77\"","Кашипов","Радим","Рубенович","Н6-044",7,2,1,3,0,0,13,6,6]
[159,"Приволжский район","МБОУ \"Лицей №83 - Центр образования\" Приволжского района г. Казани","Фахриев","Булат","Вадимович","К6-064",7,2,0,3,0,0,12,6,6]
[160,"Вахитовский район","СОШИ \"Лицей имени Н.И. Лобачевского\" федерального государственного автономного образовательного учреждения высшего образования \"Казанский (Приволжский) федеральный университет\"","Глухова","Анна","Вадимовна","К6-099",7,1,1,3,0,0,12,6,6]
[161,"Московский район","МАОУ \"Лицей-интернат №2\" Московского района г.Казани","Заманов","Мухаммад","Габилевич","К6-150",0,7,5,0,0,0,12,6,6]
[162,"Приволжский район","МАОУ \"Гимназия №19\" Приволжского района г. Казани","Хасанова","Милана","Руслановна","К6-176",7,2,0,3,0,0,12,6,6]
[163,"Набережные Челны","МБОУ \"Гимназия №26\"","Ординарцева","Анастасия","Валерьевна","Н6-006",7,0,2,0,0,3,12,6,6]
[164,"Нижнекамский район","МБОУ «Лицей-интернат №24» Нижнекамского муниципального района Республики Татарстан","Зайнуллин","Амир","Илнурович","Н6-017",7,1,0,0,1,3,12,6,6]
[165,"Набережные Челны","МБОУ \"Средняя общеобразовательная школа № 41\"","Шаяхметов","Энгель","Ильнарович","Н6-018",7,2,0,3,0,0,12,6,6]
[166,"Ново-Савиновский район","МАОУ \"Лицей №146\" Ново-Савиновского района г.Казани","Гришин","Кирилл","Андреевич","К6-012",7,0,0,0,1,3,11,6,6]
[167,"Верхнеуслонский район","МБОУ \"Макуловская Средняя Общеобразовательная Школа имени Героя Советского Союза Алексея Петровича Исаева\"","Тихонова","Инна","Сергеевна","К6-020",7,0,0,3,1,0,11,6,6]
[168,"Ново-Савиновский район","МБОУ \"Лицей №23\" Ново-Савиновского района г.Казани","Кононова","Вероника","Алексеевна","К6-092",7,2,0,0,0,2,11,6,6]
[169,"Менделеевский район","МБОУ «Гимназия №1»","Шаяхметов","Динар","Радикович","Н6-020",7,0,0,4,0,0,11,6,6]
[170,"Ново-Савиновский район","СУНЦ \"Инженерный лицей-интернат КНИТУ-КАИ\"","Борисевич","Константин","Станиславович","К6-008",7,0,0,2,1,0,10,6,6]
[171,"Вахитовский район","СОШИ \"Лицей имени Н.И. Лобачевского\" федерального государственного автономного образовательного учреждения высшего образования \"Казанский (Приволжский) федеральный университет\"","Тальдаев","Анвар","Рустемович","К6-017",7,0,0,0,0,3,10,6,6]
[172,"Лаишевский район","МБОУ \"Сокуровская СОШ им. Г.Р.Державина\"","Хабибуллина","Алина","Рашидовна","К6-030",7,0,0,0,0,3,10,6,6]
[173,"Балтасинский район","МБОУ \"Нурминская средняя общеобразовательная школа\" Балтасинского муниципального района Республики Татарстан","Марданов","Раиль","Раушанович","К6-038",7,0,3,0,0,0,10,6,6]
[174,"Вахитовский район","МАОУ \"Средняя общеобразовательная школа №39 с углубленным изучением английского языка\" Вахитовского района г. Казани","Жулина","Полина","Денисовна","К6-128",7,2,0,0,0,1,10,6,6]
[175,"Ново-Савиновский район","СУНЦ \"Инженерный лицей-интернат КНИТУ-КАИ\"","Хузин","Ролан","Айнурович","К6-136",7,0,0,0,0,3,10,6,6]
[176,"Вахитовский район","СОШИ \"Лицей имени Н.И. Лобачевского\" федерального государственного автономного образовательного учреждения высшего образования \"Казанский (Приволжский) федеральный университет\"","Алексеева","Дарья","Сергеевна","К6-139",7,0,0,0,0,3,10,6,6]
[177,"Нижнекамский район","МБОУ «Средняя общеобразовательная школа №10 с углубленным изучением отдельных предметов» Нижнекамского муниципального района Республики Татарстан","Петрушенко","Серафим","Алексеевич","Н6-042",7,2,0,0,0,1,10,6,6]
[178,"Набережные Челны","МАОУ города Набережные Челны «Лицей №78 им. А.С. Пушкина»","Гилязова","Эмилия","Ренатовна","Н6-048",7,0,0,3,0,0,10,6,6]
[179,"Азнакаевский район","МБОУ \"Средняя общеобразовательная школа № 1 города Азнакаево\" Азнакаевского муниципального района Республики Татарсан","Вальмиев","Амир","Ильдарович","А6-001",7,2,0,0,0,0,9,6,6]
[180,"Бугульминский район","МБОУ  \"Средняя общеобразовательная школа №6 с углубленным изучением отдельных предметов\" Бугульминского муниципального района  Республики Татарстан","Золотухин","Александр","Николаевич","А6-007",7,2,0,0,0,0,9,6,6]
[181,"Черемшанский район","МБОУ \"Лашманская средняя общеобразовательная школа\"","Байкеева","Самира","Ранасовна","А6-009",7,0,0,0,1,1,9,6,6]
[182,"Альметьевский район","МАОУ Лицей-интернат № 1","Гарайшин","Гамир","Марселевич","А6-017",0,6,3,0,0,0,9,6,6]
[183,"Ново-Савиновский район","МАОУ \"Лицей №146\" Ново-Савиновского района г.Казани","Хайрутдинов","Камиль","Аделевич","К6-005",7,2,0,0,0,0,9,6,6]
[184,"Московский район","МБОУ \"Гимназия №122 имени Ж.А.Зайцевой\" Московского района г.Казани","Архипов","Артём","Владиславович","К6-025",7,2,0,0,0,0,9,6,6]
[185,"Ново-Савиновский район","МАОУ  \"Лицей-интернат №7\" Ново-Савиновского района г. Казани","Хасанов","Амир","Фанисович","К6-122",7,2,0,0,0,0,9,6,6]
[186,"Ново-Савиновский район","МАОУ «Лицей-интернат №7» Ново-Савиновского района г. Казани","Мухтов","Милан","Ильнурович","К6-131",7,2,0,0,0,0,9,6,6]
[187,"Вахитовский район","МБОУ \"Гимназия №27 с татарским языком обучения имени Хади Такташа\" Вахитовского района г.Казани","Мингалеев","Малик","Маратович","К6-158",7,2,0,0,0,0,9,6,6]
[188,"Ново-савиновский ","СУНЦ Инженерный лицей-интернат КНИТУ-КАИ","Идиятуллина ","Кира","Ринатовна","К6-165",7,0,2,0,0,0,9,6,6]
[189,"Советский район","Муниципальное бюджетное общеобразовательное учреждение \"Эколого-технологический лицей №79\" Советского района г. Казани","Саляхова","Диляра","Азизовна","К6-168",7,2,0,0,0,0,9,6,6]
[190,"Набережные Челны","МБОУ \"Гимназия №26\"","Агишев","Амир","Наильевич","Н6-005",7,2,0,0,0,0,9,6,6]
[191,"Актанышский район","ГАОУ  \"Гуманитарная гимназия-интернат для одаренных детей\"","Шакиров","Лимар","Ильгамович","Н6-009",7,2,0,0,0,0,9,6,6]
[192,"Набережные Челны","МБОУ \"Лицей-интернат №79\"","Хабибуллин","Булат","Маратович","Н6-041",7,2,0,0,0,0,9,6,6]
[193,"Агрызский район","МБОУ \"Терсинская СОШ\"","Скоробогатов","Иван","Евгеньевич","Н6-055",7,2,0,0,0,0,{"$f":"SUM(H195:M195)","v":9},6,6]
[194,"Бугульминский район","МБОУ \"Лицей №2\" Бугульминского муниципального района Республики Татарстан","Зайдуллин","Альберт","Рафаэлевич","А6-016",7,0,0,0,1,0,8,6,6]
[195,"Верхнеуслонский район","ГАОУ \"Школа Иннополис\"","Китов","Дмитрий","Антонович","К6-045",7,0,0,0,0,1,8,6,6]
[196,"Вахитовский район","Гимназия №27 с татарским языком обучения","Исхакова","Тансылу","Ильнаровна","К6-053",7,0,0,0,0,1,8,6,6]
[197,"Приволжский район","МБОУ \"Лицей №35 - образовательный центр \"Галактика\" Приволжского района г. Казани","Сафин","Артур","Русланович","К6-103",7,0,0,0,1,0,8,6,6]
[198,"Ново-Савиновский район","СУНЦ \"Инженерный лицей-интернат КНИТУ-КАИ\"","Карашевич","Степан","Константинович","К6-138",7,0,1,0,0,0,8,6,6]
[199,"Ново-Савиновский район","СУНЦ \"Инженерный лицей-интернат КНИТУ-КАИ\"","Гилязов","Артур","Раильевич","К6-181",0,0,0,0,1,7,8,6,6]
[200,"Набережные Челны","МАОУ города Набережные Челны «Гимназия №76»","Кочурова","Диана","Максимовна","Н6-019",7,0,0,0,1,0,8,6,6]
[201,"Альметьевский район","МАОУ \"Лицей №2\" г. Альметьевска РТ","Осипов","Прохор","Алексеевич","А6-005",7,0,0,0,0,0,7,6,6]
[202,"Нурлатский район","МАОУ \"СОШ № 9\" г.Нурлат","Вырдин","Роман","Александрович","А6-011",7,0,0,0,0,0,7,6,6]
[203,"Чистопольский район","МБОУ « Гимназия № 3» Чистопольского муниципального района Республики Татарстан","Сибгатуллин","Расул","Марселевич","А6-012",7,0,0,0,0,0,7,6,6]
[204,"Зеленодольский район","МБОУ \"Гимназия №3 Зеленодольского муниципального района Республики Татарстан\"","Ахметова","Ясмина","Ильдаровна","К6-004",0,7,0,0,0,0,7,6,6]
[205,"Дрожжановский район","МБОУ \"Стародрожжановская сош №1\"","Исхакова","Эвелина","Ильмировна","К6-013",7,0,0,0,0,0,7,6,6]
[206,"Приволжский район","Муниципальное бюджетное общеобразовательное учреждение \"Лицей №83 - Центр образования\" Приволжского района г. Казани","Хакимзянов","Самат","Ильнурович","К6-019",7,0,0,0,0,0,7,6,6]
[207,"Московский район","Частное общеобразовательное учреждение средняя общеобразовательная школа \"Елена-Сервис\"","Закхеева","Мария","Максимовна","К6-021",7,0,0,0,0,0,7,6,6]
[208,"Московский район","МБОУ «Гимназия №122 имени Ж.А. Зайцевой» Московского района г.Казани","Егорчев","Никита","Андреевич","К6-040",7,0,0,0,0,0,7,6,6]
[209,"Вахитовский район","МАОУ для детей, проявивших выдающиеся способности \"Средняя общеобразовательная школа-интернат \"Специализированный олимпиадно-научный центр \"СОлНЦе\" Вахитовского района г.Казани","Федотов","Мирон","Алексеевич","К6-043",0,7,0,0,0,0,7,6,6]
[210,"Пестречинский район","МБОУ \"Пестречинская СОШ №1 с углубленным изучением отдельных предметов имени Героя России Ивана Алексеевича Додосова\"","Цуров","Муслим","Хамзатович","К6-047",7,0,0,0,0,0,7,6,6]
[211,"Приволжский район","МАОУ \"Гимназия №19\" Приволжского района г. Казани","Нуриева","Камиля","Ильдаровна","К6-048",7,0,0,0,0,0,7,6,6]
[212,"Зеленодольский район","МБОУ «Лицей №1 Зеленодольского муниципального района РТ»","Шигаев","Артём","Владимирович","К6-063",0,7,0,0,0,0,7,6,6]
[213,"Пестречинский район","МБОУ \"Ленино-Кокушкинская СОШ\"","Фасхутдинов","Карим","Алмазович","К6-066",7,0,0,0,0,0,7,6,6]
[214,"Вахитовский район","МАОУ для детей, проявивших выдающиеся способности \"Средняя общеобразовательная школа-интернат \"Специализированный олимпиадно-научный центр \"СОлНЦе\" Вахитовского района г.Казани","Горев","Иван","Дмитриевич","К6-067",7,0,0,0,0,0,7,6,6]
[215,"Зеленодольский район","МБОУ «Лицей №1 Зеленодольского муниципального района РТ»","Шинковкина","Елизавета","Александровна","К6-070",7,0,0,0,0,0,7,6,6]
[216,"Вахитовский район","МБОУ \"Гимназия №27 с татарским языком обучения имени Хади Такташа\" Вахитовского района г.Казани","Халиков","Артур","Русланович","К6-079",7,0,0,0,0,0,7,6,6]
[217,"Кукморский район","МБРУ «Нырьинская средняя школа им.М.П.Прокопьева» Кукморского муниципального района Республики Татарстан","Михайлов","Алексей","Дмитриевич","К6-095",7,0,0,0,0,0,7,6,6]
[218,"Рыбно-Слободский район","МБОУ «Ново-Арышская средняя общеобразовательная школа» Рыбно-Слободского муниципального района Республики Татарстан","Каримов","Камиль","Равилевич","К6-102",7,0,0,0,0,0,7,6,6]
[219,"Ново-Савиновский район","СУНЦ \"Инженерный лицей-интернат КНИТУ-КАИ\"","Андриянов","Михаил","Алексеевич","К6-106",7,0,0,0,0,0,7,6,6]
[220,"Авиастроительный район","МБОУ \"Гимназия №14\" Авиастроительного района г. Казани","Зиангиров","Данис","Дамирович","К6-111",0,7,0,0,0,0,7,6,6]
[221,"Ново-Савиновский","СУНЦ Инженерный лицей-интернат КНИТУ-КАИ","Богатеев","Даниэль","Дамирович","К6-114",7,0,0,0,0,0,7,6,6]
[222,"Ново-Савиновский район","МАОУ \"Лицей №146\" Ново-Савиновского района г.Казани","Шимин","Даниил","Александрович","К6-117",7,0,0,0,0,0,7,6,6]
[223,"Ново-Савиновский район","МБОУ \"Гимназия №7 имени Героя России А.В.Козина\" Ново-Савиновского района г.Казани.","Гарифзянов","Нариман","Алмазович","К6-120",7,0,0,0,0,0,7,6,6]
[224,"Ново-Савиновский район","МБОУ \"Гимназия №7 имени Героя России А.В.Козина\" Ново-Савиновского района г.Казани.","Алекперов","Тимур","Рамилевич","К6-123",7,0,0,0,0,0,7,6,6]
[225,"Ново-Савиновский район","МАОУ  \"Лицей-интернат №7\" Ново-Савиновского района г. Казани","Габдрахманов","Расул","Расихович","К6-143",0,0,0,0,0,7,7,6,6]
[226,"Приволжский район","МБОУ «Лицей №83 - Центр образования» Приволжского района г. Казани","Камалетдинов","Айдар","Ирекович","К6-149",7,0,0,0,0,0,7,6,6]
[227,"Ново-савиновский ","СУНЦ Инженерный лицей-интернат КНИТУ-КАИ","Абдуллин ","Булат","Радикович","К6-159",0,0,0,0,4,3,7,6,6]
[228,"Набережные Челны","МБОУ \"Лицей-интернат №79\"","Хасанов","Раиль","Фанисович","Н6-010",7,0,0,0,0,0,7,6,6]
[229,"Тукаевский район","МБОУ «Семекеевская ООШ»","Бикмухаметов","Мухаммад","Маратович","Н6-011",7,0,0,0,0,0,7,6,6]
[230,"Набережные Челны","МБОУ \"Лицей-интернат №79\"","Тухватуллин","Вахит","Шамилевич","Н6-030",7,0,0,0,0,0,7,6,6]
[231,"Набережные Челны","МБОУ \"Гимназия №26\"","Мухаметвалиев","Даниил","Наилевич","Н6-040",0,7,0,0,0,0,7,6,6]
[232,"Актанышский район","МБОУ \"Кировская средняя общеобразовательная школа\" Актанышского муниципального района Республики Татарстан","Сагбетдинова","Юлианна","Самантовна","Н6-050",7,0,0,0,0,0,7,6,6]
[233,"Актанышский район","ГАОУ  \"Гуманитарная гимназия-интернат для одаренных детей\"","Абударов","Адель","Зульфатович","Н6-056",7,0,0,0,0,0,7,6,6]
[234,"Набережные Челны","МАОУ  \"Гимназия №77\"","Фаттахова","Эвелина","Ильдаровна","Н6-028",0,2,0,0,0,3,{"$f":"SUM(H236:M236)","v":5},6,6]
[235,"Буинский район","МБОУ «Гимназия № 5 г. Буинска Республики Татарстан»","Сунгатов","Салават","Айнурович","К6-084",0,1,0,0,0,3,4,6,6]
[236,"Вахитовский район","СОШИ \"Лицей имени Н.И. Лобачевского\" федерального государственного автономного образовательного учреждения высшего образования \"Казанский (Приволжский) федеральный университет\"","Закамская","Эвелина","Артемовна","К6-124",0,0,1,0,0,3,4,6,6]
[237,"Тукаевский район","МБОУ «Семекеевская ООШ»","Гизатуллина","Ясмина","Ильназовна","Н6-024",0,0,0,0,4,0,4,6,6]
[238,"Ново-Савиновский район","МАОУ \"Лицей №146\" Ново-Савиновского района г.Казани","Шимин","Илья","Александрович","К6-042",0,2,0,0,0,1,3,6,6]
[239,"Советский район","МБОУ \"Гимназия №90\" Советского района города Казани","Солдатов","Артур","Андреевич","К6-071",0,0,0,0,0,3,3,6,6]
[240,"Приволжский район","МАОУ \"Гимназия №19\" Приволжского района г. Казани","Бекмамбетов","Ратмир","Сергеевич","К6-110",0,0,0,0,0,3,3,6,6]
[241,"Московский район","МАОУ \"Лицей-интернат №2\" Московского района г.Казани","Чернов","Марк","Владимирович","К6-160",0,0,0,0,0,3,3,6,6]
[242,"Азнакаевский район","МБОУ «Лицей №4 города Азнакаево» Азнакаевского муниципального района Республики Татарстан«Лицей № 4 г.Азнакаево»","Хасанова","Камила","Рафатовна","А6-002",0,2,0,0,0,0,2,6,6]
[243,"Вахитовский район","ФГКОУ \"Казанское суворовское военное училище Министерства обороны Российской Федерации'","Саляхов","Тагир","Рустемович","К6-059",0,2,0,0,0,0,2,6,6]
[244,"Верхнеуслонский район","ГАОУ \"Школа Иннополис\"","Галяутдинов","Ислам","Рустемович","К6-088",0,0,0,0,1,1,2,6,6]
[245,"Набережные Челны","МАОУ города Набережные Челны «Гимназия №76»","Ветрюк","Терентий","Витальевич","Н6-007",0,2,0,0,0,0,2,6,6]
[246,"Актанышский район","Государственное автономное общеобразовательное учреждение  \"Гуманитарная гимназия-интернат для одаренных детей\"","Хакимов","Самат","Алмазович","Н6-021",0,2,0,0,0,0,2,6,6]
[247,"Набережные Челны","МАОУ города Набережные Челны \"Лицей инновационных технологий №36\"","Крещенов","Даниэль","Сергеевич","Н6-038",0,0,0,0,1,1,2,6,6]
[248,"Набережные Челны","МАОУ «Средняя общеобразовательная школа №34 с углубленным изучением отдельных предметов» г.Набережные Челны","Хуснуллин","Айдар","Рустемович","Н6-049",0,2,0,0,0,0,2,6,6]
[249,"Зеленодольский район","МБОУ \"Гимназия №3 Зеленодольского муниципального района Республики Татарстан\"","Воробьева","Полина","Вячеславовна","К6-091",0,0,0,0,1,0,1,6,6]
[250,"Сабинский район","МБОУ «Гимназия п.г.т. Богатые Сабы Сабинского муниципального района Республики Татарстан»","Багманов","Самир","Маратович","К6-141",0,0,0,0,1,0,1,6,6]
[251,"Азнакаевский район","МБОУ \"Средняя общеобразовательная школа №9 города Азнакаево\" Азнакаевского муниципального района Республики Татарстан","Низамов","Ринат","Рустемович","А6-008",0,0,0,0,0,0,0,6,6]
[252,"Чистопольский район","МБОУ « Гимназия № 3» Чистопольского муниципального района Республики Татарстан","Кириллов","Егор","Романович","А6-013",0,0,0,0,0,0,0,6,6]
[253,"Черемшанский район","МБОУ \"Лашманская средняя общеобразовательная школа\"","Яруллин","Раиль","Фаритович","А6-015",0,0,0,0,0,0,0,6,6]
[254,"Московский район","МБОУ \"Гимназия №102 имени М.С.Устиновой\" Московского района города Казани","Александров","Артём","Владимирович","К6-009",0,0,0,0,0,0,0,6,6]
[255,"Тетюшский район","МБОУ «Тетюшская средняя общеобразовательная школа №1 имени Героя Советского Союза Ханжина Павла Семеновича» Тетюшского муниципального района Республики Татарстан","Марага","Данил","Рустамович","К6-015",0,0,0,0,0,0,0,6,6]
[256,"Авиастроительный район","Муниципальное бюджетное общеобразовательное учреждение  \"Лицей №145\"  Авиастроительного района г. Казани","Ахмадуллин","Батырхан","Ринатович","К6-074",0,0,0,0,0,0,0,6,6]
[257,"Верхнеуслонский район","Государственное Автономное Общеобразовательное Учреждение \"Школа Иннополис\"","Иванов","Федор","Михайлович","К6-113",0,0,0,0,0,0,0,6,6]
[258,"Ново-Савиновский район","МБОУ \"Гимназия №7 имени Героя России А.В.Козина\" Ново-Савиновского района г.Казани.","Мухитов","Алмаз","Ильназович","К6-121",0,0,0,0,0,0,0,6,6]
[259,"Елабужский район","МБОУ \"Средняя общеобразовательная школа №8\" Елабужского муниципального района Республики Татарстан","Шамсиев","Роберт","Альбертович","Н6-012",0,0,0,0,0,0,0,6,6]
[260,"Мамадышский район","МБОУ \"Средняя общеобразовательная школа №1 города Мамадыш\"","Миннеханов","Гумер","Рустемович","Н6-015",0,0,0,0,0,0,0,6,6]
[261,"Нижнекамский район","МБОУ «Камскополянская средняя общеобразовательная школа №2 с углубленным изучением отдельных предметов»","Орехов","Денис","Михайлович","Н6-029",0,0,0,0,0,0,0,6,6]
[262,"Тукаевский район","МБОУ «Тлянче-Тамакская СОШ»","Хакимуллин","Ильяс","Ильнурович","Н6-045",0,0,0,0,0,0,0,6,6]

{"sheet":"7 кл","index":3,"n_rows":274,"n_cols":16,"rows_kept":274,"merged":[[0,0,0,13]]}
["Итоговый протокол заключительного этапа республиканской олимпиады по математике 2024-2025 уч.год "]
["№","Район","Название ОУ","Фамилия","Имя","Отчество","Шифр",1,2,3,4,5,6,"итого","Класс","Класс участия"]
[1,"Набережные Челны","МБОУ \"Гимназия №26\" г.Набережные Челны","Афлятонов","Айнур","Тагирович","Н7-027",7,7,7,7,7,7,{"$f":"SUM(H3:M3)","v":42},7,7]
[2,"Вахитовский район","ОШИ «Лицей имени Н.И. Лобачевского» ФГАОУ ВО «Казанский (Приволжский) федеральный университет»","Яшин","Ярослав","Андреевич","К7-166",7,7,7,3,7,7,38,7,7]
[3,"Набережные Челны","МБОУ \"Гимназия №26\" г.Набережные Челны","Чех","Дмитрий","Александрович","Н7-049",7,7,7,7,3,7,38,7,7]
[4,"Набережные Челны","МБОУ \"Гимназия №26\" г.Набережные Челны","Главатских","Максим","Сергеевич","Н7-074",7,7,7,3,7,6,37,7,7]
[5,"Вахитовский район","ОШИ «Лицей имени Н.И. Лобачевского» ФГАОУ ВО «Казанский (Приволжский) федеральный университет»","Домнина","Дарья","Юрьевна","К7-060",7,7,7,7,0,7,35,7,7]
[6,"Вахитовский район","ОШИ «Лицей имени Н.И. Лобачевского» ФГАОУ ВО «Казанский (Приволжский) федеральный университет»","Хамидуллин","Тагир","Альбертович","К7-091",7,7,7,0,7,7,35,7,7]
[7,"Вахитовский район","ОШИ «Лицей имени Н.И. Лобачевского» ФГАОУ ВО «Казанский (Приволжский) федеральный университет»","Кудряшов","Егор","Константинович","К7-131",7,7,7,0,7,7,35,7,7]
[8,"Вахитовский район","МАОУ \"Лицей №131\" Вахитовского района г. Казани","Лазаревич","Григорий","Алексеевич","К7-149",7,7,7,0,7,7,35,7,7]
[9,"Московский район","МАОУ \"Лицей-интернат №2\" Московского района г.Казани","Замалетдинов","Салим","Ильнурович","К7-156",7,7,7,0,7,7,35,7,7]
[10,"Приволжский район","СУНЦ – общеобразовательная школа-интернат «IT-лицей» федерального государственного автономного образовательного учреждения высшего образования «Казанский (Приволжский) федеральный университет»","Подоплелова","Ксения","Николаевна","К7-007",7,7,7,4,2,7,34,7,7]
[11,"Вахитовский район","МАОУ для детей, проявивших выдающиеся способности «Средняя ОШИ «Специализированный олимпиадно-научный центр «СОлНЦе» Вахитовского района г. Казани","Шарафетдинова","Ясмина","Маратовна","К7-105",7,7,7,7,0,6,34,7,7]
[12,"Приволжский район","СУНЦ \"IT лицей КФУ\"","Атласова","Аделина","Айнуровна","К7-001",7,7,7,5,0,7,33,7,7]
[13,"Приволжский район","СУНЦ \"IT лицей КФУ\"","Хасанов","Азамат","Ришатович","К7-035",7,7,7,0,4,7,32,7,7]
[14,"Ново-Савиновский район","СУНЦ \"Инженерный лицей-интернат КНИТУ-КАИ\"","Палушев","Марат","Фидаилевич","К7-023",7,7,7,3,7,0,31,7,7]
[15,"Вахитовский район","МАОУ для детей, проявивших выдающиеся способности «Средняя ОШИ «Специализированный олимпиадно-научный центр «СОлНЦе» Вахитовского района г. Казани","Давлетбаева","Альмира","Марселевна","К7-084",7,7,7,0,3,7,31,7,7]
[16,"Приволжский район","СУНЦ \"IT лицей КФУ\"","Султанов","Ранель","Маратович","К7-097",7,7,7,3,0,7,31,7,7]
[17,"Набережные Челны","МБОУ \"Гимназия №26\" г.Набережные Челны","Пасынков","Андрей","Павлович","Н7-021",7,7,7,3,3,4,31,7,7]
[18,"Приволжский район","СУНЦ \"IT лицей КФУ\"","Серяков","Даниэль","Дмитриевич","К7-057",7,7,6,3,7,0,30,7,7]
[19,"Приволжский район","СУНЦ – общеобразовательная школа-интернат «IT-лицей» федерального государственного автономного образовательного учреждения высшего образования «Казанский (Приволжский) федеральный университет»","Сафиуллин","Вагиз","Булатович","К7-157",7,7,7,3,6,0,30,7,7]
[20,"Приволжский район","СУНЦ \"IT лицей КФУ\"","Полещук","Михаил","Вячеславович","К7-168",7,2,7,0,7,7,30,7,7]
[21,"Московский район","МАОУ \"Лицей-интернат №2\" Московского района г.Казани","Тимербаев","Искандер","Айдарович","К7-026",7,7,5,7,3,0,29,7,7]
[22,"Вахитовский район","МАОУ для детей, проявивших выдающиеся способности \"Средняя общеобразовательная школа-интернат \"Специализированный олимпиадно-научный центр \"СОлНЦе\" Вахитовского района г.Казани","Бадышева","Алия","Ильшатовна","К7-022",7,7,7,3,0,4,28,7,7]
[23,"Московский район","МАОУ \"Лицей-интернат №2\" Московского района г.Казани","Гаязов","Вильдан","Фаилевич","К7-034",7,7,7,0,0,7,28,7,7]
[24,"Вахитовский район","МАОУ для детей, проявивших выдающиеся способности «Средняя ОШИ «Специализированный олимпиадно-научный центр «СОлНЦе» Вахитовского района г. Казани","Абзалилов","Кирилл","Дамирович","К7-068",7,7,7,7,0,0,28,7,7]
[25,"Приволжский район","СУНЦ \"IT лицей КФУ\"","Слепенчук","Вероника","Дмитриевна","К7-081",7,7,7,0,0,7,28,7,7]
[26,"Вахитовский район","МАОУ \"Лицей №131\" Вахитовского района г. Казани","Гоголашвили","Георгий","Тимурович","К7-102",7,7,7,0,0,7,28,7,7]
[27,"Приволжский район","СУНЦ \"IT лицей КФУ\"","Гарипова","Ханифа","Джаудатовна","К7-110",7,4,7,3,0,7,28,7,7]
[28,"Лаишевский район","МБОУ \"Кирбинская СОШ\"","Лобанов","Никита","Ильич","К7-179",7,7,4,3,5,2,28,7,7]
[29,"Набережные Челны","МБОУ \"Гимназия №26\" г.Набережные Челны","Вахатов","Валентин","Сергеевич","Н7-048",7,7,7,7,0,0,28,7,7]
[30,"Набережные Челны","МБОУ \"Гимназия №26\" г.Набережные Челны","Саетов","Самат","Раилевич","Н7-056",7,7,7,3,0,4,28,7,7]
[31,"Набережные Челны","МБОУ \"Гимназия №26\"","Мязин","Игорь","Андреевич","Н7-071",7,7,7,0,0,7,28,7,7]
[32,"Набережные Челны","МБОУ \"Гимназия №26\"","Егоров","Илья","Игоревич","Н7-035",7,7,7,3,0,2,26,7,7]
[33,"Набережные Челны","МБОУ\"Центр образования - Гимназия №57 \"Притяжение\"","Садреев","Марк","Рустемович","Н7-063",7,7,6,3,3,0,26,7,7]
[34,"Московский район","МАОУ \"Лицей-интернат №2\" Московского района г.Казани","Алашеев","Тимур","Павлович","К7-042",7,7,4,0,7,0,25,7,7]
[35,"Московский район","МАОУ \"Лицей-интернат №2\" Московского района г.Казани","Ситдиков","Самат","Алмазович","К7-043",7,7,7,3,0,1,25,7,7]
[36,"Приволжский район","СУНЦ – общеобразовательная школа-интернат «IT-лицей» федерального государственного автономного образовательного учреждения высшего образования «Казанский (Приволжский) федеральный университет»","Шагиев","Артём","Русланович","К7-098",7,7,7,3,1,0,25,7,7]
[37,"Вахитовский район","ОШИ «Лицей имени Н.И. Лобачевского» ФГАОУ ВО«Казанский (Приволжский) федеральный университет»","Сулейманов","Всеволод","Русланович","К7-170",7,7,4,0,0,7,25,7,7]
[38,"Вахитовский район","ОШИ «Лицей имени Н.И. Лобачевского» ФГАОУ ВО «Казанский (Приволжский) федеральный университет»","Музафарова","Карина","Тагировна","К7-027",7,7,7,0,3,0,24,7,7]
[39,"Верхнеуслонский район","ГАОУ  \"Лицей Иннополис\"","Гумеров","Егор","Тимурович","К7-069",7,7,7,3,0,0,24,7,7]
[40,"Вахитовский район","МАОУ \"Лицей №131\" Вахитовского района г. Казани","Иванов","Александр","Анатольевич","К7-075",7,7,7,3,0,0,24,7,7]
[41,"Вахитовский район","ОШИ «Лицей имени Н.И. Лобачевского» ФГАОУ ВО «Казанский (Приволжский) федеральный университет»","Мингалимов","Рияз","Ниязович","К7-106",7,7,7,3,0,0,24,7,7]
[42,"Московский район","МАОУ \"Лицей-интернат №2\" Московского района г.Казани","Разумеев","Данил","Русланович","К7-135",7,7,7,3,0,0,24,7,7]
[43,"Вахитовский район","ОШИ «Лицей имени Н.И. Лобачевского» ФГАОУ ВО «Казанский (Приволжский) федеральный университет»","Александрова","Милана","Александровна","К7-137",7,7,7,3,0,0,24,7,7]
[44,"Вахитовский район","МАОУ \"Лицей №131\" Вахитовского района г. Казани","Лазаревич","Михаил","Алексеевич","К7-140",7,7,7,0,3,0,24,7,7]
[45,"Вахитовский район","МАОУ СОШИ  «Специализированный олимпиадно-научный центр «СОлНЦе» Вахитовского района г. Казани","Фатхуллин","Ильназ","Рустемович","К7-143",7,7,7,3,0,0,24,7,7]
[46,"Вахитовский район","ОШИ «Лицей имени Н.И. Лобачевского» ФГАОУ ВО «Казанский (Приволжский) федеральный университет»","Михайлова","Софья","Витальевна","К7-145",7,7,7,3,0,0,24,7,7]
[47,"Московский район","МАОУ \"Лицей-интернат №2\" Московского района г.Казани","Купаев","Малик","Наилевич","К7-152",7,7,7,3,0,0,24,7,7]
[48,"Вахитовский район","МАОУ СОШИ  «Специализированный олимпиадно-научный центр «СОлНЦе» Вахитовского района г. Казани","Асадулина","София","Владиславовна","К7-154",7,7,7,0,1,2,24,7,7]
[49,"Ново-Савиновский район","СУНЦ Инженерный лицей-интернат КНИТУ-КАИ","Зинатулин","Тимур","Ринатович","К7-155",7,7,7,3,0,0,24,7,7]
[50,"Приволжский район","СУНЦ – общеобразовательная школа-интернат «IT-лицей» федерального государственного автономного образовательного учреждения высшего образования «Казанский (Приволжский) федеральный университет»","Погодина","Вероника","Максимовна","К7-181",7,7,7,3,0,0,24,7,7]
[51,"Приволжский район","СУНЦ \"IT лицей КФУ\"","Хайбулин","Эльдар","Тимурович","К7-183",0,7,7,3,7,0,24,7,7]
[52,"Набережные Челны","МБОУ \"Гимназия №26\" г.Набережные Челны","Каткова","Анастасия","Андреевна","Н7-006",7,7,7,3,0,0,24,7,7]
[53,"Ново-Савиновский район","СУНЦ \"Инженерный лицей-интернат КНИТУ-КАИ\"","Гадиятов","Платон","Сергеевич","К7-011",7,7,7,0,0,2,23,7,7]
[54,"Вахитовский район","МАОУ \"Лицей №131\" Вахитовского района г. Казани","Галиев","Аяз","Азатович","К7-015",7,7,7,0,0,2,23,7,7]
[55,"Ново-Савиновский район","СУНЦ \"Инженерный лицей-интернат КНИТУ-КАИ\"","Гибадуллина","Саида","Ниязовна","К7-045",7,6,7,3,0,0,23,7,7]
[56,"Приволжский район","СУНЦ \"IT лицей КФУ\"","Шагидуллина","Милана","Радиковна","К7-160",7,7,6,3,0,0,23,7,{"$f":"O58","v":7}]
[57,"Нижнекамский район","МБОУ «Лицей-интернат №24» Нижнекамского муниципального района Республики Татарстан","Цыганов","Илья","Алексеевич","Н7-018",7,7,7,0,0,2,23,7,7]
[58,"Альметьевский район","МАОУ Лицей-интернат № 1","Мазитов","Ришат","Маратович","А7-008",7,6,7,0,2,0,22,7,7]
[59,"Московский район","МАОУ \"Лицей-интернат №2\" Московского района г.Казани","Саубанов","Алим","Ильдарович","К7-044",7,7,7,0,0,1,22,7,7]
[60,"Приволжский район","СУНЦ \"IT лицей КФУ\"","Мочалова","Кира","Дмитриевна","К7-172",7,7,7,0,1,0,22,7,7]
[61,"Альметьевский район","МАОУ Лицей-интернат № 1","Хузин","Марсель","Радикович","А7-007",7,7,7,0,0,0,21,7,7]
[62,"Московский район","МАОУ \"Лицей-интернат №2\" Московского района г.Казани","Шайхутдинов","Искандер","Радикович","К7-005",7,7,7,0,0,0,21,7,7]
[63,"Вахитовский район","МАОУ СОШИ \"СОлНЦе\"","Глухов","Василий","Дмитриевич","К7-006",7,7,7,0,0,0,21,7,7]
[64,"Приволжский район","СУНЦ \"IT лицей КФУ\"","Козин","Тимур","Русланович","К7-010",7,7,7,0,0,0,21,7,7]
[65,"Зеленодольский район","МБОУ «Гимназия №3 Зеленодольского муниципального района Республики Татарстан»","Латфуллин","Данияр","Эльнарович","К7-012",7,7,7,0,0,0,{"$f":"SUM(H67:M67)","v":21},7,7]
[66,"Приволжский район","СУНЦ – общеобразовательная школа-интернат «IT-лицей» федерального государственного автономного образовательного учреждения высшего образования «Казанский (Приволжский) федеральный университет»","Морозов","Артём","Витальевич","К7-016",7,7,7,0,0,0,21,7,7]
[67,"Приволжский район","СУНЦ – общеобразовательная школа-интернат «IT-лицей» федерального государственного автономного образовательного учреждения высшего образования «Казанский (Приволжский) федеральный университет»","Пожилов","Андрей","Ильич","К7-020",0,7,7,3,3,1,21,7,7]
[68,"Московский район","МАОУ \"Лицей-интернат №2\" Московского района г.Казани","Хабриев","Джалиль","Илшатович","К7-024",7,7,7,0,0,0,21,7,7]
[69,"Вахитовский район","ОШИ «Лицей имени Н.И. Лобачевского» ФГАОУ ВО «Казанский (Приволжский) федеральный университет»","Байбиков","Степан","Ильич","К7-030",7,6,7,0,1,0,21,7,7]
[70,"Московский район","МБОУ «Гимназия №20 \"Гармония\"» Московского района г. Казани","Ихсанов","Альберт","Айратович","К7-047",7,7,7,0,0,0,21,7,7]
[71,"Московский район","МАОУ \"Лицей-интернат №2\" Московского района г.Казани","Шаймарданов","Исмаил","Ильфатович","К7-049",7,7,7,0,0,0,21,7,7]
[72,"Приволжский район","СУНЦ \"IT лицей КФУ\"","Панковец","Анна","Сергеевна","К7-064",7,7,7,0,0,0,21,7,7]
[73,"Советский район","МБОУ \"Гимназия №125\" Советского района г.Казани","Русаков","Егор","Сергеевич","К7-082",7,7,7,0,0,0,21,7,7]
[74,"Московский район","МАОУ \"Лицей-интернат №2\" Московского района г.Казани","Султангиров","Самат","Василевич","К7-093",7,7,7,0,0,0,21,7,7]
[75,"Вахитовский район","МАОУ \"Лицей №131\" Вахитовского района г. Казани","Клюкин","Владимир","Алексеевич","К7-111",7,7,7,0,0,0,21,7,7]
[76,"Вахитовский район","МАОУ \"Лицей №131\" Вахитовского района г. Казани","Мухаметзянов","Рустем","Ильнарович","К7-113",7,7,7,0,0,0,21,7,7]
[77,"Ново-Савиновский район","Муниципальное бюджетное общеобразовательное учреждение \"Гимназия №7 имени Героя России А.В.Козина\" Ново-Савиновского района г.Казани.","Соложенцев","Михаил","Алексеевич","К7-124",0,7,7,0,0,7,21,7,7]
[78,"Московский район","МБОУ \"Татарская гимназия №2 имени Шигабутдина Марджани при Казанском Федеральном Университете\" Московского района г.Казани","Алиакберов","Бахтияр","Альфредович","К7-129",7,7,7,0,0,0,21,7,7]
[79,"Приволжский район","СУНЦ – общеобразовательная школа-интернат «IT-лицей» федерального государственного автономного образовательного учреждения высшего образования «Казанский (Приволжский) федеральный университет»","Аглеев","Ильяс","Марселевич","К7-130",7,7,7,0,0,0,21,7,7]
[80,"Вахитовский район","МАОУ \"Лицей №131\" Вахитовского района г. Казани","Гохштанд","Ефим","Витальевич","К7-133",7,7,7,0,0,0,21,7,7]
[81,"Московский район","МАОУ \"Лицей-интернат №2\" Московского района г.Казани","Фёдоров","Илья","Сергеевич","К7-136",7,7,7,0,0,0,21,7,7]
[82,"Приволжский район","МБОУ \"Татаро-английская гимназия №16\" Приволжского района г. Казани","Юсупов","Самир","Бахтиярович","К7-150",0,7,7,0,0,7,21,7,7]
[83,"Приволжский район","СУНЦ – общеобразовательная школа-интернат «IT-лицей» федерального государственного автономного образовательного учреждения высшего образования «Казанский (Приволжский) федеральный университет»","Карякин","Илья","Юрьевич","К7-151",7,7,0,0,0,7,21,7,7]
[84,"Нижнекамский район","МБОУ «Лицей-интернат №24» Нижнекамского муниципального района Республики Татарстан","Мухаметшин","Салават","Даниярович","Н7-007",7,7,7,0,0,0,21,7,7]
[85,"Набережные Челны","МАОУ города Набережные Челны «Лицей №78 им. А.С. Пушкина»","Сахапов","Тимур","Рустамович","Н7-023",7,7,7,0,0,0,21,7,7]
[86,"Нижнекамский район","МБОУ «Лицей-интернат №24» Нижнекамского муниципального района Республики Татарстан","Аллун","Ильяс","Фейсалович","Н7-046",7,7,7,0,0,0,21,7,7]
[87,"Набережные Челны","МБОУ \"Гимназия №26\"","Хуснутдинова","Элина","Ильнуровна","Н7-059",7,7,7,0,0,0,21,7,7]
[88,"Приволжский район","Специализированный учебный научный центр – общеобразовательная школа-интернат «IT-лицей» федерального государственного автономного образовательного учреждения высшего образования «Казанский (Приволжский) федеральный университет»","Коновалов","Матвей","Александрович","К7-003",7,7,4,0,0,2,20,7,7]
[89,"Московский район","МАОУ \"Лицей-интернат №2\" Московского района г.Казани","Гилемханов","Арслан","Айратович","К7-004",7,1,7,3,0,2,20,7,7]
[90,"Ново-Савиновский район","СУНЦ Инженерный лицей-интернат КНИТУ-КАИ","Артемьев","Олег","Денисович","К7-021",0,7,7,3,0,3,20,7,7]
[91,"Менделеевский район","МБОУ «Средняя общеобразовательная школа № 1 имени Героя Советского Союза М.С. Фомина г. Менделеевска»  Менделеевского муниципального района Республики Татарстан","Мартынов ","Дмитрий","Владимирович","Н7-017",7,7,6,0,0,0,20,7,7]
[92,"Набережные Челны","МБОУ \"Гимназия №26\"","Фаизов","Ризван","Искандерович","Н7-022",7,0,7,3,3,0,20,7,7]
[93,"Набережные Челны","МБОУ \"Гимназия №26\" г.Набережные Челны","Черный","Матвей","Дмитриевич","Н7-039",7,7,6,0,0,0,20,7,7]
[94,"Вахитовский район","ОШИ «Лицей имени Н.И. Лобачевского» ФГАОУ ВО «Казанский (Приволжский) федеральный университет»","Щербакова","Софья","Романовна","К7-025",7,5,7,0,0,0,19,7,7]
[95,"Вахитовский район","МАОУ \"Лицей №131\" Вахитовского района г. Казани","Гайнанов","Айдар","Рунарович","К7-067",7,7,2,0,3,0,19,7,7]
[96,"Ново-Савиновский район","СУНЦ Инженерный лицей-интернат КНИТУ-КАИ","Муратов","Айрат","Рамилевич","К7-158",7,2,7,3,0,0,19,7,7]
[97,"Московский район","МБОУ \"Татарская гимназия №2 имени Шигабутдина Марджани при Казанском Федеральном Университете\" Московского района г.Казани","Валеева","Адиля","Искандаровна","К7-009",7,1,7,0,3,0,18,7,7]
[98,"Верхнеуслонский район","ГАОУ  \"Лицей Иннополис\"","Сафаргалиева","Лия","Рафисовна","К7-018",0,6,7,3,0,2,18,7,7]
[99,"Московский район","МАОУ \"Лицей-интернат №2\" Московского района г.Казани","Хузин","Камиль","Рамилевич","К7-039",0,7,7,0,4,0,18,7,7]
[100,"Приволжский район","СУНЦ – общеобразовательная школа-интернат «IT-лицей» федерального государственного автономного образовательного учреждения высшего образования «Казанский (Приволжский) федеральный университет»","Шульга","Константин","Андреевич","К7-061",0,7,7,3,1,0,18,7,7]
[101,"Московский район","МАОУ \"Лицей-интернат №2\" Московского района г.Казани","Мавлютов","Абдулькарим","Рафикович","К7-077",0,7,7,3,1,0,18,7,7]
[102,"Вахитовский район","МАОУ \"Лицей №131\" Вахитовского района г. Казани","Нурмиева","Резеда","Дамировна","К7-090",7,7,4,0,0,0,18,7,7]
[103,"Ново-Савиновский район","СУНЦ \"Инженерный лицей-интернат КНИТУ-КАИ\"","Мубаракшин","Даниль","Фаилевич","К7-107",7,7,4,0,0,0,18,7,7]
[105,"Приволжский район","СУНЦ – общеобразовательная школа-интернат «IT-лицей» федерального государственного автономного образовательного учреждения высшего образования «Казанский (Приволжский) федеральный университет»","Масакова","Софья","Алексеевна","К7-048",7,7,3,0,0,0,17,7,7]
[106,"Московский","МАОУ \"Лицей-интернат №2\"","Залюков","Амир","Ильдарович","К7-050",7,0,7,3,0,0,17,7,7]
[107,"Московский район","МБОУ \"Татарская гимназия №2 имени Шигабутдина Марджани при Казанском Федеральном Университете\" Московского района г.Казани","Сафиуллин","Султан","Ниязович","К7-058",0,7,7,3,0,0,17,7,7]
[108,"Советский район","МБОУ \"Гимназия №8 - Центр образования\" Советского района г.Казани","Чикова","Диана","Денисовна","К7-109",0,7,7,3,0,0,17,7,7]
[109,"Ново-Савиновский район","СУНЦ \"Инженерный лицей-интернат КНИТУ-КАИ\"","Корчагина","Алёна","Геннадьевна","К7-122",7,7,0,3,0,0,17,7,7]
[110,"Приволжский район","СУНЦ \"IT лицей КФУ\"","Мекешкин","Мирон","Антонович","К7-125",7,7,0,3,0,0,17,7,7]
[111,"Приволжский район","СУНЦ \"IT лицей КФУ\"","Гарипова","Карина","Булатовна","К7-147",7,7,2,0,0,1,17,7,7]
[112,"Верхнеуслонский район","ГАОУ  \"Лицей Иннополис\"","Щапов","Богдан","Владиславович","К7-159",7,7,0,3,0,0,17,7,7]
[113,"Вахитовский район","МАОУ \"Лицей №131\" Вахитовского района г. Казани","Ахмадеева","Суфия","Ахметовна","К7-174",0,7,7,3,0,0,17,7,7]
[114,"Набережные Челны","МБОУ \"Гимназия №26\"","Певгова","Анастасия","Денисовна","Н7-010",7,0,7,3,0,0,17,7,7]
[115,"Набережные Челны","Муниципальное автономное \nобщеобразовательное учреждение города Набережные Челны «Гимназия №76»","Салахов","Радмир","Русланович","Н7-011",0,7,7,3,0,0,17,7,7]
[116,"Набережные Челны","Муниципальное автономное\nобщеобразовательное учреждение города Набережные Челны «Гимназия №76»","Габдуллин","Расул","Фаритович","Н7-014",7,6,2,0,0,2,17,7,7]
[117,"Набережные Челны","МБОУ \"Гимназия №26\"","Лукоянов","Лев","Михайлович","Н7-040",0,7,7,0,3,0,17,7,7]
[118,"Набережные Челны","МБОУ \"Гимназия №26\"","Попов","Артем","Станиславович","Н7-062",7,7,0,3,0,0,17,7,7]
[119,"Ново-Савиновский район","СУНЦ \"Инженерный лицей-интернат КНИТУ-КАИ\"","Власова","Анна","Владимировна","К7-013",7,7,0,0,0,2,16,7,7]
[120,"Московский район","МАОУ \"Лицей-интернат №2\" Московского района г.Казани","Атюнькин","Матвей","Алексеевич","К7-038",0,7,3,3,3,0,16,7,7]
[121,"Вахитовский район","МАОУ для детей, проявивших выдающиеся способности «Средняя ОШИ «Специализированный олимпиадно-научный центр «СОлНЦе» Вахитовского района г. Казани","Кадырметова","Карина","Вильевна","К7-127",7,7,0,0,0,2,16,7,7]
[122,"Приволжский район","СУНЦ \"IT лицей КФУ\"","Сметанин","Андрей","Максимович","К7-148",7,2,7,0,0,0,16,7,{"$f":"O123","v":7}]
[123,"Вахитовский район","Муниципальное автономное общеобразовательное учреждение \"Лицей №131\" Вахитовского района г. Казани","Костенко","Андрей","Витальевич","К7-178",7,0,7,0,0,2,16,7,7]
[124,"Приволжский район","СУНЦ – общеобразовательная школа-интернат «IT-лицей» федерального государственного автономного образовательного учреждения высшего образования «Казанский (Приволжский) федеральный университет»","Вершинин","Арсений","Антонович","К7-087",7,6,0,0,0,2,15,7,7]
[125,"Набережные Челны","МАОУ города Набережные Челны \"Лицей инновационных технологий №36\"","Осипов","Богдан","Геннадьевич","Н7-008",7,7,1,0,0,0,15,7,7]
[126,"Приволжский район","СУНЦ – общеобразовательная школа-интернат «IT-лицей» федерального государственного автономного образовательного учреждения высшего образования «Казанский (Приволжский) федеральный университет»","Башкирова","Мария","Евгеньевна","К7-002",7,7,0,0,0,0,14,7,7]
[127,"Вахитовский район","МАОУ \"Лицей №131\" Вахитовского района г. Казани","Урманов","Дамир","Тимурович","К7-031",7,7,0,0,0,0,14,7,7]
[128,"Вахитовский район","МАОУ \"Лицей №131\" Вахитовского района г. Казани","Конышев","Роман","Юрьевич","К7-051",7,7,0,0,0,0,14,7,7]
[129,"Верхнеуслонский район","ГАОУ  \"Лицей Иннополис\"","Спиваков","Тимофей","Ярославович","К7-052",7,6,1,0,0,0,{"$f":"SUM(H130:M130)","v":14},7,7]
[130,"Московский район","МАОУ \"Лицей-интернат №2\" Московского района г.Казани","Абдульманов","Ансар","Артурович","К7-056",7,7,0,0,0,0,14,7,7]
[131,"Ново-Савиновский район","СУНЦ \"Инженерный лицей-интернат КНИТУ-КАИ\"","Дорохов","Макар","Александрович","К7-066",7,0,7,0,0,0,14,7,7]
[132,"Ново-Савиновский район","СУНЦ \"Инженерный лицей-интернат КНИТУ-КАИ\"","Каюмов","Тагир","Ильдарович","К7-080",7,7,0,0,0,0,14,7,7]
[133,"Вахитовский район","ОШИ «Лицей имени Н.И. Лобачевского» ФГАОУ ВО «Казанский (Приволжский) федеральный университет»","Рахимова","Стефания","Рафаилевна","К7-083",7,7,0,0,0,0,14,7,7]
[134,"Вахитовский район","МАОУ \"Лицей №131\" Вахитовского района г. Казани","Иванова","Елизавета","Александровна","К7-089",0,7,7,0,0,0,14,7,7]
[135,"Вахитовский район","МАОУ \"Лицей №131\" Вахитовского района г. Казани","Тазеев","Тимур","Дамирович","К7-103",7,7,0,0,0,0,14,7,7]
[136,"Московский район","МАОУ \"Лицей-интернат №2\" Московского района г.Казани","Закиров","Асхат","Азатович","К7-112",7,7,0,0,0,0,14,7,7]
[137,"Вахитовский район","МАОУ \"Лицей №131\" Вахитовского района г. Казани","Вильд","Александр","Денисович","К7-115",0,7,7,0,0,0,14,7,7]
[138,"Кукморский район","МБОУ «Кукморская средняя школа №3» Кукморского муниципального района Республики Татарстан","Биктимеров","Адель","Ренатович","К7-126",0,7,7,0,0,0,14,7,7]
[139,"Приволжский район","МАОУ \"Гимназия №19\" Приволжского района г. Казани","Идрисов","Карим","Маратович","К7-138",7,7,0,0,0,0,14,7,7]
[140,"Приволжский район","СУНЦ – общеобразовательная школа-интернат «IT-лицей» федерального государственного автономного образовательного учреждения высшего образования «Казанский (Приволжский) федеральный университет»","Ижевская","Анна","Александровна","К7-146",7,0,7,0,0,0,14,7,7]
[141,"Приволжский район","СУНЦ – общеобразовательная школа-интернат «IT-лицей» федерального государственного автономного образовательного учреждения высшего образования «Казанский (Приволжский) федеральный университет»","Радаев","Матвей","Русланович","К7-165",0,7,7,0,0,0,14,7,7]
[142,"Кировский район","МАОУ \"Гимназия-интернат №4\" Кировского района г.Казани","Салихова","Самира","Тимуровна","К7-169",7,0,7,0,0,0,14,7,7]
[143,"Приволжский район","СУНЦ – общеобразовательная школа-интернат «IT-лицей» федерального государственного автономного образовательного учреждения высшего образования «Казанский (Приволжский) федеральный университет»","Султанов","Арсен","Артурович","К7-173",7,7,0,0,0,0,14,7,7]
[144,"Московский район","МАОУ \"Лицей-интернат №2\" Московского района г.Казани","Гарифов","Асад","Маратович","К7-176",7,7,0,0,0,0,14,7,7]
[145,"Набережные Челны","МБОУ \"Гимназия №26\"","Рашитов","Илья","Николаевич","Н7-037",7,7,0,0,0,0,14,7,7]
[146,"Набережные Челны","МБОУ \"Средняя общеобразовательная школа № 41\"","Шахмаев","Роман","Александрович","Н7-052",7,0,5,0,0,2,14,7,7]
[147,"Приволжский район","СУНЦ \"IT лицей КФУ\"","Хурматова","Амина","Илдаровна","К7-053",0,7,6,0,0,0,13,7,{"$f":"O148","v":7}]
[148,"Вахитовский район","Лицей имени Н.И.Лобачевского КФУ","Фаттахов","Ахат","Алихонович","К7-063",0,7,6,0,0,0,13,7,7]
[149,"Азнакаевский район","МБОУ \"Гимназия города Азнакаево\" Азнакаевского муниципального района Республики Татарстан","Кутлыкаев","Риназ","Маратович","А7-009",5,7,0,0,0,0,12,7,7]
[150,"Вахитовский район","МАОУ \"Лицей №131\" Вахитовского района г. Казани","Тазеева","Сабрина","Рустемовна","К7-065",0,5,7,0,0,0,12,7,7]
[151,"Зеленодольский район","МБОУ «Лицей №1 Зеленодольского муниципального района РТ»","Кирина","Ева","Александровна","К7-163",5,7,0,0,0,0,12,7,7]
[152,"Актанышский район","ГАОУ  \"Гуманитарная гимназия-интернат для одаренных детей\"","Маликов","Раяз","Ильназович","Н7-012",0,7,5,0,0,0,12,7,7]
[153,"Верхнеуслонский район","ГАОУ \"Школа Иннополис\"","Яковлев","Александр","Сергеевич","К7-036",7,0,4,0,0,0,11,7,7]
[154,"Авиастроительный район","МБОУ \"Средняя общеобразовательная школа №54 с углубленным изучением отдельных предметов\" Авиастроительного района г. Казани","Зарипов","Тимур","Фанисович","К7-177",0,0,6,3,0,2,11,7,7]
[155,"Агрызский район","МБОУ средняя общеобразовательная школа №3 имени Тази Гиззата г. Агрыз Агрызского муниципального района Республики Татарстан","Родионов","Денис","Александрович","Н7-057",0,5,6,0,0,0,11,7,7]
[156,"Ново-Савиновский район","СУНЦ \"Инженерный лицей-интернат КНИТУ-КАИ\"","Юсупов","Даниил","Айдарович","К7-101",0,7,0,3,0,0,10,7,7]
[157,"Вахитовский район","МАОУ СОШИ \"СОлНЦе\"","Шкуро","Иван","Сергеевич","К7-116",7,0,0,3,0,0,10,7,7]
[158,"Вахитовский район","МАОУ \"Лицей №131\" Вахитовского района г. Казани","Бурнашев","Эльдар","Русланович","К7-121",0,3,7,0,0,0,10,7,7]
[159,"Советский район","МБОУ \"Многопрофильный лицей №185\" Советского района г.Казани","Шибкова","Мария","Сергеевна","К7-123",0,6,3,0,0,1,10,7,7]
[160,"Приволжский район","МБОУ \"Гимназия №6\" Приволжского района г.Казани","Трофимов","Лев","Евгеньевич","К7-185",0,0,7,3,0,0,10,7,7]
[161,"Заинский район","МБОУ  \"Заинская средняя общеобразовательная школа №6\" Заинского муниципального района Республики Татарстан","Трофимова","Ксения","Алексеевна","Н7-009",0,0,7,3,0,0,10,7,7]
[162,"Нижнекамский район","МБОУ «Лицей №35» Нижнекамского муниципального района Республики Татарстан","Федин","Даниил","Олегович","Н7-033",0,7,0,3,0,0,10,7,7]
[163,"Нижнекамский район","МБОУ «Лицей-интернат №24» Нижнекамского муниципального района Республики Татарстан","Михеев","Захар","Юрьевич","Н7-069",0,7,0,3,0,0,10,7,7]
[164,"Набережные Челны","МАОУ  \"Гимназия №77\"","Кривоногов","Никита","Сергеевич","Н7-072",7,0,3,0,0,0,10,7,7]
[165,"Набережные Челны","МБОУ \"Лицей-интернат №79\"","Иванов","Амир","Григорьевич","Н7-075",7,0,0,3,0,0,10,7,7]
[166,"Альметьевский район","ЧОУ – СОШ №23 «Менеджер»","Комаров","Айрат","Риязович","А7-001",7,0,2,0,0,0,9,7,7]
[167,"Вахитовский район","МАОУ \"Лицей №131\" Вахитовского района г. Казани","Габдулкаюмов","Дамир","Амирович","К7-017",0,7,0,0,0,2,9,7,7]
[168,"Московский район","МБОУ \"Татарская гимназия №2 имени Шигабутдина Марджани при Казанском Федеральном Университете\" Московского района г.Казани","Казакова","Суфия","Алмазовна","К7-041",0,7,2,0,0,0,9,7,7]
[169,"Приволжский район","МБОУ \"Средняя общеобразовательная школа №24 с углубленным изучением отдельных предметов\" Приволжского района г. Казани","Фазлеева","Алиса","Искандеровна","К7-074",0,5,4,0,0,0,9,7,7]
[170,"Вахитовский район","МАОУ \"Лицей №131\" Вахитовского района г. Казани","Муртазин","Артём","Тимурович","К7-076",0,7,2,0,0,0,9,7,7]
[171,"Ново-Савиновский район","МБОУ \"Гимназия №7 имени Героя России А.В.Козина\" Ново-Савиновского района г.Казани.","Хабибуллин","Рузаль","Ильфатович","К7-088",7,2,0,0,0,0,9,7,7]
[172,"Вахитовский район","МАОУ \"Лицей №131\" Вахитовского района г. Казани","Шакирзянов","Карим","Тимурович","К7-104",0,7,2,0,0,0,9,7,7]
[173,"Ново-Савиновский район","ГАОУ \"Полилингвальный комплекс \"Адымнар - путь к знаниям и согласию\" г.Казани (ул. Абдуллы Бичурина)","Белоусов","Кирилл","Валерьевич","К7-118",0,0,6,3,0,0,9,7,7]
[174,"Приволжский район","СУНЦ – общеобразовательная школа-интернат «IT-лицей» федерального государственного автономного образовательного учреждения высшего образования «Казанский (Приволжский) федеральный университет»","Шегабутдинов","Самир","Тимурович","К7-142",5,0,4,0,0,0,9,7,7]
[175,"Набережные Челны","МБОУ \"Средняя общеобразовательная школа № 41\"","Валиахметов","Тагир","Расихович","Н7-024",0,7,0,0,0,2,9,7,7]
[176,"Елабужский район","МБОУ \"Многопрофильный лицей №10\" ЕМР РТ","Коростелев","Александр","Николаевич","Н7-032",7,0,0,0,0,2,9,7,7]
[177,"Набережные Челны","МБОУ \"Гимназия №26\"","Саетова","Айзиля","Рамилевна","Н7-041",7,0,0,2,0,0,9,7,7]
[178,"Набережные Челны","МБОУ \"Гимназия №26\"","Салихов","Амир","Айратович","Н7-065",7,0,2,0,0,0,9,7,7]
[179,"Новошешминский район","МБОУ «Новошешминская средняя общеобразовательная школа Новошешминского муниципального района Республики Татарстан»","Салихова","Амина","Камилевна","А7-004",7,1,0,0,0,0,8,7,7]
[180,"Приволжский район","СУНЦ \"IT лицей КФУ\"","Хуснеев","Амир","Айратович","К7-019",3,1,4,0,0,0,8,7,7]
[181,"Приволжский район","МБОУ \"Лицей №83 - Центр образования\" Приволжского района г. Казани","Алексеев","Арсений","Олегович","К7-032",0,7,1,0,0,0,8,7,7]
[182,"Советский район","МБОУ \"Средняя общеобразовательная школа №169\" Советского района г.Казани","Романов","Артемий","Михайлович","К7-141",7,1,0,0,0,0,8,7,7]
[183,"Ново-Савиновский район","СУНЦ \"Инженерный лицей-интернат КНИТУ-КАИ\"","Минатуллина","Раиля","Ильдаровна","К7-161",0,7,0,0,0,1,8,7,7]
[184,"Приволжский район","СУНЦ – общеобразовательная школа-интернат «IT-лицей» федерального государственного автономного образовательного учреждения высшего образования «Казанский (Приволжский) федеральный университет»","Недорезов","Андрей","Евгеньевич","К7-180",6,0,0,0,0,2,8,7,7]
[185,"Менделеевский район","МБОУ «Средняя общеобразовательная школа № 1 имени Героя Советского Союза М.С. Фомина г. Менделеевска»  Менделеевского муниципального района Республики Татарстан","Булатов","Авель","Ринатович","Н7-061",0,0,3,3,0,2,8,7,7]
[186,"Бугульминский район","МБОУ  средняя общеобразовательная школа №6 с углубленным изучением отдельных предметов Бугульминского муниципального района  Республики Татарстан","Мухамадиев","Азамат","Маратович","А7-011",7,0,0,0,0,0,7,7,7]
[187,"Бугульминский район","МБОУ  средняя общеобразовательная школа №6 с углубленным изучением отдельных предметов Бугульминского муниципального района  Республики Татарстан","Каримова","Карина","Авазовна","А7-012",0,7,0,0,0,0,7,7,7]
[188,"Приволжский район","МБОУ \"Гимназия №6\" Приволжского района г.Казани","Тазиев","Азат","Ренатович","К7-033",0,0,2,3,0,2,7,7,7]
[189,"Ново-Савиновский район","СУНЦ \"Инженерный лицей-интернат КНИТУ-КАИ\"","Волкова","Кристина","Евгеньевна","К7-046",0,0,7,0,0,0,7,7,7]
[190,"Приволжский район","МБОУ \"Лицей №83 - Центр образования\" Приволжского района г. Казани","Жаворонкин","Эрнст","Леонидович","К7-055",0,0,7,0,0,0,7,7,7]
[191,"Вахитовский район","СОШИ \"Лицей имени Н.И. Лобачевского\" федерального государственного автономного образовательного учреждения высшего образования \"Казанский (Приволжский) федеральный университет\"","Галимова","Алина","Айратовна","К7-062",0,7,0,0,0,0,7,7,7]
[192,"Верхнеуслонский район","ГАОУ  \"Лицей Иннополис\"","Ерошкина","Ангелина","Денисовна","К7-070",7,0,0,0,0,0,7,7,7]
[193,"Вахитовский район","МАОУ \"Лицей №131\" Вахитовского района г. Казани","Загидуллин","Асгат","Азатович","К7-079",0,7,0,0,0,0,{"$f":"SUM(H194:M194)","v":7},7,7]
[194,"Вахитовский район","МАОУ \"Лицей №131\" Вахитовского района г. Казани","Костин","Роман","Павлович","К7-114",0,7,0,0,0,0,7,7,7]
[195,"Московский район","МБОУ \"Гимназия №102 имени М.С.Устиновой\" Московского района города Казани","Хусаинов","Салават","Фердинатович","К7-117",7,0,0,0,0,0,7,7,7]
[196,"Вахитовский район","ОШИ «Лицей имени Н.И. Лобачевского» ФГАОУ ВО «Казанский (Приволжский) федеральный университет»","Леонова","Агата","Александровна","К7-167",7,0,0,0,0,0,7,7,7]
[197,"Набережные Челны","МБОУ \"Гимназия №26\"","Саляхова","Диляра","Радиевна","Н7-002",7,0,0,0,0,0,7,7,7]
[198,"Набережные Челны","МБОУ \"Средняя общеобразовательная школа № 39\"","Багаутдинов","Айзат","Раилевич","Н7-004",7,0,0,0,0,0,7,7,7]
[199,"Актанышский район","Государственное автономное общеобразовательное учреждение  \"Гуманитарная гимназия-интернат для одаренных детей\"","Галиев","Самир","Сиринатович","Н7-016",0,0,7,0,0,0,7,7,7]
[200,"Мамадышский район","МБОУ «Верхнесуньская ООШ» .","Газизов","Ризван","Айратович","Н7-025",0,7,0,0,0,0,7,7,7]
[201,"Нижнекамский район","МБОУ «Лицей №35» Нижнекамского муниципального района Республики Татарстан","Исбатов","Теймур","Фуадович","Н7-026",7,0,0,0,0,0,7,7,7]
[202,"Нижнекамский район","МБОУ «Гимназия-интернат №13» Нижнекамского муниципального района Республики Татарстан","Набиуллина","Азалия","Ильдаровна","Н7-043",7,0,0,0,0,0,7,7,7]
[203,"Тукаевский район","МБОУ «Семекеевская ООШ»","Байбекова","Марьям","Наилевна","Н7-047",7,0,0,0,0,0,7,7,7]
[204,"Заинский район","МБОУ  \"Заинская средняя общеобразовательная школа №6\" Заинского муниципального района Республики Татарстан","Сабирова","Альфина","Оттеловна","Н7-067",0,7,0,0,0,0,7,7,7]
[205,"Лаишевский район","МБОУ \"Сокуровская СОШ им. Г.Р.Державина\"","Халикова","Эвелина","Ренатовна","К7-092",6,0,0,0,0,0,6,7,7]
[206,"Ново-Савиновский район","МБОУ \"Лицей №23\" Ново-Савиновского района г.Казани","Милина","Ульяна","Сергеевна","К7-108",0,0,4,0,0,2,6,7,7]
[207,"Тукаевский район","МБОУ «Семекеевская ООШ»","Сагитов","Азамат","Садитович","Н7-070",0,6,0,0,0,0,6,7,7]
[208,"Приволжский район","МБОУ \"Лицей №83 - Центр образования\" Приволжского района г. Казани","Пономарев","Герман","Николаевич","К7-028",3,0,0,0,0,2,5,7,7]
[209,"Вахитовский район","ОШИ «Лицей имени Н.И. Лобачевского» ФГАОУ ВО «Казанский (Приволжский) федеральный университет»","Ахметзянов","Тимур","Маратович","К7-040",5,0,0,0,0,0,5,7,7]
[210,"Вахитовский район","МАОУ \"Лицей №131\" Вахитовского района г. Казани","Титов","Кирилл","Сергеевич","К7-071",0,5,0,0,0,0,5,7,7]
[211,"Зеленодольский район","МБОУ «Лицей №1 Зеленодольского муниципального района РТ»","Мингазова","Лея","Рамилевна","К7-085",0,5,0,0,0,0,5,7,7]
[212,"Ново-Савиновский район","МАОУ  \"Лицей-интернат №7\" Ново-Савиновского района г. Казани","Ильичев","Денис","Алексеевич","К7-134",0,0,0,3,0,2,5,7,7]
[213,"Нижнекамский район","МБОУ «Лицей №35» Нижнекамского муниципального района Республики Татарстан","Калимуллин","Карим","Ренатович","Н7-058",0,1,4,0,0,0,5,7,7]
[214,"Приволжский район","МБОУ \"Лицей №35 - образовательный центр \"Галактика\" Приволжского района г. Казани","Гарафутдинов","Закир","Ильдарович","К7-037",0,0,4,0,0,0,4,7,7]
[215,"Набережные Челны","МБОУ \"Гимназия №26\"","Петухова","Анастасия","Артемовна","Н7-015",0,0,4,0,0,0,4,7,7]
[216,"Набережные Челны","Государственное бюджетное общеобразовательное учреждение \"Набережночелнинская школа № 87 для детей с ограниченными возможностями здоровья\"\"","Айгузина","Ксения","Аркадьева","Н7-045",0,0,4,0,0,0,4,8,7]
[217,"Елабужский район","МБОУ \"Инженерно-технологический лицей\" ЕМР РТ","Нотфуллин","Нурислам","Рафатович","Н7-060",0,0,4,0,0,0,4,7,7]
[218,"Набережные Челны","МБОУ \"Средняя общеобразовательная школа № 41\"","Ямалтдинова","Ралина","Рамилевна","Н7-031",0,0,0,3,0,0,3,7,7]
[219,"Менделеевский район","МБОУ «Средняя общеобразовательная школа № 1 имени Героя Советского Союза М.С. Фомина г. Менделеевска»  Менделеевского муниципального района Республики Татарстан","Тургаев","Алексей","Геннадьевич","Н7-034",0,1,0,0,0,2,3,7,7]
[220,"Мамадышский район","МБОУ \"Олуязский лицей\"","Мубаракшина","Алиса","Фанилевна","Н7-036",0,3,0,0,0,0,3,7,7]
[221,"Агрызский район","МОУ №1 города Агрыз Агрызского муниципального района Республики Татарстан","Шавалиев","Мухаммадгали","Газизянович","Н7-050",0,0,0,3,0,0,3,7,7]
[222,"Верхнеуслонский район","ГАОУ  \"Лицей Иннополис\"","Маслов","Кирилл","Георгиевич","К7-094",0,0,0,0,0,2,2,7,7]
[223,"Пестречинский район","МБОУ Технологический Лицей \"Алгоритм\"","Хайриев","Искандер","Русланович","К7-095",0,0,0,0,0,2,2,7,7]
[224,"Верхнеуслонский район","Государственное Автономное Общеобразовательное Учреждение \"Школа Иннополис\"","Дьяченко","Юрий","Анатольевич","К7-144",0,2,0,0,0,0,2,7,7]
[225,"Набережные Челны","ГБОУ \"Набережночелнинская школа № 87 для детей с ограниченными возможностями здоровья\"\"","Закирова","Афелия","Ильсуровна","Н7-028",0,0,0,0,0,2,2,8,7]
[226,"Нижнекамский район","МБОУ \"Гимназия №2\" имени Баки Урманче","Сафина","Амина","Ильясовна","Н7-053",0,0,0,0,0,2,2,7,7]
[227,"Вахитовский район","МАОУ \"Лицей №131\" Вахитовского района г. Казани","Абдреев","Таймураз","Маратович","К7-078",0,0,1,0,0,0,1,7,7]
[228,"Верхнеуслонский район","ГАОУ  \"Лицей Иннополис\"","Маликов","Амир","Русланович","К7-153",0,1,0,0,0,0,1,7,7]
[229,"Арский район","МБОУ \"Ташкичинская основная общеобразовательная школа\" Арского муниципального района РТ","Багавиева","Зарина","Абузэровна","К7-175",0,0,0,0,0,1,1,7,7]
[230,"Приволжский район","СУНЦ \"IT лицей КФУ\"","Садыйков","Эмир","Дамирович","К7-182",0,0,0,0,0,1,1,7,{"$f":"O231","v":7}]
[231,"Нижнекамский район","МБОУ «Лицей №35» Нижнекамского муниципального района Республики Татарстан","Гайнуллин","Булат","Эдуардович","Н7-005",0,0,1,0,0,0,1,7,7]
[232,"Черемшанский район","МБОУ \"Беркет-Ключевская СОШ\"","Хайруллин","Муса","Марселевич","А7-002",0,0,0,0,0,0,0,7,7]
[233,"Альметьевский район","МБОУ - \"СОШ №25 им.70-летия нефти Татарстана\"","Валиев","Карим","Айратович","А7-003",0,0,0,0,0,0,0,7,7]
[234,"Черемшанский район","МБОУ \"Верхнекаменская основная общеобразовательная школа\" Черемшанского муниципального района Республики Татарстан","Шамсутдинова","Рания","Ринатовна","А7-005",0,0,0,0,0,0,0,7,7]
[235,"Альметьевский район","МАОУ \"Лицей №10\"","Файзрахманова","Миляуша","Рустамовна","А7-006",0,0,0,0,0,0,0,7,7]
[236,"Бугульминский район","МБОУ лицей №2 Бугульминского муниципального района Республики Татарстан","Гайнутдинов","Арслан","Ильдарович","А7-010",0,0,0,0,0,0,0,7,7]
[237,"Азнакаевский район","МБОУ «Средняя общеобразовательная №2 города Азнакаево» Азнакаевского муниципального района  Республики Татарстан","Бадертдинов","Реналь","Ильнурович","А7-013",0,0,0,0,0,0,0,7,7]
[238,"Альметьевский район","МБОУ \"Гимназия №1 им.Р. Фахретдина\" г.Альметьевска РТ","Маннанова","Алия","Маратовна","А7-014",0,0,0,0,0,0,0,7,7]
[239,"Зеленодольский район","МБОУ «Средняя общеобразовательная школа №11 с углублённым изучением отдельных предметов Зеленодольского муниципального района Республики Татарстан»","Агакеримов","Даниил","Кириллович","К7-008",0,0,0,0,0,0,0,7,7]
[240,"Верхнеуслонский район","ГАОУ  \"Лицей Иннополис\"","Смирнов","Даниил","Родионович","К7-014",0,0,0,0,0,0,0,7,7]
[241,"Зеленодольский район","МБОУ «Лицей №1 Зеленодольского муниципального района РТ»","Саляхов","Ибрахим","Ленарович","К7-029",0,0,0,0,0,0,{"$f":"SUM(H242:M242)","v":0},7,7]
[242,"Лаишевский район","МБОУ \"Сокуровская СОШ им. Г.Р.Державина\"","Бикинеев","Марк","Анатольевич","К7-054",0,0,0,0,0,0,0,7,7]
[243,"Пестречинский район","МБОУ \"Пестречинская СОШ №1 с углубленным изучением отдельных предметов имени Героя России Ивана Алексеевича Додосова\"","Молодов","Леонид","Дмитриевич","К7-059",0,0,0,0,0,0,0,7,7]
[244,"Вахитовский район","СОШИ \"Лицей имени Н.И. Лобачевского\" федерального государственного автономного образовательного учреждения высшего образования \"Казанский (Приволжский) федеральный университет\"","Усманова","Диана","Рамилевна","К7-072",0,0,0,0,0,0,0,7,7]
[245,"Арский район","МБОУ \"Арская средняя общеобразовательная школа №2\" Арского муниципального района Республики Татарстан","Хусаинов","Артур","Тимерхакович","К7-073",0,0,0,0,0,0,0,7,7]
[246,"Вахитовский район","Федеральное государственное казенное общеобразовательное учреждение \"Казанское суворовское военное училище Министерства обороны Российской Федерации'","Ахмадуллин","Карим","Ильдусович","К7-086",0,0,0,0,0,0,0,7,7]
[247,"Ново-Савиновский район","Муниципальное бюджетное образовательное учреждение \"Средняя общеобразовательная школа №132 с углубленным изучением иностранных языков\" Ново-Савиновского района г. Казани","Иванов","Егор","Андреевич","К7-096",0,0,0,0,0,0,0,7,7]
[248,"Приволжский район","МАОУ \"Гимназия №19\" Приволжского района г. Казани","Рушева","Мирослава","Антоновна","К7-099",0,0,0,0,0,0,0,7,7]
[249,"Советский район","МБОУ \"Гимназия №125\" Советского района г.Казани","Шарапов","Адель","Маратович","К7-100",0,0,0,0,0,0,0,7,7]
[250,"Ново-Савиновский район","Государственное автономное общеобразовательное учреждение \"Полилингвальный комплекс \"Адымнар - путь к знаниям и согласию\" г.Казани (ул. Абдуллы Бичурина)","Бабкин","Артем","Александрович","К7-120",0,0,0,0,0,0,0,7,7]
[251,"Вахитовский район","МАОУ \"Лицей №131\" Вахитовского района г. Казани","Гололобова","Алина","Сергеевна","К7-128",0,0,0,0,0,0,0,7,7]
[252,"Кайбицкий район","МБОУ «Кулангинская основная общеобразовательная школа Кайбицкого муниципального района Республики Татарстан»","Камалиева","Гульназ","Алмазовна","К7-132",0,0,0,0,0,0,0,7,7]
[253,"Вахитовский район","Федеральное государственное казенное общеобразовательное учреждение \"Казанское суворовское военное училище Министерства обороны Российской Федерации'","Байбуров","Рубин","Ленарович","К7-139",0,0,0,0,0,0,0,7,7]
[254,"Арский район","МБОУ \"Арская средняя общеобразовательная школа №2\" Арского муниципального района Республики Татарстан","Мустафина","Алсу","Раушановна","К7-162",0,0,0,0,0,0,0,7,7]
[255,"Пестречинский район","МБОУ Технологический Лицей \"Алгоритм\"","Марданшин","Динар","Ленарович","К7-164",0,0,0,0,0,0,0,7,7]
[256,"Арский район","МБОУ \"Арская средняя общеобразовательная школа №1 им. В.Ф.Ежкова с углубленным изучением отдельных предметов\" Арского муниципального района Республики Татарстан","Сунгатуллин","Амирхан","Фанилевич ","К7-184",0,0,0,0,0,0,0,7,7]
[257,"Мамадышский район","МБОУ \"Центр образования Лицей №2 имени академика Камиля Ахметовича Валиева города Мамадыш\" Мамадышского муниципального района Республики Татарстан","Шайдуллина","Регина","Руслановна","Н7-001",0,0,0,0,0,0,0,7,7]
[258,"Тукаевский район","МБОУ \"Бетькинская средняя общеобразовательная школа с углубленным изучением отдельных предметов\" Тукаевского района Республики Татарстан","Сулейманов","Айзат","Марселевич","Н7-003",0,0,0,0,0,0,0,7,7]
[259,"Агрызский район","МБОУ средняя общеобразовательная школа №3 имени Тази Гиззата г. Агрыз Агрызского муниципального района Республики Татарстан","Курбангалиева","Малика","Сайрахмоновна","Н7-013",0,0,0,0,0,0,0,7,7]
[260,"Тукаевский район","МБОУ «Калмиинская основная общеобразовательная школа» тукаевского муниципального района Республики Татарстан","Вахитов","Амир","Айратович","Н7-019",0,0,0,0,0,0,0,7,7]
[261,"Заинский район","МБОУ \"Заинская средняя общеобразовательная школа №2\" Заинского муниципального района Республики Татарстан","Федорова","Арианна","Айратовна","Н7-020",0,0,0,0,0,0,0,7,7]
[262,"Нижнекамский район","МБОУ «Средняя общеобразовательная школа №29» Нижнекамского муниципального района Республики Татарстан","Пестова","Арина","Максимовна","Н7-029",0,0,0,0,0,0,0,7,7]
[263,"Агрызский район","МБОУ средняя общеобразовательная школа №4 города Агрыз Агрызского муниципального района Республики Татарстан","Шиябутдинов","Искандер","Радикович","Н7-030",0,0,0,0,0,0,0,7,7]
[264,"Нижнекамский район","МБОУ \"Гимназия №32\" Нижнекамского муниципального района Республики Татарстан","Чапаев","Роман","Андреевич","Н7-038",0,0,0,0,0,0,0,7,7]
[265,"Елабужский район","МБОУ \"Средняя общеобразовательная школа №8\" ЕМР РТ","Пузырев","Владислав","Витальевич","Н7-042",0,0,0,0,0,0,0,7,7]
[266,"Мамадышский район","МБОУ \"Средняя общеобразовательная школа №1 города Мамадыш\"","Зиннатуллина","Замира","Ришатовна","Н7-044",0,0,0,0,0,0,0,7,7]
[267,"Заинский район","МБОУ \"Заинская средняя общеобразовательная школа №4\" Заинского муниципального района Республики Татарстан","Тапайкина","Азалия","Эдуардовна","Н7-051",0,0,0,0,0,0,0,7,7]
[268,"Набережные Челны","МБОУ \"Гимназия №14\"","Карпов","Александр","Владимирович","Н7-054",0,0,0,0,0,0,0,7,7]
[269,"Нижнекамский район","МБОУ «Средняя общеобразовательная школа №10 с углубленным изучением отдельных предметов» Нижнекамского муниципального района Республики Татарстан","Калимуллина","Амира","Раисовна","Н7-055",0,0,0,0,0,0,0,7,7]
[270,"Тукаевский район","МБОУ \"Бетькинская средняя общеобразовательная школа с углубленным изучением отдельных предметов\" Тукаевского района Республики Татарстан","Кондратьев","Даниель","Рашитович","Н7-064",0,0,0,0,0,0,0,7,7]
[271,"Агрызский район","МОУ Терсинская средняя общеобразовательная школа Агрызского муниципального района Республики Татарстан","Насибуллина","Гульшат","Илнуровна","Н7-066",0,0,0,0,0,0,0,7,7]
[272,"Мамадышский район","МБОУ \"Средняя общеобразовательная школа №3 города Мамадыш\" Мамадышского муниципального района Республики Татарстан","Балов","Антон","Евгеньевич","Н7-068",0,0,0,0,0,0,0,7,7]
[273,"Нижнекамский район","МБОУ «Камскополянская средняя общеобразовательная школа №1»","Сайфутдинов","Радмир","Романович","Н7-073",0,0,0,0,0,0,0,7,7]